Workbook

Sheet BExRepositorySheet (hidden)
A1: 7

Sheet Ingresos
A2: EMPRESA DE ACUEDUCTO ALCANTARILLADO Y ASEO DE BOGOTA
A3: EJECUCION PRESUPUESTAL DE INGRESOS
A4: A 30 DE ABRIL DE 2018
C5: 1 | D5: 2 | E5: 3 | F5: 4 | G5: 5 | H5: 6 | I5: 7=(6/4) | J5: 8=(4-6)
A6: CODIGO SECRETARIA DE HACIENDA | B6: RUBRO | C6: Presupuesto Inicial | D6: Modificaciones mes | E6: Modificaciones acumuladas | F6: Presupuesto Definitivo | G6: Recaudos mes | H6: Recaudos Acumulados | I6: % Ejecución Presupuestal | J6: Saldo por recaudar
A7: TOTAL INGRESOS + DISPONIBILIDAD INICIAL | C7: 3850633264000 | E7: 103123947963 | F7: 3953757211963 | G7: 157748050197 | H7: 1540937583266 | I7: 0.3897400626 | J7: 2412819628697
A8: 100000000000000 | B8: DISPONIBILIDAD INICIAL | C8: 810430807000 | E8: 14337600000 | F8: 824768407000 | H8: 824768407000 | I8: 1
A9: 00000100000000000000 | B9: DISPONIBILIDAD INICIAL | C9: 810430807000 | E9: 14337600000 | F9: 824768407000 | H9: 824768407000 | I9: 1
A10: 200000000000000 | B10: INGRESOS | C10: 3040202457000 | E10: 88786347963 | F10: 3128988804963 | G10: 157748050197 | H10: 716169176266 | I10: 0.2288819874 | J10: 2412819628697
A11: 210000000000000 | B11: INGRESOS CORRIENTES | C11: 1548930214000 | E11: 34307035818 | F11: 1583237249818 | G11: 146322638710 | H11: 593678528210 | I11: 0.3749776152 | J11: 989558721608
A12: 211000000000000 | B12: INGRESOS DE EXPLOTACION | C12: 1548930214000 | E12: 28316850294 | F12: 1577247064294 | G12: 146322638710 | H12: 591170665021 | I12: 0.3748117073 | J12: 986076399273
A13: 211020000000000 | B13: VENTA DE SERVICIOS | C13: 1532569244000 | E13: 28316850294 | F13: 1560886094294 | G13: 143752959003 | H13: 585008109148 | I13: 0.3747923127 | J13: 975877985146
A14: 00000211020100000000 | B14: SERVICIO ACUEDUCTO | C14: 801525787000 | F14: 801525787000 | G14: 62768572319 | H14: 261668872108 | I14: 0.326463448 | J14: 539856914892
A15: 00000211020200000000 | B15: SERVICIO ALCANTARILLADO | C15: 677735457000 | F15: 677735457000 | G15: 59642554198 | H15: 253497354571 | I15: 0.3740358453 | J15: 424238102429
A16: 00000211020300000000 | B16: SERVICIO ASEO | C16: 53308000000 | E16: 28316850294 | F16: 81624850294 | G16: 21341832486 | H16: 69841882469 | I16: 0.8556448461 | J16: 11782967825
A17: 211990000000000 | B17: OTROS INGRESOS DE EXPLOTACIÓN | C17: 16360970000 | F17: 16360970000 | G17: 2569679707 | H17: 6162555873 | I17: 0.3766620117 | J17: 10198414127
A18: 00000211990100000000 | B18: COMISIONES | C18: 1626574000 | F18: 1626574000 | G18: 122978228 | H18: 368477521 | I18: 0.2265359713 | J18: 1258096479
A19: 00000211990200000000 | B19: ARRENDAMIENTOS BIENES INMUEBLES | C19: 1114450000 | F19: 1114450000 | G19: 90155520 | H19: 191191182 | I19: 0.1715565364 | J19: 923258818
A20: 00000211990400000000 | B20: INTERESES A USUARIOS | C20: 2498422000 | F20: 2498422000 | G20: 217471460 | H20: 1153296296 | I20: 0.4616098866 | J20: 1345125704
A21: 00000211990500000000 | B21: PUBLICACIONES | C21: 3156000 | F21: 3156000 | G21: 1484762 | H21: 13904416 | I21: 4.405708492 | J21: -10748416
A22: 00000211990700000000 | B22: SERVICIOS | C22: 498180000 | F22: 498180000 | G22: 101103819 | H22: 207098018 | I22: 0.4157092176 | J22: 291081982
A23: 00000211990800000000 | B23: CUOTAS PARTES PENSIONALES | G23: 755045774 | H23: 1088757201 | J23: -1088757201
A24: 00000211990900000000 | B24: EXTRAORDINARIOS - RECUPERACIONES | G24: 245272630 | H24: 807073272 | J24: -807073272
A25: 00000211991100000000 | B25: INGRESOS CENTRAL HIDROELECTRICA SANTA ANA | C25: 10620188000 | F25: 10620188000 | G25: 989710621 | H25: 2176458890 | I25: 0.204936004 | J25: 8443729110
A26: 00000211991300000000 | B26: SANCIONES Y MULTAS | G26: 46456893 | H26: 156299077 | J26: -156299077
A27: 212000000000000 | B27: OTROS INGRESOS CORRIENTES | E27: 5990185524 | F27: 5990185524 | H27: 2507863189 | I27: 0.4186620229 | J27: 3482322335
A28: 212040000000000 | B28: RENTAS CONTRACTUALES | E28: 5990185524 | F28: 5990185524 | H28: 2507863189 | I28: 0.4186620229 | J28: 3482322335
A29: 00000212049900000000 | B29: OTRAS RENTAS CONTRACTUALES | E29: 5990185524 | F29: 5990185524 | H29: 2507863189 | I29: 0.4186620229 | J29: 3482322335
A30: 220000000000000 | B30: TRANSFERENCIAS | C30: 224243102000 | F30: 224243102000 | H30: 70925826553 | I30: 0.3162898922 | J30: 153317275447
A31: 223000000000000 | B31: MUNICIPIOS | C31: 1426000000 | F31: 1426000000 | H31: 564136725 | I31: 0.3956078015 | J31: 861863275
A32: 00000223030000000000 | B32: TRANSFERENCIAS SUBSIDIOS SOACHA | C32: 1426000000 | F32: 1426000000 | H32: 564136725 | I32: 0.3956078015 | J32: 861863275
A33: 224000000000000 | B33: DE LA ADMINISTRACION CENTRAL | C33: 222817102000 | F33: 222817102000 | H33: 70361689828 | I33: 0.315782268 | J33: 152455412172
A34: 00000224010000000000 | B34: SECRETARIA DISTRITAL DE HACIENDA - LEY 1176 / 2007 | C34: 69180000000 | F34: 69180000000 | H34: 40790549956 | I34: 0.5896292275 | J34: 28389450044
A35: 00000224140000000000 | B35: SECRETARIA DISTRITAL DE HACIENDA - MINIMO VITAL | C35: 66473000000 | F35: 66473000000 | H35: 29571139872 | I35: 0.4448594147 | J35: 36901860128
A36: 00000224170000000000 | B36: SDH - LEY 99 DE 1993 | C36: 87164102000 | F36: 87164102000 | J36: 87164102000
A37: 230000000000000 | B37: RECURSOS DE CAPITAL | C37: 1267029141000 | E37: 54479312145 | F37: 1321508453145 | G37: 11425411487 | H37: 51564821503 | I37: 0.0390196683 | J37: 1269943631642
A38: 231000000000000 | B38: RECURSOS DEL CREDITO | C38: 1150524499000 | F38: 1150524499000 | J38: 1150524499000
A39: 231010000000000 | B39: CREDITO INTERNO | C39: 1150524499000 | F39: 1150524499000 | J39: 1150524499000
A40: 00000231019800000000 | B40: VIGENCIA ANTERIOR | C40: 203276024000 | E40: -95754596540 | F40: 107521427460 | J40: 107521427460
A41: 00000231019900000000 | B41: VIGENCIA | C41: 947248475000 | E41: 95754596540 | F41: 1043003071540 | J41: 1043003071540
A42: 232000000000000 | B42: RENDIMIENTOS OPERACIONES FINANCIERAS | C42: 93893441000 | F42: 93893441000 | G42: 10926474838 | H42: 41610651861 | I42: 0.4431688882 | J42: 52282789139
A43: 232010000000000 | B43: RENDIMIENTO POR OPERACIONES FINANCIERAS | C43: 82160993000 | F43: 82160993000 | G43: 8845645395 | H43: 30708388107 | I43: 0.3737587264 | J43: 51452604893
A44: 00000232010100000000 | B44: INTERESES Y RENDIMIENTOS DEUDORES | G44: 261240792 | H44: 367947950 | J44: -367947950
A45: 00000232010300000000 | B45: INTERESES SOBRE DEPOSITOS | C45: 13360993000 | F45: 13360993000 | G45: 1581620172 | H45: 6363021473 | I45: 0.4762386653 | J45: 6997971527
A46: 00000232010500000000 | B46: INTERESES SOBRE DEPOSITOS FONDO DE VIVIENDA | G46: 70147715 | H46: 279221816 | J46: -279221816
A47: 00000232010700000000 | B47: INGRESOS FINANCIEROS ENCARGO FIDUCIARIO PENSION | C47: 68800000000 | F47: 68800000000 | G47: 6932636716 | H47: 23698196868 | I47: 0.3444505359 | J47: 45101803132
A48: 232020000000000 | B48: RENDIMIENTOS SOBRE PORTAFOLIOS DE INVERSION | C48: 11732448000 | F48: 11732448000 | G48: 2080829443 | H48: 10902263754 | I48: 0.9292403217 | J48: 830184246
A49: 00000232020100000000 | B49: INGRESOS FINANCIEROS DIVIDENDOS | G49: 7462443 | H49: 32237754 | J49: -32237754
A50: 00000232020300000000 | B50: RENTA FIJA SECTOR FINANCIERO | C50: 11732448000 | F50: 11732448000 | G50: 2073367000 | H50: 10870026000 | I50: 0.9264925785 | J50: 862422000
A51: 239000000000000 | B51: OTROS RECURSOS DE CAPITAL | C51: 22611201000 | E51: 54479312145 | F51: 77090513145 | G51: 498936649 | H51: 9954169642 | I51: 0.1291231468 | J51: 67136343503
A52: 00000239010000000000 | B52: RECUPERACION PRESTAMOS DE VIVIENDA | C52: 22000000000 | F52: 22000000000 | G52: 479601234 | H52: 9709511997 | I52: 0.4413414544 | J52: 12290488003
A53: 00000239030000000000 | B53: RECUPERACION PRESTAMOS DE BIENESTAR | C53: 611201000 | F53: 611201000 | G53: 19335415 | H53: 71236651 | I53: 0.1165519215 | J53: 539964349
A54: 00000239040000000000 | B54: INDEMNIZACIONES COMPAÑIAS DE SEGUROS | H54: 173420994 | J54: -173420994
A55: 00000239100000000000 | B55: RECURSOS FIDUCIA | E55: 54479312145 | F55: 54479312145 | J55: 54479312145

Sheet Gastos
A2: EMPRESA DE ACUEDUCTO ALCANTARILLADO Y ASEO DE BOGOTA
A3: EJECUCION PRESUPUESTAL DE GASTOS
A4: A 30 ABRIL DE 2018
C5: 1 | D5: 2 | E5: 3 | F5: 4=(1+3) | G5: 5 | H5: 6=(4-5) | I5: 7 | J5: 8 | K5: 9=(8/6) | L5: 11 | M5: 12 | N5: 13=(12/6)
A6: CODIGO SECRETARIA DE HACIENDA | B6: RUBRO | C6: PRESUPUESTO INICIAL | D6: MODIFICACIONES MES | E6: MODIFICACIONES ACUMULADAS | F6: PRESUPUESTO DEFINITIVO | G6: SUSPENSION | H6: APROPIACION DISPONIBLE | I6: COMPROMISOS MES | J6: COMPROMISOS ACUMULADOS | K6: % EJEC PPTAL | L6: AUTORIZACIONES DE GIRO | N6: % EJEC AUT. GIRO | O6: CODIGO SECRETARIA DE HACIENDA | P6: RUBRO | Q6: PRESUPUESTO INICIAL | R6: MODIFICACIONES MES | S6: MODIFICACIONES ACUMULADAS | T6: PRESUPUESTO DEFINITIVO | U6: SUSPENSION | V6: APROPIACION DISPONIBLE | W6: COMPROMISOS MES | X6: COMPROMISOS ACUMULADOS | Y6: % EJEC PPTAL | Z6: AUTORIZACIONES DE GIRO | AB6: % EJEC AUT. GIRO
L7: MES | M7: ACUMULADO | Z7: MES | AA7: ACUMULADO
A8: TOTAL GASTOS + DISPONIBILIDAD FINAL | C8: 3850633264000 | E8: 103123947963 | F8: 3953757211963 | H8: 3953757211963 | I8: 65884762030 | J8: 1854015010847 | K8: 0.4689248508 | L8: 163849831580 | M8: 568128458594 | N8: 0.1436933095 | O8: TOTAL GASTOS + DISPONIBILIDAD FINAL | Q8: 3850633264000 | T8: 3850633264000 | V8: 3850633264000 | W8: 1669716571939 | X8: 1669716571939 | Y8: 0.4336212923 | Z8: 91962455314 | AA8: 91962455314 | AB8: 0.02388242375 | AC8: =F8-T8 -> 103123947963 | AD8: =D8-AC8 -> -103123947963 | AE8: =J8-X8 -> 184298438908 | AF8: =AE8-I8 -> 118413676878 | AG8: =M8-AA8 -> 476166003280 | AH8: =AG8-L8 -> 312316171700
A9: 300000000000000 | B9: GASTOS | C9: 3738823535000 | E9: 103123947963 | F9: 3841947482963 | H9: 3841947482963 | I9: 65884762030 | J9: 1854015010847 | K9: 0.4825716695 | L9: 163849831580 | M9: 568128458594 | N9: 0.1478751235 | O9: 300000000000000 | P9: GASTOS | Q9: 3738823535000 | T9: 3738823535000 | V9: 3738823535000 | W9: 1669716571939 | X9: 1669716571939 | Y9: 0.4465887615 | Z9: 91962455314 | AA9: 91962455314 | AB9: 0.02459662898 | AC9: =F9-T9 -> 103123947963 | AD9: =D9-AC9 -> -103123947963 | AE9: =J9-X9 -> 184298438908 | AF9: =AE9-I9 -> 118413676878 | AG9: =M9-AA9 -> 476166003280 | AH9: =AG9-L9 -> 312316171700
A10: 310000000000000 | B10: GASTOS DE FUNCIONAMIENTO | C10: 1236617326000 | E10: 5106678498 | F10: 1241724004498 | H10: 1241724004498 | I10: 59069916237 | J10: 543444973214 | K10: 0.4376535939 | L10: 88368939507 | M10: 293050703837 | N10: 0.2360030915 | O10: 310000000000000 | P10: GASTOS DE FUNCIONAMIENTO | Q10: 1236617326000 | T10: 1236617326000 | V10: 1236617326000 | W10: 377880174162 | X10: 377880174162 | Y10: 0.305575675 | Z10: 69460692751 | AA10: 69460692751 | AB10: 0.05616991715 | AC10: 5106678498 | AD10: -5106678498 | AE10: 165564799052 | AF10: 106494882815 | AG10: 223590011086 | AH10: 135221071579
A11: 311000000000000 | B11: SERVICIOS PERSONALES | C11: 322700565000 | D11: 6075157730 | E11: 10615091032 | F11: 333315656032 | H11: 333315656032 | I11: 25982675071 | J11: 123415295564 | K11: 0.3702655226 | L11: 27947260924 | M11: 91237198625 | N11: 0.2737261121 | O11: 311000000000000 | P11: SERVICIOS PERSONALES | Q11: 322700565000 | R11: 3615038405 | S11: 3615038405 | T11: 326315603405 | V11: 326315603405 | W11: 60083800098 | X11: 60083800098 | Y11: 0.1841278795 | Z11: 23255279004 | AA11: 23255279004 | AB11: 0.07126621823 | AC11: 7000052627 | AD11: -924894897 | AE11: 63331495466 | AF11: 37348820395 | AG11: 67981919621 | AH11: 40034658697
A12: 311010000000000 | B12: SERVICIOS PERSONALES ASOCIADOS A LA NOMINA | C12: 207592274000 | D12: -328464960 | E12: -1624175714 | F12: 205968098286 | H12: 205968098286 | I12: 13574335694 | J12: 56590254590 | K12: 0.2747525227 | L12: 13385116383 | M12: 56286994831 | N12: 0.2732801599 | O12: 311010000000000 | P12: SERVICIOS PERSONALES ASOCIADOS A LA NOMINA | Q12: 207592274000 | R12: -1536198850 | S12: -1536198850 | T12: 206056075150 | V12: 206056075150 | W12: 15276500628 | X12: 15276500628 | Y12: 0.07413758909 | Z12: 15276500628 | AA12: 15276500628 | AB12: 0.07413758909 | AC12: -87976864 | AD12: -240488096 | AE12: 41313753962 | AF12: 27739418268 | AG12: 41010494203 | AH12: 27625377820
A13: 00000311010100000000 | B13: SUELDOS PERSONAL DE NOMINA | C13: 119153276000 | D13: -542018928 | E13: -1410519691 | F13: 117742756309 | H13: 117742756309 | I13: 9535945233 | J13: 37124196105 | K13: 0.3152991935 | L13: 9533422897 | M13: 37121410619 | N13: 0.3152755361 | O13: 00000311010100000000 | P13: SUELDOS PERSONAL DE NOMINA | Q13: 119153276000 | R13: -1000073963 | S13: -1000073963 | T13: 118153202037 | V13: 118153202037 | W13: 8742016379 | X13: 8742016379 | Y13: 0.07398882323 | Z13: 8742016379 | AA13: 8742016379 | AB13: 0.07398882323 | AC13: -410445728 | AD13: -131573200 | AE13: 28382179726 | AF13: 18846234493 | AG13: 28379394240 | AH13: 18845971343
A14: 00000311010200000000 | B14: GASTOS DE REPRESENTACION | C14: 71675000 | F14: 71675000 | H14: 71675000 | I14: 6634277 | J14: 22687041 | K14: 0.3165265574 | L14: 6634277 | M14: 22687041 | N14: 0.3165265574 | O14: 00000311010200000000 | P14: GASTOS DE REPRESENTACION | Q14: 71675000 | T14: 71675000 | V14: 71675000 | W14: 5535436 | X14: 5535436 | Y14: 0.07722966167 | Z14: 5535436 | AA14: 5535436 | AB14: 0.07722966167 | AC14: 0 | AD14: 0 | AE14: 17151605 | AF14: 10517328 | AG14: 17151605 | AH14: 10517328
A15: 00000311010300000000 | B15: HORAS EXTRAS, DOMINICALES, FESTIVOS, RECARGO NOCTURNO Y TRA | C15: 11374267000 | D15: 3921480 | E15: -11429135 | F15: 11362837865 | H15: 11362837865 | I15: 1450701938 | J15: 5857129748 | K15: 0.5154636384 | L15: 1449456717 | M15: 5855884527 | N15: 0.5153540512 | O15: 00000311010300000000 | P15: HORAS EXTRAS, DOMINICALES, FESTIVOS, RECARGO NOCTURNO Y TRA | Q15: 11374267000 | R15: -17350615 | S15: -17350615 | T15: 11356916385 | V15: 11356916385 | W15: 1702924950 | X15: 1702924950 | Y15: 0.1499460674 | Z15: 1702924950 | AA15: 1702924950 | AB15: 0.1499460674 | AC15: 5921480 | AD15: -2000000 | AE15: 4154204798 | AF15: 2703502860 | AG15: 4152959577 | AH15: 2703502860
A16: 00000311010400000000 | B16: SUBSIDIO DE TRANSPORTE | C16: 1518813000 | E16: -213803 | F16: 1518599197 | H16: 1518599197 | I16: 100830217 | J16: 425362347 | K16: 0.2801017858 | L16: 100796566 | M16: 425297889 | N16: 0.2800593401 | O16: 00000311010400000000 | P16: SUBSIDIO DE TRANSPORTE | Q16: 1518813000 | R16: -213803 | S16: -213803 | T16: 1518599197 | V16: 1518599197 | W16: 130683384 | X16: 130683384 | Y16: 0.08605521737 | Z16: 130683384 | AA16: 130683384 | AB16: 0.08605521737 | AC16: 0 | AD16: 0 | AE16: 294678963 | AF16: 193848746 | AG16: 294614505 | AH16: 193817939
A17: 00000311010500000000 | B17: SUBSIDIO DE ALIMENTACION | C17: 8862554000 | E17: 2332021 | F17: 8864886021 | H17: 8864886021 | I17: 752900262 | J17: 3239720850 | K17: 0.3654554432 | L17: 752685392 | M17: 3239395325 | N17: 0.3654187225 | O17: 00000311010500000000 | P17: SUBSIDIO DE ALIMENTACION | Q17: 8862554000 | R17: 2332021 | S17: 2332021 | T17: 8864886021 | V17: 8864886021 | W17: 1015555830 | X17: 1015555830 | Y17: 0.1145593782 | Z17: 1015555830 | AA17: 1015555830 | AB17: 0.1145593782 | AC17: 0 | AD17: 0 | AE17: 2224165020 | AF17: 1471264758 | AG17: 2223839495 | AH17: 1471154103
A18: 00000311010600000000 | B18: BONIFICACION POR SERVICIOS PRESTADOS | C18: 428970000 | D18: 6840400 | E18: 5201331 | F18: 434171331 | H18: 434171331 | I18: 6663523 | J18: 62663145 | K18: 0.14432815 | L18: 6663523 | M18: 62663145 | N18: 0.14432815 | O18: 00000311010600000000 | P18: BONIFICACION POR SERVICIOS PRESTADOS | Q18: 428970000 | R18: -5127753 | S18: -5127753 | T18: 423842247 | V18: 423842247 | W18: 25910782 | X18: 25910782 | Y18: 0.06113308002 | Z18: 25910782 | AA18: 25910782 | AB18: 0.06113308002 | AC18: 10329084 | AD18: -3488684 | AE18: 36752363 | AF18: 30088840 | AG18: 36752363 | AH18: 30088840
A19: 00000311010700000000 | B19: PRIMA SEMESTRAL | C19: 13981393000 | D19: 14943032 | E19: 22564148 | F19: 14003957148 | H19: 14003957148 | I19: 13122933 | J19: 25957399 | K19: 0.001853576009 | L19: 11444156 | M19: 24278622 | N19: 0.00173369725 | O19: 00000311010700000000 | P19: PRIMA SEMESTRAL | Q19: 13981393000 | T19: 13981393000 | V19: 13981393000 | W19: 8349833 | X19: 8349833 | Y19: 0.0005972103781 | Z19: 8349833 | AA19: 8349833 | AB19: 0.0005972103781 | AC19: 22564148 | AD19: -7621116 | AE19: 17607566 | AF19: 4484633 | AG19: 15928789 | AH19: 4484633
A20: 00000311010900000000 | B20: PRIMA DE NAVIDAD | C20: 14466954000 | D20: 33725592 | E20: -110423280 | F20: 14356530720 | H20: 14356530720 | I20: 8709604 | J20: 11363857 | K20: 0.0007915461765 | L20: 7870717 | M20: 10524969 | N20: 0.0007331136752 | O20: 00000311010900000000 | P20: PRIMA DE NAVIDAD | Q20: 14466954000 | R20: -161349296 | S20: -161349296 | T20: 14305604704 | V20: 14305604704 | W20: 1003388 | X20: 1003388 | Y20: 7.013950272e-05 | Z20: 1003388 | AA20: 1003388 | AB20: 7.013950272e-05 | AC20: 50926016 | AD20: -17200424 | AE20: 10360469 | AF20: 1650865 | AG20: 9521581 | AH20: 1650864
A21: 00000311011000000000 | B21: PRIMA DE VACACIONES | C21: 15513705000 | D21: 31131320 | E21: -79703481 | F21: 15434001519 | H21: 15434001519 | I21: 608197788 | J21: 3326807836 | K21: 0.2155505707 | L21: 601876694 | M21: 3319449744 | N21: 0.2150738251 | O21: 00000311011000000000 | P21: PRIMA DE VACACIONES | Q21: 15513705000 | R21: -126712121 | S21: -126712121 | T21: 15386992879 | V21: 15386992879 | W21: 1034226019 | X21: 1034226019 | Y21: 0.06721430413 | Z21: 1034226019 | AA21: 1034226019 | AB21: 0.06721430413 | AC21: 47008640 | AD21: -15877320 | AE21: 2292581817 | AF21: 1684384029 | AG21: 2285223725 | AH21: 1683347031
A22: 00000311011100000000 | B22: PRIMA TECNICA | C22: 4202843000 | D22: 117264128 | E22: 45594918 | F22: 4248437918 | H22: 4248437918 | I22: 392145441 | J22: 1318254704 | K22: 0.3102916247 | L22: 392145441 | M22: 1318254704 | N22: 0.3102916247 | O22: 00000311011100000000 | P22: PRIMA TECNICA | Q22: 4202843000 | R22: -131475210 | S22: -131475210 | T22: 4071367790 | V22: 4071367790 | W22: 306310647 | X22: 306310647 | Y22: 0.07523531717 | Z22: 306310647 | AA22: 306310647 | AB22: 0.07523531717 | AC22: 177070128 | AD22: -59806000 | AE22: 1011944057 | AF22: 619798616 | AG22: 1011944057 | AH22: 619798616
A23: 00000311011200000000 | B23: OTRAS PRIMAS Y BONIFICACIONES | C23: 11618579000 | D23: 5728016 | E23: -87578742 | F23: 11531000258 | H23: 11531000258 | I23: 493414940 | J23: 3125901641 | K23: 0.2710867723 | L23: 331697042 | M23: 2851584906 | N23: 0.2472972719 | O23: 00000311011200000000 | P23: OTRAS PRIMAS Y BONIFICACIONES | Q23: 11618579000 | R23: -96228110 | S23: -96228110 | T23: 11522350890 | V23: 11522350890 | W23: 2047018976 | X23: 2047018976 | Y23: 0.1776563651 | Z23: 2047018976 | AA23: 2047018976 | AB23: 0.1776563651 | AC23: 8649368 | AD23: -2921352 | AE23: 1078882665 | AF23: 585467725 | AG23: 804565930 | AH23: 472868888
A24: 00000311011400000000 | B24: QUINQUENIO | C24: 4341645000 | F24: 4341645000 | H24: 4341645000 | I24: 205069538 | J24: 2031094457 | K24: 0.4678167969 | L24: 190422961 | M24: 2016447880 | N24: 0.4644432882 | O24: 00000311011400000000 | P24: QUINQUENIO | Q24: 4341645000 | T24: 4341645000 | V24: 4341645000 | W24: 237849544 | X24: 237849544 | Y24: 0.05478327777 | Z24: 237849544 | AA24: 237849544 | AB24: 0.05478327777 | AC24: 0 | AD24: 0 | AE24: 1793244913 | AF24: 1588175375 | AG24: 1778598336 | AH24: 1588175375
A25: 00000311011500000000 | B25: INDEMNIZACIONES LABORALES | C25: 1512000000 | F25: 1512000000 | H25: 1512000000 | J25: 19115460 | K25: 0.0126425 | M25: 19115460 | N25: 0.0126425 | O25: 00000311011500000000 | P25: INDEMNIZACIONES LABORALES | Q25: 1512000000 | T25: 1512000000 | V25: 1512000000 | W25: 19115460 | X25: 19115460 | Y25: 0.0126425 | Z25: 19115460 | AA25: 19115460 | AB25: 0.0126425 | AC25: 0 | AD25: 0 | AE25: 0 | AF25: 0 | AG25: 0 | AH25: 0
A26: 00000311011600000000 | B26: CONVENCIONES COLECTIVAS O CONVENIOS | C26: 545600000 | F26: 545600000 | H26: 545600000 | O26: 00000311011600000000 | P26: CONVENCIONES COLECTIVAS O CONVENIOS | Q26: 545600000 | T26: 545600000 | V26: 545600000 | AC26: 0 | AD26: 0 | AE26: 0 | AF26: 0 | AG26: 0 | AH26: 0
A27: 311020000000000 | B27: SERVICIOS PERSONALES INDIRECTOS | C27: 52943116000 | D27: 6215588602 | E27: 11516114068 | F27: 64459230068 | H27: 64459230068 | I27: 7780677159 | J27: 42361289517 | K27: 0.6571795765 | L27: 10518605612 | M27: 14997395280 | N27: 0.2326648218 | O27: 311020000000000 | P27: SERVICIOS PERSONALES INDIRECTOS | Q27: 52943116000 | R27: 4712018129 | S27: 4712018129 | T27: 57655134129 | V27: 57655134129 | W27: 33193043172 | X27: 33193043172 | Y27: 0.5757170402 | Z27: 279496097 | AA27: 279496097 | AB27: 0.004847722605 | AC27: 6804095939 | AD27: -588507337 | AE27: 9168246345 | AF27: 1387569186 | AG27: 14717899183 | AH27: 4199293571
A28: 00000311020300000000 | B28: HONORARIOS | C28: 43143000000 | D28: 153493470 | E28: 5441561452 | F28: 48584561452 | H28: 48584561452 | I28: 258922182 | J28: 33171977385 | K28: 0.6827678669 | L28: 2979055635 | M28: 6557703371 | N28: 0.1349750451 | O28: 00000311020300000000 | P28: HONORARIOS | Q28: 43143000000 | R28: 4759366645 | S28: 4759366645 | T28: 47902366645 | V28: 47902366645 | W28: 32158918764 | X28: 32158918764 | Y28: 0.6713430049 | Z28: 15321412 | AA28: 15321412 | AB28: 0.0003198466605 | AC28: 682194807 | AD28: -528701337 | AE28: 1013058621 | AF28: 754136439 | AG28: 6542381959 | AH28: 3563326324
A29: 00000311020400000000 | B29: REMUNERACION SERVICIOS TECNICOS | C29: 4240000000 | D29: 29831004 | E29: 29831004 | F29: 4269831004 | H29: 4269831004 | I29: 29829000 | J29: 856516223 | K29: 0.2005972185 | L29: 47624000 | M29: 106896000 | N29: 0.02503518287 | O29: 00000311020400000000 | P29: REMUNERACION SERVICIOS TECNICOS | Q29: 4240000000 | T29: 4240000000 | V29: 4240000000 | W29: 769949723 | X29: 769949723 | Y29: 0.1815919158 | AC29: 29831004 | AD29: 0 | AE29: 86566500 | AF29: 56737500 | AG29: 106896000 | AH29: 59272000
A30: 00000311029900000000 | B30: OTROS GASTOS DE PERSONAL | C30: 5560116000 | D30: 6032264128 | E30: 6044721612 | F30: 11604837612 | H30: 11604837612 | I30: 7491925977 | J30: 8332795909 | K30: 0.7180450246 | L30: 7491925977 | M30: 8332795909 | N30: 0.7180450246 | O30: 00000311029900000000 | P30: OTROS GASTOS DE PERSONAL | Q30: 5560116000 | R30: -47348516 | S30: -47348516 | T30: 5512767484 | V30: 5512767484 | W30: 264174685 | X30: 264174685 | Y30: 0.0479205201 | Z30: 264174685 | AA30: 264174685 | AB30: 0.0479205201 | AC30: 6092070128 | AD30: -59806000 | AE30: 8068621224 | AF30: 576695247 | AG30: 8068621224 | AH30: 576695247
A31: 311030000000000 | B31: APORTES PATRONALES AL SECTOR PUBLICO Y PRIVADO | C31: 62165175000 | D31: 188034088 | E31: 723152678 | F31: 62888327678 | H31: 62888327678 | I31: 4627662218 | J31: 24463751457 | K31: 0.3890030529 | L31: 4043538929 | M31: 19952808514 | N31: 0.3172736381 | O31: 311030000000000 | P31: APORTES PATRONALES AL SECTOR PUBLICO Y PRIVADO | Q31: 62165175000 | R31: 439219126 | S31: 439219126 | T31: 62604394126 | V31: 62604394126 | W31: 11614256298 | X31: 11614256298 | Y31: 0.1855182286 | Z31: 7699282279 | AA31: 7699282279 | AB31: 0.1229830971 | AC31: 283933552 | AD31: -95899464 | AE31: 12849495159 | AF31: 8221832941 | AG31: 12253526235 | AH31: 8209987306
A32: 00000311030100000000 | B32: CAJA DE COMPENSACION | C32: 7583715000 | D32: 20107384 | E32: -27358158 | F32: 7556356842 | H32: 7556356842 | I32: 769016936 | J32: 2229963741 | K32: 0.2951109625 | L32: 487003200 | M32: 1418195100 | N32: 0.1876823884 | O32: 00000311030100000000 | P32: CAJA DE COMPENSACION | Q32: 7583715000 | R32: -57720530 | S32: -57720530 | T32: 7525994470 | V32: 7525994470 | W32: 494391488 | X32: 494391488 | Y32: 0.06569118406 | Z32: 4381000 | AA32: 4381000 | AB32: 0.0005821157612 | AC32: 30362372 | AD32: -10254988 | AE32: 1735572253 | AF32: 966555317 | AG32: 1413814100 | AH32: 926810900
A33: 00000311030200000000 | B33: CESANTIAS | C33: 7200812000 | D33: 41575464 | E33: 918571312 | F33: 8119383312 | H33: 8119383312 | J33: 7397909592 | K33: 0.9111418082 | M33: 7397889441 | N33: 0.9111393263 | O33: 00000311030200000000 | P33: CESANTIAS | Q33: 7200812000 | R33: 855791900 | S33: 855791900 | T33: 8056603900 | V33: 8056603900 | W33: 7397915322 | X33: 7397915322 | Y33: 0.9182424026 | Z33: 7397376458 | AA33: 7397376458 | AB33: 0.9181755179 | AC33: 62779412 | AD33: -21203948 | AE33: -5730 | AF33: -5730 | AG33: 512983 | AH33: 512983
A34: 00000311030300000000 | B34: PENSIONES | C34: 17533115000 | D34: 64037808 | E34: -75857243 | F34: 17457257757 | H34: 17457257757 | I34: 1545909344 | J34: 6136464563 | K34: 0.3515136597 | L34: 1488765277 | M34: 4687160808 | N34: 0.2684935328 | O34: 00000311030300000000 | P34: PENSIONES | Q34: 17533115000 | R34: -172555039 | S34: -172555039 | T34: 17360559961 | V34: 17360559961 | W34: 1537215794 | X34: 1537215794 | Y34: 0.08854644075 | Z34: 96154989 | AA34: 96154989 | AB34: 0.005538703199 | AC34: 96697796 | AD34: -32659988 | AE34: 4599248769 | AF34: 3053339425 | AG34: 4591005819 | AH34: 3102240542
A35: 00000311030400000000 | B35: SALUD | C35: 23992277000 | D35: 32477280 | E35: -90862198 | F35: 23901414802 | H35: 23901414802 | I35: 1953090120 | J35: 7589445213 | K35: 0.3175312121 | L35: 1823317452 | M35: 5725444565 | N35: 0.2395441698 | O35: 00000311030400000000 | P35: SALUD | Q35: 23992277000 | R35: -139903246 | S35: -139903246 | T35: 23852373754 | V35: 23852373754 | W35: 1930205591 | X35: 1930205591 | Y35: 0.08092299789 | Z35: 195723632 | AA35: 195723632 | AB35: 0.0082056249 | AC35: 49041048 | AD35: -16563768 | AE35: 5659239622 | AF35: 3706149502 | AG35: 5529720933 | AH35: 3706403481
A36: 00000311030500000000 | B36: RIESGOS PROFESIONALES | C36: 1334593000 | D36: 4585024 | E36: -6268389 | F36: 1328324611 | H36: 1328324611 | I36: 111639500 | J36: 430796103 | K36: 0.3243153815 | L36: 109057800 | M36: 318366400 | N36: 0.2396751497 | O36: 00000311030500000000 | P36: RIESGOS PROFESIONALES | Q36: 1334593000 | R36: -13191829 | S36: -13191829 | T36: 1321401171 | V36: 1321401171 | W36: 102973814 | X36: 102973814 | Y36: 0.07792774538 | Z36: 169900 | AA36: 169900 | AB36: 0.0001285756391 | AC36: 6923440 | AD36: -2338416 | AE36: 327822289 | AF36: 216182789 | AG36: 318196500 | AH36: 209138700
A37: 00000311030600000000 | B37: ICBF | C37: 2730824000 | D37: 14963632 | E37: 2540271 | F37: 2733364271 | H37: 2733364271 | I37: 148798631 | J37: 407526006 | K37: 0.1490931927 | L37: 81234500 | M37: 243458900 | N37: 0.08906932112 | O37: 00000311030600000000 | P37: ICBF | Q37: 2730824000 | R37: -20054977 | S37: -20054977 | T37: 2710769023 | V37: 2710769023 | W37: 90952575 | X37: 90952575 | Y37: 0.03355231458 | Z37: 3285900 | AA37: 3285900 | AB37: 0.001212165246 | AC37: 22595248 | AD37: -7631616 | AE37: 316573431 | AF37: 167774800 | AG37: 240173000 | AH37: 158938500
A38: 00000311030700000000 | B38: SENA | C38: 1789839000 | D38: 10287496 | E38: 2387083 | F38: 1792226083 | H38: 1792226083 | I38: 99207687 | J38: 271646239 | K38: 0.1515691807 | L38: 54160700 | M38: 162293300 | N38: 0.09055403308 | O38: 00000311030700000000 | P38: SENA | Q38: 1789839000 | R38: -13147153 | S38: -13147153 | T38: 1776691847 | V38: 1776691847 | W38: 60601714 | X38: 60601714 | Y38: 0.03410929932 | Z38: 2190400 | AA38: 2190400 | AB38: 0.001232853071 | AC38: 15534236 | AD38: -5246740 | AE38: 211044525 | AF38: 111836838 | AG38: 160102900 | AH38: 105942200
A39: 312000000000000 | B39: GASTOS GENERALES | C39: 508410399000 | D39: -4960657326 | E39: -29975763770 | F39: 478434635230 | H39: 478434635230 | I39: 28316869244 | J39: 164600461026 | K39: 0.344039601 | L39: 29862730704 | M39: 72562613414 | N39: 0.1516667232 | O39: 312000000000000 | P39: GASTOS GENERALES | Q39: 508410399000 | R39: -29195617809 | S39: -29195617809 | T39: 479214781191 | V39: 479214781191 | W39: 100527903841 | X39: 100527903841 | Y39: 0.2097763003 | Z39: 14076634216 | AA39: 14076634216 | AB39: 0.02937437401 | AC39: -780145961 | AD39: -4180511365 | AE39: 64072557185 | AF39: 35755687941 | AG39: 58485979198 | AH39: 28623248494
A40: 312010000000000 | B40: ADQUISICION DE BIENES Y SERVICIOS | C40: 508410399000 | D40: -4960657326 | E40: -29975763770 | F40: 478434635230 | H40: 478434635230 | I40: 28316869244 | J40: 164600461026 | K40: 0.344039601 | L40: 29862730704 | M40: 72562613414 | N40: 0.1516667232 | O40: 312010000000000 | P40: ADQUISICION DE BIENES Y SERVICIOS | Q40: 508410399000 | R40: -29195617809 | S40: -29195617809 | T40: 479214781191 | V40: 479214781191 | W40: 100527903841 | X40: 100527903841 | Y40: 0.2097763003 | Z40: 14076634216 | AA40: 14076634216 | AB40: 0.02937437401 | AC40: -780145961 | AD40: -4180511365 | AE40: 64072557185 | AF40: 35755687941 | AG40: 58485979198 | AH40: 28623248494
A41: 00000312010100000000 | B41: DOTACION | C41: 3462394000 | E41: 102026758 | F41: 3564420758 | H41: 3564420758 | J41: 211494238 | K41: 0.05933481268 | M41: 22508070 | N41: 0.006314650129 | O41: 00000312010100000000 | P41: DOTACION | Q41: 3462394000 | T41: 3462394000 | V41: 3462394000 | W41: 500000 | X41: 500000 | Y41: 0.000144408753 | AC41: 102026758 | AD41: -102026758 | AE41: 210994238 | AF41: 210994238 | AG41: 22508070 | AH41: 22508070
A42: 00000312010200000000 | B42: MATERIALES Y SUMINISTROS | C42: 14360601000 | E42: -118000000 | F42: 14242601000 | H42: 14242601000 | J42: 8035515494 | K42: 0.5641887668 | L42: 61345900 | M42: 94882736 | N42: 0.006661896658 | O42: 00000312010200000000 | P42: MATERIALES Y SUMINISTROS | Q42: 14360601000 | R42: -106000000 | S42: -106000000 | T42: 14254601000 | V42: 14254601000 | W42: 7179498234 | X42: 7179498234 | Y42: 0.5036618166 | AC42: -12000000 | AD42: 12000000 | AE42: 856017260 | AF42: 856017260 | AG42: 94882736 | AH42: 33536836
A43: 00000312010300000000 | B43: ARRENDAMIENTOS | C43: 13288258000 | D43: 11137261 | E43: -115619303 | F43: 13172638697 | H43: 13172638697 | I43: 154588280 | J43: 8638681396 | K43: 0.6558049298 | L43: 137133462 | M43: 512188733 | N43: 0.03888277397 | O43: 00000312010300000000 | P43: ARRENDAMIENTOS | Q43: 13288258000 | R43: -126756564 | S43: -126756564 | T43: 13161501436 | V43: 13161501436 | W43: 8484093116 | X43: 8484093116 | Y43: 0.6446143821 | AC43: 11137261 | AD43: 0 | AE43: 154588280 | AF43: 0 | AG43: 512188733 | AH43: 375055271
A44: 00000312010400000000 | B44: GASTOS DE COMPUTADOR | C44: 33237587000 | D44: -103351463 | E44: -85852550 | F44: 33151734450 | H44: 33151734450 | I44: 858983354 | J44: 28986784381 | K44: 0.8743670538 | L44: 5059901407 | M44: 5059901407 | N44: 0.1526285575 | O44: 00000312010400000000 | P44: GASTOS DE COMPUTADOR | Q44: 33237587000 | R44: -85852550 | S44: -85852550 | T44: 33151734450 | V44: 33151734450 | W44: 26234946567 | X44: 26234946567 | Y44: 0.7913596981 | AC44: 0 | AD44: -103351463 | AE44: 2751837814 | AF44: 1892854460 | AG44: 5059901407 | AH44: 0
A45: 00000312010500000000 | B45: VIATICOS Y GASTOS DE VIAJE | C45: 994851000 | F45: 994851000 | H45: 994851000 | I45: 27837645 | J45: 93029984 | K45: 0.09351147458 | L45: 22861132 | M45: 87557382 | N45: 0.08801054831 | O45: 00000312010500000000 | P45: VIATICOS Y GASTOS DE VIAJE | Q45: 994851000 | T45: 994851000 | V45: 994851000 | W45: 21094056 | X45: 21094056 | Y45: 0.02120323144 | Z45: 21094056 | AA45: 21094056 | AB45: 0.02120323144 | AC45: 0 | AD45: 0 | AE45: 71935928 | AF45: 44098283 | AG45: 66463326 | AH45: 43602194
A46: 00000312010600000000 | B46: GASTOS DE TRANSPORTE Y COMUNICACIÓN | C46: 13130922000 | D46: -58575000 | E46: -254980000 | F46: 12875942000 | H46: 12875942000 | I46: 510011459 | J46: 3245336707 | K46: 0.252046546 | L46: 291833820 | M46: 1650177723 | N46: 0.1281597667 | O46: 00000312010600000000 | P46: GASTOS DE TRANSPORTE Y COMUNICACIÓN | Q46: 13130922000 | R46: -200325000 | S46: -200325000 | T46: 12930597000 | V46: 12930597000 | W46: 779155352 | X46: 779155352 | Y46: 0.06025671916 | Z46: 263447703 | AA46: 263447703 | AB46: 0.02037397832 | AC46: -54655000 | AD46: -3920000 | AE46: 2466181355 | AF46: 1956169896 | AG46: 1386730020 | AH46: 1094896200
A47: 00000312010700000000 | B47: IMPRESOS Y PUBLICACIONES | C47: 527293000 | D47: -3642000 | E47: -3642000 | F47: 523651000 | H47: 523651000 | I47: 8008471 | J47: 69488928 | K47: 0.1327008408 | L47: 9281971 | M47: 49580678 | N47: 0.09468267606 | O47: 00000312010700000000 | P47: IMPRESOS Y PUBLICACIONES | Q47: 527293000 | T47: 527293000 | V47: 527293000 | W47: 21665060 | X47: 21665060 | Y47: 0.04108732716 | Z47: 4862260 | AA47: 4862260 | AB47: 0.009221173048 | AC47: -3642000 | AD47: 0 | AE47: 47823868 | AF47: 39815397 | AG47: 44718418 | AH47: 35436447
A48: 00000312010800000000 | B48: SENTENCIAS JUDICIALES | C48: 750000000 | F48: 750000000 | H48: 750000000 | I48: 167983326 | J48: 167983326 | K48: 0.223977768 | L48: 167983326 | M48: 167983326 | N48: 0.223977768 | O48: 00000312010800000000 | P48: SENTENCIAS JUDICIALES | Q48: 750000000 | T48: 750000000 | V48: 750000000 | AC48: 0 | AD48: 0 | AE48: 167983326 | AF48: 0 | AG48: 167983326 | AH48: 0
A49: 00000312010900000000 | B49: MANTENIMIENTO Y REPARACIONES | C49: 70962890000 | D49: 15000000 | E49: -471561346 | F49: 70491328654 | H49: 70491328654 | I49: 4321273394 | J49: 23889929330 | K49: 0.3389059305 | L49: 2423315286 | M49: 2823486606 | N49: 0.04005438201 | O49: 00000312010900000000 | P49: MANTENIMIENTO Y REPARACIONES | Q49: 70962890000 | R49: -237790220 | S49: -237790220 | T49: 70725099780 | V49: 70725099780 | W49: 14423791024 | X49: 14423791024 | Y49: 0.2039416143 | Z49: 10617764 | AA49: 10617764 | AB49: 0.0001501272396 | AC49: -233771126 | AD49: 248771126 | AE49: 9466138306 | AF49: 5144864912 | AG49: 2812868842 | AH49: 389553556
A50: 00000312011000000000 | B50: COMBUSTIBLES, LUBRICANTES Y LLANTAS | C50: 5152897000 | D50: -1500000000 | E50: -1500000000 | F50: 3652897000 | H50: 3652897000 | I50: 40000000 | J50: 73998040 | K50: 0.02025735738 | O50: 00000312011000000000 | P50: COMBUSTIBLES, LUBRICANTES Y LLANTAS | Q50: 5152897000 | T50: 5152897000 | V50: 5152897000 | W50: 33998040 | X50: 33998040 | Y50: 0.006597849714 | AC50: -1500000000 | AD50: 0 | AE50: 40000000 | AF50: 0 | AG50: 0 | AH50: 0
A51: 00000312011100000000 | B51: SEGUROS | C51: 23885466000 | E51: 263999976 | F51: 24149465976 | H51: 24149465976 | I51: 2670975 | J51: 21910145816 | K51: 0.9072724771 | L51: 27968514 | M51: 15635265353 | N51: 0.6474373126 | O51: 00000312011100000000 | P51: SEGUROS | Q51: 23885466000 | T51: 23885466000 | V51: 23885466000 | W51: 20994817460 | X51: 20994817460 | Y51: 0.8789787673 | Z51: 11040406218 | AA51: 11040406218 | AB51: 0.4622227684 | AC51: 263999976 | AD51: -263999976 | AE51: 915328356 | AF51: 912657381 | AG51: 4594859135 | AH51: 4566890621
A52: 00000312011200000000 | B52: SUMINISTRO DE ALIMENTOS | C52: 3945800000 | E52: 358399035 | F52: 4304199035 | H52: 4304199035 | I52: 990000000 | J52: 1201230635 | K52: 0.2790834311 | M52: 31196215 | N52: 0.007247856046 | O52: 00000312011200000000 | P52: SUMINISTRO DE ALIMENTOS | Q52: 3945800000 | R52: 310000000 | S52: 310000000 | T52: 4255800000 | V52: 4255800000 | AC52: 48399035 | AD52: -48399035 | AE52: 1201230635 | AF52: 211230635 | AG52: 31196215 | AH52: 31196215
A53: 00000312011300000000 | B53: SERVICIOS PUBLICOS | C53: 5773285000 | F53: 5773285000 | H53: 5773285000 | I53: 99566778 | J53: 4762432967 | K53: 0.8249086901 | L53: 426202452 | M53: 1017163122 | N53: 0.1761844638 | O53: 00000312011300000000 | P53: SERVICIOS PUBLICOS | Q53: 5773285000 | T53: 5773285000 | V53: 5773285000 | W53: 1292055095 | X53: 1292055095 | Y53: 0.2237989455 | Z53: 129494595 | AA53: 129494595 | AB53: 0.02242996751 | AC53: 0 | AD53: 0 | AE53: 3470377872 | AF53: 3370811094 | AG53: 887668527 | AH53: 461466075
A54: 00000312011400000000 | B54: CAPACITACION | C54: 885200000 | D54: -3124968 | E54: -3862685 | F54: 881337315 | H54: 881337315 | J54: 151410050 | K54: 0.171795801 | L54: 11768522 | M54: 11768522 | N54: 0.01335302818 | O54: 00000312011400000000 | P54: CAPACITACION | Q54: 885200000 | T54: 885200000 | V54: 885200000 | W54: 151410050 | X54: 151410050 | Y54: 0.1710461478 | AC54: -3862685 | AD54: 737717 | AE54: 0 | AF54: 0 | AG54: 11768522 | AH54: 0
A55: 00000312011500000000 | B55: BIENESTAR E INCENTIVOS | C55: 4594000000 | F55: 4594000000 | H55: 4594000000 | O55: 00000312011500000000 | P55: BIENESTAR E INCENTIVOS | Q55: 4594000000 | T55: 4594000000 | V55: 4594000000 | AC55: 0 | AD55: 0 | AE55: 0 | AF55: 0 | AG55: 0 | AH55: 0
A56: 00000312011600000000 | B56: PROMOCION INSTITUCIONAL | C56: 3115000000 | F56: 3115000000 | H56: 3115000000 | I56: 1916000 | J56: 1108717700 | K56: 0.3559286356 | L56: 44139381 | M56: 44589381 | N56: 0.01431440803 | O56: 00000312011600000000 | P56: PROMOCION INSTITUCIONAL | Q56: 3115000000 | T56: 3115000000 | V56: 3115000000 | W56: 1094219148 | X56: 1094219148 | Y56: 0.3512742048 | AC56: 0 | AD56: 0 | AE56: 14498552 | AF56: 12582552 | AG56: 44589381 | AH56: 450000
A57: 00000312011700000000 | B57: IMPUESTOS, TASAS, CONTRIBUCIONES, DERECHOS Y MULTAS | C57: 299348017000 | D57: -3229258132 | E57: -28776350415 | F57: 270571666585 | H57: 270571666585 | I57: 21133207562 | J57: 57803037908 | K57: 0.2136330039 | L57: 20839036520 | M57: 44598801018 | N57: 0.1648317489 | O57: 00000312011700000000 | P57: IMPUESTOS, TASAS, CONTRIBUCIONES, DERECHOS Y MULTAS | Q57: 299348017000 | R57: -28162403139 | S57: -28162403139 | T57: 271185613861 | V57: 271185613861 | W57: 15612460731 | X57: 15612460731 | Y57: 0.05757112447 | Z57: 2606366802 | AA57: 2606366802 | AB57: 0.009611006885 | AC57: -613947276 | AD57: -2615310856 | AE57: 42190577177 | AF57: 21057369615 | AG57: 41992434216 | AH57: 21153397696
A58: 00000312011800000000 | B58: INTERESES Y COMISIONES | C58: 1843664000 | E58: 65180000 | F58: 1908844000 | H58: 1908844000 | J58: 1483664000 | K58: 0.7772578587 | L58: 247091 | M58: 1113962 | N58: 0.000583579381 | O58: 00000312011800000000 | P58: INTERESES Y COMISIONES | Q58: 1843664000 | T58: 1843664000 | V58: 1843664000 | W58: 1483664000 | X58: 1483664000 | Y58: 0.8047366548 | Z58: 344818 | AA58: 344818 | AB58: 0.000187028656 | AC58: 65180000 | AD58: -65180000 | AE58: 0 | AF58: 0 | AG58: 769144 | AH58: 522053
A59: 00000312011900000000 | B59: SALUD OCUPACIONAL | C59: 764775000 | F59: 764775000 | H59: 764775000 | J59: 51505611 | K59: 0.06734740414 | O59: 00000312011900000000 | P59: SALUD OCUPACIONAL | Q59: 764775000 | T59: 764775000 | V59: 764775000 | AC59: 0 | AD59: 0 | AE59: 51505611 | AF59: 51505611 | AG59: 0 | AH59: 0
A60: 00000312012000000000 | B60: PROGRAMAS Y CONVENIOS INSTITUCIONALES | C60: 142000000 | F60: 142000000 | H60: 142000000 | J60: 64157000 | K60: 0.4518098592 | M60: 64157000 | N60: 0.4518098592 | O60: 00000312012000000000 | P60: PROGRAMAS Y CONVENIOS INSTITUCIONALES | Q60: 142000000 | T60: 142000000 | V60: 142000000 | W60: 64157000 | X60: 64157000 | Y60: 0.4518098592 | AC60: 0 | AD60: 0 | AE60: 0 | AF60: 0 | AG60: 64157000 | AH60: 64157000
A61: 00000312019900000000 | B61: OTROS GASTOS GENERALES | C61: 8245499000 | D61: -88843024 | E61: 564498760 | F61: 8809997760 | H61: 8809997760 | I61: 822000 | J61: 2651917515 | K61: 0.3010122803 | L61: 339711920 | M61: 690292180 | N61: 0.07835327531 | O61: 00000312019900000000 | P61: OTROS GASTOS GENERALES | Q61: 8245499000 | R61: -586490336 | S61: -586490336 | T61: 7659008664 | V61: 7659008664 | W61: 2656378908 | X61: 2656378908 | Y61: 0.3468306441 | AC61: 1150989096 | AD61: -1239832120 | AE61: -4461393 | AF61: -5283393 | AG61: 690292180 | AH61: 350580260
A62: 313000000000000 | B62: TRANSFERENCIAS CORRIENTES | C62: 288946579000 | D62: 23166744 | E62: -1035966434 | F62: 287910612566 | H62: 287910612566 | I62: 13524080030 | J62: 121811058058 | K62: 0.4230863773 | L62: 20212408215 | M62: 63252984048 | N62: 0.2196966047 | O62: 313000000000000 | P62: TRANSFERENCIAS CORRIENTES | Q62: 288946579000 | R62: -1060405414 | S62: -1060405414 | T62: 287886173586 | V62: 287886173586 | W62: 74307406938 | X62: 74307406938 | Y62: 0.2581138441 | Z62: 14305393268 | AA62: 14305393268 | AB62: 0.04969114386 | AC62: 24438980 | AD62: -1272236 | AE62: 47503651120 | AF62: 33979571090 | AG62: 48947590780 | AH62: 28735182565
A63: 313030000000000 | B63: TRANSFERENCIAS DE PREVISION Y SEGURIDAD | C63: 266335378000 | D63: 23166744 | E63: -1035966434 | F63: 265299411566 | H63: 265299411566 | I63: 13515480030 | J63: 115538210984 | K63: 0.4355011958 | L63: 20203808215 | M63: 63149755858 | N63: 0.2380320238 | O63: 313030000000000 | P63: TRANSFERENCIAS DE PREVISION Y SEGURIDAD | Q63: 266335378000 | R63: -1060405414 | S63: -1060405414 | T63: 265274972586 | V63: 265274972586 | W63: 74231221448 | X63: 74231221448 | Y63: 0.2798274587 | Z63: 14229207778 | AA63: 14229207778 | AB63: 0.05363946564 | AC63: 24438980 | AD63: -1272236 | AE63: 41306989536 | AF63: 27791509506 | AG63: 48920548080 | AH63: 28716739865
A64: 00000313030100000000 | B64: PENSIONES Y JUBILACIONES | C64: 190660263000 | E64: -536848830 | F64: 190123414170 | H64: 190123414170 | I64: 13299740881 | J64: 52343557379 | K64: 0.2753135778 | L64: 13203740881 | M64: 52247557379 | N64: 0.2748086426 | O64: 00000313030100000000 | P64: PENSIONES Y JUBILACIONES | Q64: 190660263000 | R64: -536848830 | S64: -536848830 | T64: 190123414170 | V64: 190123414170 | W64: 12921652929 | X64: 12921652929 | Y64: 0.06796455337 | Z64: 12921652929 | AA64: 12921652929 | AB64: 0.06796455337 | AC64: 0 | AD64: 0 | AE64: 39421904450 | AF64: 26122163569 | AG64: 39325904450 | AH64: 26122163569
A65: 00000313030200000000 | B65: CESANTIAS | C65: 14141377000 | D65: 23166744 | E65: -499117604 | F65: 13642259396 | H65: 13642259396 | I65: 630290861 | J65: 3367278747 | K65: 0.2468270577 | L65: 568143696 | M65: 3305131582 | N65: 0.2422715685 | O65: 00000313030200000000 | P65: CESANTIAS | Q65: 14141377000 | R65: -523556584 | S65: -523556584 | T65: 13617820416 | V65: 13617820416 | W65: 1307554849 | X65: 1307554849 | Y65: 0.09601792424 | Z65: 1307554849 | AA65: 1307554849 | AB65: 0.09601792424 | AC65: 24438980 | AD65: -1272236 | AE65: 2059723898 | AF65: 1429433037 | AG65: 1997576733 | AH65: 1429433037
A66: 00000313030300000000 | B66: OTRAS TRANSFERENCIAS DE PREVISION Y SEGURIDAD SOCIAL | C66: 61533738000 | F66: 61533738000 | H66: 61533738000 | I66: -414551712 | J66: 59827374858 | K66: 0.9722694704 | L66: 6431923638 | M66: 7597066897 | N66: 0.1234618137 | O66: 00000313030300000000 | P66: OTRAS TRANSFERENCIAS DE PREVISION Y SEGURIDAD SOCIAL | Q66: 61533738000 | T66: 61533738000 | V66: 61533738000 | W66: 60002013670 | X66: 60002013670 | Y66: 0.975107569 | AC66: 0 | AD66: 0 | AE66: -174638812 | AF66: 239912900 | AG66: 7597066897 | AH66: 1165143259
A67: 313040000000000 | B67: OTRAS TRANSFERENCIAS | C67: 22611201000 | F67: 22611201000 | H67: 22611201000 | I67: 8600000 | J67: 6272847074 | K67: 0.2774221092 | L67: 8600000 | M67: 103228190 | N67: 0.004565356347 | O67: 313040000000000 | P67: OTRAS TRANSFERENCIAS | Q67: 22611201000 | T67: 22611201000 | V67: 22611201000 | W67: 76185490 | X67: 76185490 | Y67: 0.003369369455 | Z67: 76185490 | AA67: 76185490 | AB67: 0.003369369455 | AC67: 0 | AD67: 0 | AE67: 6196661584 | AF67: 6188061584 | AG67: 27042700 | AH67: 18442700
A68: 00000313040200000000 | B68: PRESTAMOS DE BIENESTAR | C68: 611201000 | F68: 611201000 | H68: 611201000 | I68: 8600000 | J68: 103228190 | K68: 0.1688940136 | L68: 8600000 | M68: 103228190 | N68: 0.1688940136 | O68: 00000313040200000000 | P68: PRESTAMOS DE BIENESTAR | Q68: 611201000 | T68: 611201000 | V68: 611201000 | W68: 76185490 | X68: 76185490 | Y68: 0.1246488307 | Z68: 76185490 | AA68: 76185490 | AB68: 0.1246488307 | AC68: 0 | AD68: 0 | AE68: 27042700 | AF68: 18442700 | AG68: 27042700 | AH68: 18442700
A69: 00000313040300000000 | B69: PRESTAMOS FONDO DE VIVIENDA | C69: 22000000000 | F69: 22000000000 | H69: 22000000000 | J69: 6169618884 | K69: 0.280437222 | O69: 00000313040300000000 | P69: PRESTAMOS FONDO DE VIVIENDA | Q69: 22000000000 | T69: 22000000000 | V69: 22000000000 | AC69: 0 | AD69: 0 | AE69: 6169618884 | AF69: 6169618884 | AG69: 0 | AH69: 0
A70: 314000000000000 | B70: CUENTAS POR PAGAR | C70: 116559783000 | D70: -1137667148 | E70: 25503317670 | F70: 142063100670 | H70: 142063100670 | I70: -8753708108 | J70: 133618158566 | K70: 0.9405549924 | L70: 10346539664 | M70: 65997907750 | N70: 0.4645675579 | O70: 314000000000000 | P70: CUENTAS POR PAGAR | Q70: 116559783000 | R70: 26640984818 | S70: 26640984818 | T70: 143200767818 | V70: 143200767818 | W70: 142961063285 | X70: 142961063285 | Y70: 0.9983260946 | Z70: 17823386263 | AA70: 17823386263 | AB70: 0.1244643205 | AC70: -1137667148 | AD70: 0 | AE70: -9342904719 | AF70: -589196611 | AG70: 48174521487 | AH70: 37827981823
A71: 00000314000000000000 | B71: CUENTAS POR PAGAR | C71: 116559783000 | D71: -1137667148 | E71: 25503317670 | F71: 142063100670 | H71: 142063100670 | I71: -8753708108 | J71: 133618158566 | K71: 0.9405549924 | L71: 10346539664 | M71: 65997907750 | N71: 0.4645675579 | O71: 00000314000000000000 | P71: CUENTAS POR PAGAR | Q71: 116559783000 | R71: 26640984818 | S71: 26640984818 | T71: 143200767818 | V71: 143200767818 | W71: 142961063285 | X71: 142961063285 | Y71: 0.9983260946 | Z71: 17823386263 | AA71: 17823386263 | AB71: 0.1244643205 | AC71: -1137667148 | AD71: 0 | AE71: -9342904719 | AF71: -589196611 | AG71: 48174521487 | AH71: 37827981823
A72: 320000000000000 | B72: GASTOS DE OPERACIÓN | C72: 320996098000 | E72: 23210171796 | F72: 344206269796 | H72: 344206269796 | I72: 5611084909 | J72: 252536165047 | K72: 0.7336768305 | L72: 27005950256 | M72: 91674917697 | N72: 0.2663371523 | O72: 320000000000000 | P72: GASTOS DE OPERACIÓN | Q72: 320996098000 | T72: 320996098000 | V72: 320996098000 | W72: 240834217349 | X72: 240834217349 | Y72: 0.7502714795 | Z72: 17487795633 | AA72: 17487795633 | AB72: 0.05447977636 | AC72: 23210171796 | AD72: -23210171796 | AE72: 11701947698 | AF72: 6090862789 | AG72: 74187122064 | AH72: 47181171808
A73: 321000000000000 | B73: GASTOS DE COMERCIALIZACION | C73: 121536854000 | D73: 4000000 | E73: 28468959480 | F73: 150005813480 | H73: 150005813480 | I73: 1156839 | J73: 77518282403 | K73: 0.5167685212 | L73: 4241066053 | M73: 20041829482 | N73: 0.1336070184 | O73: 321000000000000 | P73: GASTOS DE COMERCIALIZACION | Q73: 121536854000 | R73: 15254787684 | S73: 15254787684 | T73: 136791641684 | V73: 136791641684 | W73: 76242247276 | X73: 76242247276 | Y73: 0.557360423 | AC73: =F73-T73 -> 13214171796 | AD73: =D73-AC73 -> -13210171796 | AE73: =J73-X73 -> 1276035127 | AF73: =AE73-I73 -> 1274878288 | AG73: =M73-AA73 -> 20041829482 | AH73: =AG73-L73 -> 15800763429
A74: 321010000000000 | B74: COMPRA DE BIENES PARA LA VENTA | C74: 14000000000 | F74: 14000000000 | H74: 14000000000 | J74: 13999992223 | K74: 0.9999994445 | O74: 321010000000000 | P74: COMPRA DE BIENES PARA LA VENTA | Q74: 14000000000 | T74: 14000000000 | V74: 14000000000 | W74: 13999992223 | X74: 13999992223 | Y74: 0.9999994445 | AC74: 0 | AD74: 0 | AE74: 0 | AF74: 0 | AG74: 0 | AH74: 0
A75: 00000321010100000000 | B75: MEDIDORES | C75: 14000000000 | F75: 14000000000 | H75: 14000000000 | J75: 13999992223 | K75: 0.9999994445 | O75: 00000321010100000000 | P75: MEDIDORES | Q75: 14000000000 | T75: 14000000000 | V75: 14000000000 | W75: 13999992223 | X75: 13999992223 | Y75: 0.9999994445 | AC75: 0 | AD75: 0 | AE75: 0 | AF75: 0 | AG75: 0 | AH75: 0
A76: 321020000000000 | B76: COMPRA DE SERVICIOS PARA LA VENTA | C76: 12817034000 | E76: 20254171796 | F76: 33071205796 | H76: 33071205796 | J76: 28124373051 | K76: 0.8504187366 | L76: 2814561376 | M76: 16780588242 | N76: 0.5074078141 | O76: 321020000000000 | P76: COMPRA DE SERVICIOS PARA LA VENTA | Q76: 12817034000 | R76: 17301135099 | S76: 17301135099 | T76: 30118169099 | V76: 30118169099 | W76: 26850301362 | X76: 26850301362 | Y76: 0.8914984597 | AC76: 2953036697 | AD76: -2953036697 | AE76: 1274071689 | AF76: 1274071689 | AG76: 16780588242 | AH76: 13966026866
A77: 00000321020100000000 | B77: GESTION COMERCIAL | C77: 12817034000 | E77: 450000000 | F77: 13267034000 | H77: 13267034000 | J77: 9862267757 | K77: 0.7433664342 | L77: 49841529 | M77: 49841529 | N77: 0.003756795151 | O77: 00000321020100000000 | P77: GESTION COMERCIAL | Q77: 12817034000 | T77: 12817034000 | V77: 12817034000 | W77: 9671731782 | X77: 9671731782 | Y77: 0.7545998382 | AC77: 450000000 | AD77: -450000000 | AE77: 190535975 | AF77: 190535975 | AG77: 49841529 | AH77: 0
A78: 00000321020400000000 | B78: PROCESO ASEO | E78: 19804171796 | F78: 19804171796 | H78: 19804171796 | J78: 18262105294 | K78: 0.9221342595 | L78: 2764719847 | M78: 16730746713 | N78: 0.8448092092 | O78: 00000321020400000000 | P78: PROCESO ASEO | R78: 17301135099 | S78: 17301135099 | T78: 17301135099 | V78: 17301135099 | W78: 17178569580 | X78: 17178569580 | Y78: 0.9929157527 | AC78: 2503036697 | AD78: -2503036697 | AE78: 1083535714 | AF78: 1083535714 | AG78: 16730746713 | AH78: 13966026866
A79: 321030000000000 | B79: OTROS GASTOS DE COMERCIALIZACION | C79: 94719820000 | D79: 4000000 | E79: 8214787684 | F79: 102934607684 | H79: 102934607684 | I79: 1156839 | J79: 35393917129 | K79: 0.3438485649 | L79: 1426504677 | M79: 3261241240 | N79: 0.03168265089 | O79: 321030000000000 | P79: OTROS GASTOS DE COMERCIALIZACION | Q79: 94719820000 | R79: -2046347415 | S79: -2046347415 | T79: 92673472585 | V79: 92673472585 | W79: 35391953691 | X79: 35391953691 | Y79: 0.3818995091 | AC79: 10261135099 | AD79: -10257135099 | AE79: 1963438 | AF79: 806599 | AG79: 3261241240 | AH79: 1834736563
A80: 00000321030100000000 | B80: MANTENIMIENTO Y MATERIALES OPERACION INF AC Y AL | C80: 88789820000 | D80: 4000000 | E80: 2960000000 | F80: 91749820000 | H80: 91749820000 | I80: 1156839 | J80: 35393917129 | K80: 0.3857655212 | L80: 1426504677 | M80: 3261241240 | N80: 0.03554493339 | O80: 00000321030100000000 | P80: MANTENIMIENTO Y MATERIALES OPERACION INF AC Y AL | Q80: 88789820000 | R80: -7301135099 | S80: -7301135099 | T80: 81488684901 | V80: 81488684901 | W80: 35391953691 | X80: 35391953691 | Y80: 0.4343173992 | AC80: 10261135099 | AD80: -10257135099 | AE80: 1963438 | AF80: 806599 | AG80: 3261241240 | AH80: 1834736563
A81: 00000321030200000000 | B81: COMERCIALIZACION DE ENERGIA - CHSA | C81: 150000000 | F81: 150000000 | H81: 150000000 | O81: 00000321030200000000 | P81: COMERCIALIZACION DE ENERGIA - CHSA | Q81: 150000000 | T81: 150000000 | V81: 150000000 | AC81: 0 | AD81: 0 | AE81: 0 | AF81: 0 | AG81: 0 | AH81: 0
A82: 00000321030400000000 | B82: FONDO ATENCION DE EMERGENCIAS | C82: 4280000000 | E82: -97707731 | F82: 4182292269 | H82: 4182292269 | O82: 00000321030400000000 | P82: FONDO ATENCION DE EMERGENCIAS | Q82: 4280000000 | R82: -97707731 | S82: -97707731 | T82: 4182292269 | V82: 4182292269 | AC82: 0 | AD82: 0 | AE82: 0 | AF82: 0 | AG82: 0 | AH82: 0
A83: 00000321030600000000 | B83: FONDO OBLIGACIONES CONTINGENTES | C83: 1500000000 | E83: 5352495415 | F83: 6852495415 | H83: 6852495415 | O83: 00000321030600000000 | P83: FONDO OBLIGACIONES CONTINGENTES | Q83: 1500000000 | R83: 5352495415 | S83: 5352495415 | T83: 6852495415 | V83: 6852495415 | AC83: 0 | AD83: 0 | AE83: 0 | AF83: 0 | AG83: 0 | AH83: 0
A84: 322000000000000 | B84: GASTOS DE PRODUCCION | C84: 99780483000 | E84: -5352495415 | F84: 94427987585 | H84: 94427987585 | I84: 5620692748 | J84: 76265157680 | K84: 0.8076541673 | L84: 4292847709 | M84: 12711531170 | N84: 0.1346161397 | O84: 322000000000000 | P84: GASTOS DE PRODUCCION | Q84: 99780483000 | R84: -15352495415 | S84: -15352495415 | T84: 84427987585 | V84: 84427987585 | W84: 65815501342 | X84: 65815501342 | Y84: 0.7795460158 | AC84: 10000000000 | AD84: -10000000000 | AE84: 10449656338 | AF84: 4828963590 | AG84: 12711531170 | AH84: 8418683461
A85: 322010000000000 | B85: INDUSTRIAL | C85: 99780483000 | E85: -5352495415 | F85: 94427987585 | H85: 94427987585 | I85: 5620692748 | J85: 76265157680 | K85: 0.8076541673 | L85: 4292847709 | M85: 12711531170 | N85: 0.1346161397 | O85: 322010000000000 | P85: INDUSTRIAL | Q85: 99780483000 | R85: -15352495415 | S85: -15352495415 | T85: 84427987585 | V85: 84427987585 | W85: 65815501342 | X85: 65815501342 | Y85: 0.7795460158 | AC85: 10000000000 | AD85: -10000000000 | AE85: 10449656338 | AF85: 4828963590 | AG85: 12711531170 | AH85: 8418683461
A86: 00000322010200000000 | B86: PRODUCTOS QUIMICOS | C86: 18831920000 | E86: 5791793667 | F86: 24623713667 | H86: 24623713667 | I86: 5620692748 | J86: 21763772834 | K86: 0.8838542036 | L86: 370157524 | M86: 1353695897 | N86: 0.05497529395 | O86: 00000322010200000000 | P86: PRODUCTOS QUIMICOS | Q86: 18831920000 | R86: 5791793667 | S86: 5791793667 | T86: 24623713667 | V86: 24623713667 | W86: 13449675736 | X86: 13449675736 | Y86: 0.5462082575 | AC86: 0 | AD86: 0 | AE86: 8314097098 | AF86: 2693404350 | AG86: 1353695897 | AH86: 983538373
A87: 00000322010300000000 | B87: ENERGIA PARA BOMBEO | C87: 54142290000 | F87: 54142290000 | H87: 54142290000 | J87: 54142290000 | K87: 1 | L87: 3922690185 | M87: 10998740427 | N87: 0.203145091 | O87: 00000322010300000000 | P87: ENERGIA PARA BOMBEO | Q87: 54142290000 | T87: 54142290000 | V87: 54142290000 | W87: 52006730760 | X87: 52006730760 | Y87: 0.9605565402 | AC87: 0 | AD87: 0 | AE87: 2135559240 | AF87: 2135559240 | AG87: 10998740427 | AH87: 7076050242
A88: 00000322010400000000 | B88: TASA POR USO DE AGUA | C88: 4306273000 | F88: 4306273000 | H88: 4306273000 | J88: 359094846 | K88: 0.08338877865 | M88: 359094846 | N88: 0.08338877865 | O88: 00000322010400000000 | P88: TASA POR USO DE AGUA | Q88: 4306273000 | T88: 4306273000 | V88: 4306273000 | W88: 359094846 | X88: 359094846 | Y88: 0.08338877865 | AC88: 0 | AD88: 0 | AE88: 0 | AF88: 0 | AG88: 359094846 | AH88: 359094846
A89: 00000322011000000000 | B89: ASISTENCIA OPERACIÓN | C89: 22500000000 | E89: -11144289082 | F89: 11355710918 | H89: 11355710918 | O89: 00000322011000000000 | P89: ASISTENCIA OPERACIÓN | Q89: 22500000000 | R89: -21144289082 | S89: -21144289082 | T89: 1355710918 | V89: 1355710918 | AC89: 10000000000 | AD89: -10000000000 | AE89: 0 | AF89: 0 | AG89: 0 | AH89: 0
A90: 324000000000000 | B90: CUENTAS POR PAGAR | C90: 99678761000 | D90: -4000000 | E90: 93707731 | F90: 99772468731 | H90: 99772468731 | I90: -10764678 | J90: 98752724964 | K90: 0.9897793071 | L90: 18472036494 | M90: 58921557045 | N90: 0.5905592775 | O90: 324000000000000 | P90: CUENTAS POR PAGAR | Q90: 99678761000 | R90: 97707731 | S90: 97707731 | T90: 99776468731 | V90: 99776468731 | W90: 98776468731 | X90: 98776468731 | Y90: 0.9899775968 | Z90: 17487795633 | AA90: 17487795633 | AB90: 0.175269739 | AC90: -4000000 | AD90: 0 | AE90: -23743767 | AF90: -12979089 | AG90: 41433761412 | AH90: 22961724918
A91: 00000324000000000000 | B91: CUENTAS POR PAGAR | C91: 99678761000 | D91: -4000000 | E91: 93707731 | F91: 99772468731 | H91: 99772468731 | I91: -10764678 | J91: 98752724964 | K91: 0.9897793071 | L91: 18472036494 | M91: 58921557045 | N91: 0.5905592775 | O91: 00000324000000000000 | P91: CUENTAS POR PAGAR | Q91: 99678761000 | R91: 97707731 | S91: 97707731 | T91: 99776468731 | V91: 99776468731 | W91: 98776468731 | X91: 98776468731 | Y91: 0.9899775968 | Z91: 17487795633 | AA91: 17487795633 | AB91: 0.175269739 | AC91: -4000000 | AD91: 0 | AE91: -23743767 | AF91: -12979089 | AG91: 41433761412 | AH91: 22961724918
A92: 330000000000000 | B92: SERVICIO DE LA DEUDA | C92: 94315746000 | F92: 94315746000 | H92: 94315746000 | I92: 309026000 | J92: 57201187541 | K92: 0.606486085 | L92: 313919699 | M92: 23357646656 | N92: 0.2476537338 | O92: 330000000000000 | P92: SERVICIO DE LA DEUDA | Q92: 94315746000 | T92: 94315746000 | V92: 94315746000 | W92: 56534716182 | X92: 56534716182 | Y92: 0.5994197001 | Z92: 10693059 | AA92: 10693059 | AB92: 0.0001133751198 | AC92: 0 | AD92: 0 | AE92: 666471359 | AF92: 357445359 | AG92: 23346953597 | AH92: 23033033898
A93: 331000000000000 | B93: DEUDA INTERNA | C93: 78014332000 | F93: 78014332000 | H93: 78014332000 | J93: 56472715561 | K93: 0.7238761663 | M93: 22665801139 | N93: 0.2905338104 | O93: 331000000000000 | P93: DEUDA INTERNA | Q93: 78014332000 | T93: 78014332000 | V93: 78014332000 | W93: 56472715561 | X93: 56472715561 | Y93: 0.7238761663 | AC93: 0 | AD93: 0 | AE93: 0 | AF93: 0 | AG93: 22665801139 | AH93: 22665801139
A94: 00000331010000000000 | B94: AMORTIZACION CAPITAL | C94: 31446890000 | F94: 31446890000 | H94: 31446890000 | J94: 31446888900 | K94: 0.999999965 | M94: 13701444444 | N94: 0.4357010962 | O94: 00000331010000000000 | P94: AMORTIZACION CAPITAL | Q94: 31446890000 | T94: 31446890000 | V94: 31446890000 | W94: 31446888900 | X94: 31446888900 | Y94: 0.999999965 | AC94: 0 | AD94: 0 | AE94: 0 | AF94: 0 | AG94: 13701444444 | AH94: 13701444444
A95: 00000331020000000000 | B95: INTERESES | C95: 44449342000 | F95: 44449342000 | H95: 44449342000 | J95: 25025826661 | K95: 0.563019058 | M95: 8964356695 | N95: 0.201675802 | O95: 00000331020000000000 | P95: INTERESES | Q95: 44449342000 | T95: 44449342000 | V95: 44449342000 | W95: 25025826661 | X95: 25025826661 | Y95: 0.563019058 | AC95: 0 | AD95: 0 | AE95: 0 | AF95: 0 | AG95: 8964356695 | AH95: 8964356695
A96: 00000331030000000000 | B96: COMISIONES Y OTROS | C96: 2118100000 | F96: 2118100000 | H96: 2118100000 | O96: 00000331030000000000 | P96: COMISIONES Y OTROS | Q96: 2118100000 | T96: 2118100000 | V96: 2118100000 | AC96: 0 | AD96: 0 | AE96: 0 | AF96: 0 | AG96: 0 | AH96: 0
A97: 332000000000000 | B97: DEUDA EXTERNA | C97: 200000000 | F97: 200000000 | H97: 200000000 | O97: 332000000000000 | P97: DEUDA EXTERNA | Q97: 200000000 | T97: 200000000 | V97: 200000000 | AC97: 0 | AD97: 0 | AE97: 0 | AF97: 0 | AG97: 0 | AH97: 0
A98: 00000332030000000000 | B98: COMISIONES Y OTROS | C98: 200000000 | F98: 200000000 | H98: 200000000 | O98: 00000332030000000000 | P98: COMISIONES Y OTROS | Q98: 200000000 | T98: 200000000 | V98: 200000000 | AC98: 0 | AD98: 0 | AE98: 0 | AF98: 0 | AG98: 0 | AH98: 0
A99: 333000000000000 | B99: BONOS PENSIONALES | C99: 3203150000 | F99: 3203150000 | H99: 3203150000 | I99: 309026000 | J99: 672543359 | K99: 0.2099631172 | L99: 309026000 | M99: 672543359 | N99: 0.2099631172 | O99: 333000000000000 | P99: BONOS PENSIONALES | Q99: 3203150000 | T99: 3203150000 | V99: 3203150000 | W99: 6072000 | X99: 6072000 | Y99: 0.001895633985 | Z99: 6072000 | AA99: 6072000 | AB99: 0.001895633985 | AC99: 0 | AD99: 0 | AE99: 666471359 | AF99: 357445359 | AG99: 666471359 | AH99: 357445359
A100: 00000333010000000000 | B100: BONOS PENSIONALES | C100: 3203150000 | F100: 3203150000 | H100: 3203150000 | I100: 309026000 | J100: 672543359 | K100: 0.2099631172 | L100: 309026000 | M100: 672543359 | N100: 0.2099631172 | O100: 00000333010000000000 | P100: BONOS PENSIONALES | Q100: 3203150000 | T100: 3203150000 | V100: 3203150000 | W100: 6072000 | X100: 6072000 | Y100: 0.001895633985 | Z100: 6072000 | AA100: 6072000 | AB100: 0.001895633985 | AC100: 0 | AD100: 0 | AE100: 666471359 | AF100: 357445359 | AG100: 666471359 | AH100: 357445359
A101: 334000000000000 | B101: CUENTAS POR PAGAR | C101: 55929000 | F101: 55929000 | H101: 55929000 | J101: 55928621 | K101: 0.9999932236 | L101: 4893699 | M101: 19302158 | N101: 0.3451189544 | O101: 334000000000000 | P101: CUENTAS POR PAGAR | Q101: 55929000 | T101: 55929000 | V101: 55929000 | W101: 55928621 | X101: 55928621 | Y101: 0.9999932236 | Z101: 4621059 | AA101: 4621059 | AB101: 0.08262366572 | AC101: 0 | AD101: 0 | AE101: 0 | AF101: 0 | AG101: 14681099 | AH101: 9787400
A102: 00000334000000000000 | B102: CUENTAS POR PAGAR | C102: 55929000 | F102: 55929000 | H102: 55929000 | J102: 55928621 | K102: 0.9999932236 | L102: 4893699 | M102: 19302158 | N102: 0.3451189544 | O102: 00000334000000000000 | P102: CUENTAS POR PAGAR | Q102: 55929000 | T102: 55929000 | V102: 55929000 | W102: 55928621 | X102: 55928621 | Y102: 0.9999932236 | Z102: 4621059 | AA102: 4621059 | AB102: 0.08262366572 | AC102: 0 | AD102: 0 | AE102: 0 | AF102: 0 | AG102: 14681099 | AH102: 9787400
A103: 338000000000000 | B103: FONDO OBLIGACIONES CONTINGENTES | C103: 12842335000 | F103: 12842335000 | H103: 12842335000 | O103: 338000000000000 | P103: FONDO OBLIGACIONES CONTINGENTES | Q103: 12842335000 | T103: 12842335000 | V103: 12842335000 | AC103: 0 | AD103: 0 | AE103: 0 | AF103: 0 | AG103: 0 | AH103: 0
A104: 00000338000000000000 | B104: FONDO OBLIGACIONES CONTINGENTES | C104: 12842335000 | F104: 12842335000 | H104: 12842335000 | O104: 00000338000000000000 | P104: FONDO OBLIGACIONES CONTINGENTES | Q104: 12842335000 | T104: 12842335000 | V104: 12842335000 | AC104: 0 | AD104: 0 | AE104: 0 | AF104: 0 | AG104: 0 | AH104: 0
A105: 340000000000000 | B105: GASTOS DE INVERSION | C105: 2086894365000 | E105: 74807097669 | F105: 2161701462669 | H105: 2161701462669 | I105: 894734884 | J105: 1000832685045 | K105: 0.4629837664 | L105: 48161022118 | M105: 160045190404 | N105: 0.07403667582 | O105: 340000000000000 | P105: GASTOS DE INVERSION | Q105: 2086894365000 | T105: 2086894365000 | V105: 2086894365000 | W105: 994467464246 | X105: 994467464246 | Y105: 0.4765298526 | Z105: 5003273871 | AA105: 5003273871 | AB105: 0.002397473468 | AC105: 74807097669 | AD105: -74807097669 | AE105: 6365220799 | AF105: 5470485915 | AG105: 155041916533 | AH105: 106880894415
A106: 341000000000000 | B106: DIRECTA | C106: 1115022286000 | D106: -58217591813 | E106: -52076250011 | F106: 1062946035989 | H106: 1062946035989 | I106: 2793316568 | J106: 513233937727 | K106: 0.4828410101 | L106: 8532490344 | M106: 19407120973 | N106: 0.018257861 | O106: 341000000000000 | P106: DIRECTA | Q106: 1115022286000 | R106: -14064202605 | S106: -14064202605 | T106: 1100958083395 | V106: 1100958083395 | W106: 509406791208 | X106: 509406791208 | Y106: 0.4626940834 | AC106: -38012047406 | AD106: -20205544407 | AE106: 3827146519 | AF106: 1033829951 | AG106: 19407120973 | AH106: 10874630629
A107: 3411500000000000 | B107: BOGOTA MEJOR PARA TODOS | C107: 1115022286000 | D107: -58217591813 | E107: -52076250011 | F107: 1062946035989 | H107: 1062946035989 | I107: 2793316568 | J107: 513233937727 | K107: 0.4828410101 | L107: 8532490344 | M107: 19407120973 | N107: 0.018257861 | O107: 3411500000000000 | P107: BOGOTA MEJOR PARA TODOS | Q107: 1115022286000 | R107: -14064202605 | S107: -14064202605 | T107: 1100958083395 | V107: 1100958083395 | W107: 509406791208 | X107: 509406791208 | Y107: 0.4626940834 | AC107: -38012047406 | AD107: -20205544407 | AE107: 3827146519 | AF107: 1033829951 | AG107: 19407120973 | AH107: 10874630629
A108: 3411502000000000 | B108: DEMOCRACIA URBANA | C108: 1021237719000 | D108: -58246122224 | E108: -49425878542 | F108: 971811840458 | H108: 971811840458 | I108: 12390915 | J108: 475775931462 | K108: 0.489576183 | L108: 8243010737 | M108: 18504784121 | N108: 0.0190415298 | O108: 3411502000000000 | P108: DEMOCRACIA URBANA | Q108: 1021237719000 | R108: -14064202605 | S108: -14064202605 | T108: 1007173516395 | V108: 1007173516395 | W108: 474961994907 | X108: 474961994907 | Y108: 0.4715791144 | AC108: -35361675937 | AD108: -22884446287 | AE108: 813936555 | AF108: 801545640 | AG108: 18504784121 | AH108: 10261773384
A109: 3411502130000000 | B109: INFRAESTRUCTURA PARA EL DESARROLLO DEL HÁBITAT | C109: 1021237719000 | D109: -58246122224 | E109: -49425878542 | F109: 971811840458 | H109: 971811840458 | I109: 12390915 | J109: 475775931462 | K109: 0.489576183 | L109: 8243010737 | M109: 18504784121 | N109: 0.0190415298 | O109: 3411502130000000 | P109: INFRAESTRUCTURA PARA EL DESARROLLO DEL HÁBITAT | Q109: 1021237719000 | R109: -14064202605 | S109: -14064202605 | T109: 1007173516395 | V109: 1007173516395 | W109: 474961994907 | X109: 474961994907 | Y109: 0.4715791144 | AC109: -35361675937 | AD109: -22884446287 | AE109: 813936555 | AF109: 801545640 | AG109: 18504784121 | AH109: 10261773384
A110: 3411502130019000 | B110: CONST.REDES LOCALES PARA EL SERVICIO ALCANTARILLADO PLUVIAL | C110: 39310965000 | E110: -9472758929 | F110: 29838206071 | H110: 29838206071 | J110: 16883409630 | K110: 0.5658319267 | L110: 1181929681 | M110: 1989800678 | N110: 0.06668633742 | O110: 3411502130019000 | P110: CONST.REDES LOCALES PARA EL SERVICIO ALCANTARILLADO PLUVIAL | Q110: 39310965000 | T110: 39310965000 | V110: 39310965000 | W110: 16883409630 | X110: 16883409630 | Y110: 0.4294834693 | AC110: -9472758929 | AD110: 9472758929 | AE110: 0 | AF110: 0 | AG110: 1989800678 | AH110: 807870997
A111: 00003411502130019133 | B111: INFRAESTRUCTURA PARA EL DESARROLLO DEL HÁBITAT | C111: 39310965000 | E111: -9472758929 | F111: 29838206071 | H111: 29838206071 | J111: 16883409630 | K111: 0.5658319267 | L111: 1181929681 | M111: 1989800678 | N111: 0.06668633742 | O111: 00003411502130019133 | P111: INFRAESTRUCTURA PARA EL DESARROLLO DEL HÁBITAT | Q111: 39310965000 | T111: 39310965000 | V111: 39310965000 | W111: 16883409630 | X111: 16883409630 | Y111: 0.4294834693 | AC111: -9472758929 | AD111: 9472758929 | AE111: 0 | AF111: 0 | AG111: 1989800678 | AH111: 807870997
A112: 3411502130020000 | B112: CONST.REDES LOCALES SERVICIO DE ALCANTARILLADO SANITARIO | C112: 27526040000 | E112: -11209258364 | F112: 16316781636 | H112: 16316781636 | J112: 6237906783 | K112: 0.3823000713 | L112: 255832683 | M112: 386165157 | N112: 0.02366674787 | O112: 3411502130020000 | P112: CONST.REDES LOCALES SERVICIO DE ALCANTARILLADO SANITARIO | Q112: 27526040000 | T112: 27526040000 | V112: 27526040000 | W112: 6237906783 | X112: 6237906783 | Y112: 0.2266183869 | AC112: -11209258364 | AD112: 11209258364 | AE112: 0 | AF112: 0 | AG112: 386165157 | AH112: 130332474
A113: 00003411502130020133 | B113: INFRAESTRUCTURA PARA EL DESARROLLO DEL HÁBITAT | C113: 27526040000 | E113: -11209258364 | F113: 16316781636 | H113: 16316781636 | J113: 6237906783 | K113: 0.3823000713 | L113: 255832683 | M113: 386165157 | N113: 0.02366674787 | O113: 00003411502130020133 | P113: INFRAESTRUCTURA PARA EL DESARROLLO DEL HÁBITAT | Q113: 27526040000 | T113: 27526040000 | V113: 27526040000 | W113: 6237906783 | X113: 6237906783 | Y113: 0.2266183869 | AC113: -11209258364 | AD113: 11209258364 | AE113: 0 | AF113: 0 | AG113: 386165157 | AH113: 130332474
A114: 3411502130021000 | B114: CONST.SISTEMA TRONCAL Y SECUNDARIO ALCANTARILLADO SANITARIO | C114: 14273960000 | D114: 72066415 | E114: 67227578 | F114: 14341187578 | H114: 14341187578 | J114: 13862888797 | K114: 0.9666485932 | M114: 661068091 | N114: 0.04609577048 | O114: 3411502130021000 | P114: CONST.SISTEMA TRONCAL Y SECUNDARIO ALCANTARILLADO SANITARIO | Q114: 14273960000 | T114: 14273960000 | V114: 14273960000 | W114: 13862888797 | X114: 13862888797 | Y114: 0.9712013202 | AC114: 67227578 | AD114: 4838837 | AE114: 0 | AF114: 0 | AG114: 661068091 | AH114: 661068091
A115: 00003411502130021133 | B115: INFRAESTRUCTURA PARA EL DESARROLLO DEL HÁBITAT | C115: 14273960000 | D115: 72066415 | E115: 67227578 | F115: 14341187578 | H115: 14341187578 | J115: 13862888797 | K115: 0.9666485932 | M115: 661068091 | N115: 0.04609577048 | O115: 00003411502130021133 | P115: INFRAESTRUCTURA PARA EL DESARROLLO DEL HÁBITAT | Q115: 14273960000 | T115: 14273960000 | V115: 14273960000 | W115: 13862888797 | X115: 13862888797 | Y115: 0.9712013202 | AC115: 67227578 | AD115: 4838837 | AE115: 0 | AF115: 0 | AG115: 661068091 | AH115: 661068091
A116: 3411502130022000 | B116: CONST.SISTEMA TRONCAL Y SECUNDARIO DE ALCANTARILLADO PLUVIAL | C116: 38391669000 | D116: -1739475556 | E116: -1702997662 | F116: 36688671338 | H116: 36688671338 | I116: 10345500 | J116: 32528136910 | K116: 0.8865989343 | L116: 136682673 | M116: 136682673 | N116: 0.003725473505 | O116: 3411502130022000 | P116: CONST.SISTEMA TRONCAL Y SECUNDARIO DE ALCANTARILLADO PLUVIAL | Q116: 38391669000 | T116: 38391669000 | V116: 38391669000 | W116: 32464335289 | X116: 32464335289 | Y116: 0.8456088556 | AC116: -1702997662 | AD116: -36477894 | AE116: 63801621 | AF116: 53456121 | AG116: 136682673 | AH116: 0
A117: 00003411502130022133 | B117: INFRAESTRUCTURA PARA EL DESARROLLO DEL HÁBITAT | C117: 38391669000 | D117: -1739475556 | E117: -1702997662 | F117: 36688671338 | H117: 36688671338 | I117: 10345500 | J117: 32528136910 | K117: 0.8865989343 | L117: 136682673 | M117: 136682673 | N117: 0.003725473505 | O117: 00003411502130022133 | P117: INFRAESTRUCTURA PARA EL DESARROLLO DEL HÁBITAT | Q117: 38391669000 | T117: 38391669000 | V117: 38391669000 | W117: 32464335289 | X117: 32464335289 | Y117: 0.8456088556 | AC117: -1702997662 | AD117: -36477894 | AE117: 63801621 | AF117: 53456121 | AG117: 136682673 | AH117: 0
A118: 3411502130050000 | B118: RENOV,REHAB.O REPOS. SIST.ABAST. Y DISTRIB. MATRIZ ACUEDUCTO | C118: 155544351000 | D118: 73477234 | E118: -11797754433 | F118: 143746596567 | H118: 143746596567 | J118: 69217103573 | K118: 0.4815216863 | L118: 1984351359 | M118: 3906854113 | N118: 0.02717875905 | O118: 3411502130050000 | P118: RENOV,REHAB.O REPOS. SIST.ABAST. Y DISTRIB. MATRIZ ACUEDUCTO | Q118: 155544351000 | T118: 155544351000 | V118: 155544351000 | W118: 69065924314 | X118: 69065924314 | Y118: 0.4440272107 | AC118: -11797754433 | AD118: 11871231667 | AE118: 151179259 | AF118: 151179259 | AG118: 3906854113 | AH118: 1922502754
A119: 00003411502130050133 | B119: INFRAESTRUCTURA PARA EL DESARROLLO DEL HÁBITAT | C119: 155544351000 | D119: 73477234 | E119: -11797754433 | F119: 143746596567 | H119: 143746596567 | J119: 69217103573 | K119: 0.4815216863 | L119: 1984351359 | M119: 3906854113 | N119: 0.02717875905 | O119: 00003411502130050133 | P119: INFRAESTRUCTURA PARA EL DESARROLLO DEL HÁBITAT | Q119: 155544351000 | T119: 155544351000 | V119: 155544351000 | W119: 69065924314 | X119: 69065924314 | Y119: 0.4440272107 | AC119: -11797754433 | AD119: 11871231667 | AE119: 151179259 | AF119: 151179259 | AG119: 3906854113 | AH119: 1922502754
A120: 3411502130051000 | B120: RENOV,REHAB.O REPOS.SIST.TRONCAL,SEC. Y LOCAL ALC.SANITARIO | C120: 147614727000 | D120: 2803086681 | E120: 1623832611 | F120: 149238559611 | H120: 149238559611 | J120: 95996700974 | K120: 0.6432432826 | L120: 342312749 | M120: 4466200025 | N120: 0.02992658222 | O120: 3411502130051000 | P120: RENOV,REHAB.O REPOS.SIST.TRONCAL,SEC. Y LOCAL ALC.SANITARIO | Q120: 147614727000 | T120: 147614727000 | V120: 147614727000 | W120: 95996700974 | X120: 95996700974 | Y120: 0.6503192664 | AC120: 1623832611 | AD120: 1179254070 | AE120: 0 | AF120: 0 | AG120: 4466200025 | AH120: 4123887276
A121: 00003411502130051133 | B121: INFRAESTRUCTURA PARA EL DESARROLLO DEL HÁBITAT | C121: 147614727000 | D121: 2803086681 | E121: 1623832611 | F121: 149238559611 | H121: 149238559611 | J121: 95996700974 | K121: 0.6432432826 | L121: 342312749 | M121: 4466200025 | N121: 0.02992658222 | O121: 00003411502130051133 | P121: INFRAESTRUCTURA PARA EL DESARROLLO DEL HÁBITAT | Q121: 147614727000 | T121: 147614727000 | V121: 147614727000 | W121: 95996700974 | X121: 95996700974 | Y121: 0.6503192664 | AC121: 1623832611 | AD121: 1179254070 | AE121: 0 | AF121: 0 | AG121: 4466200025 | AH121: 4123887276
A122: 3411502130052000 | B122: RENOV,REHAB.O REPOS.SIST.TRONCAL, SEC. Y LOCAL ALC. PLUVIAL | C122: 137242908000 | E122: -18597139855 | F122: 118645768145 | H122: 118645768145 | J122: 101231726352 | K122: 0.8532266084 | M122: 1196031452 | N122: 0.01008069205 | O122: 3411502130052000 | P122: RENOV,REHAB.O REPOS.SIST.TRONCAL, SEC. Y LOCAL ALC. PLUVIAL | Q122: 137242908000 | R122: -14064202605 | S122: -14064202605 | T122: 123178705395 | V122: 123178705395 | W122: 101231726352 | X122: 101231726352 | Y122: 0.8218281401 | AC122: -4532937250 | AD122: 4532937250 | AE122: 0 | AF122: 0 | AG122: 1196031452 | AH122: 1196031452
A123: 00003411502130052133 | B123: INFRAESTRUCTURA PARA EL DESARROLLO DEL HÁBITAT | C123: 137242908000 | E123: -18597139855 | F123: 118645768145 | H123: 118645768145 | J123: 101231726352 | K123: 0.8532266084 | M123: 1196031452 | N123: 0.01008069205 | O123: 00003411502130052133 | P123: INFRAESTRUCTURA PARA EL DESARROLLO DEL HÁBITAT | Q123: 137242908000 | R123: -14064202605 | S123: -14064202605 | T123: 123178705395 | V123: 123178705395 | W123: 101231726352 | X123: 101231726352 | Y123: 0.8218281401 | AC123: -4532937250 | AD123: 4532937250 | AE123: 0 | AF123: 0 | AG123: 1196031452 | AH123: 1196031452
A124: 3411502130053000 | B124: RENOV,REHAB.O REPOS.SIST.TRONCAL, SEC. Y LOCAL ALC. COMBIN | C124: 14605692000 | D124: 260052482 | E124: 334982531 | F124: 14940674531 | H124: 14940674531 | J124: 74930049 | K124: 0.005015171761 | O124: 3411502130053000 | P124: RENOV,REHAB.O REPOS.SIST.TRONCAL, SEC. Y LOCAL ALC. COMBIN | Q124: 14605692000 | T124: 14605692000 | V124: 14605692000 | AC124: 334982531 | AD124: -74930049 | AE124: 74930049 | AF124: 74930049 | AG124: 0 | AH124: 0
A125: 00003411502130053133 | B125: INFRAESTRUCTURA PARA EL DESARROLLO DEL HÁBITAT | C125: 14605692000 | D125: 260052482 | E125: 334982531 | F125: 14940674531 | H125: 14940674531 | J125: 74930049 | K125: 0.005015171761 | O125: 00003411502130053133 | P125: INFRAESTRUCTURA PARA EL DESARROLLO DEL HÁBITAT | Q125: 14605692000 | T125: 14605692000 | V125: 14605692000 | AC125: 334982531 | AD125: -74930049 | AE125: 74930049 | AF125: 74930049 | AG125: 0 | AH125: 0
A126: 3411502130054000 | B126: ACCIONES PARA EL SANEAMIENTO DEL RÍO BOGOTÁ | C126: 14225533000 | E126: 74807097669 | F126: 89032630669 | H126: 89032630669 | J126: 12297000000 | K126: 0.1381179002 | O126: 3411502130054000 | P126: ACCIONES PARA EL SANEAMIENTO DEL RÍO BOGOTÁ | Q126: 14225533000 | T126: 14225533000 | V126: 14225533000 | W126: 12297000000 | X126: 12297000000 | Y126: 0.8644315823 | AC126: 74807097669 | AD126: -74807097669 | AE126: 0 | AF126: 0 | AG126: 0 | AH126: 0
A127: 00003411502130054133 | B127: INFRAESTRUCTURA PARA EL DESARROLLO DEL HÁBITAT | C127: 14225533000 | E127: 74807097669 | F127: 89032630669 | H127: 89032630669 | J127: 12297000000 | K127: 0.1381179002 | O127: 00003411502130054133 | P127: INFRAESTRUCTURA PARA EL DESARROLLO DEL HÁBITAT | Q127: 14225533000 | T127: 14225533000 | V127: 14225533000 | W127: 12297000000 | X127: 12297000000 | Y127: 0.8644315823 | AC127: 74807097669 | AD127: -74807097669 | AE127: 0 | AF127: 0 | AG127: 0 | AH127: 0
A128: 3411502130068000 | B128: CONST,RENOV,REHAB.O REPOS.REDES ASOC.A INFRAESTRUCTURA VIAL | C128: 46457000000 | D128: -46386466521 | E128: -46386466521 | F128: 70533479 | H128: 70533479 | O128: 3411502130068000 | P128: CONST,RENOV,REHAB.O REPOS.REDES ASOC.A INFRAESTRUCTURA VIAL | Q128: 46457000000 | T128: 46457000000 | V128: 46457000000 | AC128: -46386466521 | AD128: 0 | AE128: 0 | AF128: 0 | AG128: 0 | AH128: 0
A129: 00003411502130068133 | B129: INFRAESTRUCTURA PARA EL DESARROLLO DEL HÁBITAT | C129: 46457000000 | D129: -46386466521 | E129: -46386466521 | F129: 70533479 | H129: 70533479 | O129: 00003411502130068133 | P129: INFRAESTRUCTURA PARA EL DESARROLLO DEL HÁBITAT | Q129: 46457000000 | T129: 46457000000 | V129: 46457000000 | AC129: -46386466521 | AD129: 0 | AE129: 0 | AF129: 0 | AG129: 0 | AH129: 0
A130: 3411502130081000 | B130: CORREDORES AMBIENTALES | C130: 121046203000 | D130: -13448492113 | E130: -13762295878 | F130: 107283907122 | H130: 107283907122 | J130: 2077396235 | K130: 0.01936354008 | O130: 3411502130081000 | P130: CORREDORES AMBIENTALES | Q130: 121046203000 | T130: 121046203000 | V130: 121046203000 | W130: 1751313132 | X130: 1751313132 | Y130: 0.01446813769 | AC130: -13762295878 | AD130: 313803765 | AE130: 326083103 | AF130: 326083103 | AG130: 0 | AH130: 0
A131: 00003411502130081133 | B131: INFRAESTRUCTURA PARA EL DESARROLLO DEL HÁBITAT | C131: 121046203000 | D131: -13448492113 | E131: -13762295878 | F131: 107283907122 | H131: 107283907122 | J131: 2077396235 | K131: 0.01936354008 | O131: 00003411502130081133 | P131: INFRAESTRUCTURA PARA EL DESARROLLO DEL HÁBITAT | Q131: 121046203000 | T131: 121046203000 | V131: 121046203000 | W131: 1751313132 | X131: 1751313132 | Y131: 0.01446813769 | AC131: -13762295878 | AD131: 313803765 | AE131: 326083103 | AF131: 326083103 | AG131: 0 | AH131: 0
A132: 3411502137334000 | B132: CONST.Y EXPANSIÓN SISTEMA ABASTECIMIENTO Y MATRIZ ACUEDUCTO | C132: 249776117000 | D132: 119629154 | E132: -9317858926 | F132: 240458258074 | H132: 240458258074 | I132: 2045415 | J132: 121667707314 | K132: 0.5059826528 | L132: 4341901592 | M132: 5618145966 | N132: 0.02336432947 | O132: 3411502137334000 | P132: CONST.Y EXPANSIÓN SISTEMA ABASTECIMIENTO Y MATRIZ ACUEDUCTO | Q132: 249776117000 | T132: 249776117000 | V132: 249776117000 | W132: 121469764791 | X132: 121469764791 | Y132: 0.4863145694 | AC132: -9317858926 | AD132: 9437488080 | AE132: 197942523 | AF132: 195897108 | AG132: 5618145966 | AH132: 1276244374
A133: 00003411502137334133 | B133: INFRAESTRUCTURA PARA EL DESARROLLO DEL HÁBITAT | C133: 249776117000 | D133: 119629154 | E133: -9317858926 | F133: 240458258074 | H133: 240458258074 | I133: 2045415 | J133: 121667707314 | K133: 0.5059826528 | L133: 4341901592 | M133: 5618145966 | N133: 0.02336432947 | O133: 00003411502137334133 | P133: INFRAESTRUCTURA PARA EL DESARROLLO DEL HÁBITAT | Q133: 249776117000 | T133: 249776117000 | V133: 249776117000 | W133: 121469764791 | X133: 121469764791 | Y133: 0.4863145694 | AC133: -9317858926 | AD133: 9437488080 | AE133: 197942523 | AF133: 195897108 | AG133: 5618145966 | AH133: 1276244374
A134: 3411502137338000 | B134: CONSTRUCCIÓN DE REDES LOCALES PARA EL SERVICIO DE ACUEDUCTO | C134: 15222554000 | E134: -4012488363 | F134: 11210065637 | H134: 11210065637 | J134: 3701024845 | K134: 0.3301519335 | M134: 143835966 | N134: 0.01283096555 | O134: 3411502137338000 | P134: CONSTRUCCIÓN DE REDES LOCALES PARA EL SERVICIO DE ACUEDUCTO | Q134: 15222554000 | T134: 15222554000 | V134: 15222554000 | W134: 3701024845 | X134: 3701024845 | Y134: 0.2431277199 | AC134: -4012488363 | AD134: 4012488363 | AE134: 0 | AF134: 0 | AG134: 143835966 | AH134: 143835966
A135: 00003411502137338133 | B135: INFRAESTRUCTURA PARA EL DESARROLLO DEL HÁBITAT | C135: 15222554000 | E135: -4012488363 | F135: 11210065637 | H135: 11210065637 | J135: 3701024845 | K135: 0.3301519335 | M135: 143835966 | N135: 0.01283096555 | O135: 00003411502137338133 | P135: INFRAESTRUCTURA PARA EL DESARROLLO DEL HÁBITAT | Q135: 15222554000 | T135: 15222554000 | V135: 15222554000 | W135: 3701024845 | X135: 3701024845 | Y135: 0.2431277199 | AC135: -4012488363 | AD135: 4012488363 | AE135: 0 | AF135: 0 | AG135: 143835966 | AH135: 143835966
A136: 3411506000000000 | B136: EJE TRANSV. SOST. AMBIENTAL BASADA EFICIENCIA ENERGÉTICA | C136: 61193149000 | D136: 28530411 | E136: -2690811552 | F136: 58502337448 | H136: 58502337448 | I136: 2073842971 | J136: 35133170243 | K136: 0.6005430172 | L136: 268793369 | M136: 881650614 | N136: 0.01507034851 | O136: 3411506000000000 | P136: EJE TRANSV. SOST. AMBIENTAL BASADA EFICIENCIA ENERGÉTICA | Q136: 61193149000 | T136: 61193149000 | V136: 61193149000 | W136: 32827042961 | X136: 32827042961 | Y136: 0.5364496434 | AC136: -2690811552 | AD136: 2719341963 | AE136: 2306127282 | AF136: 232284311 | AG136: 881650614 | AH136: 612857245
A137: 3411506380000000 | B137: RECUPERACIÓN Y MANEJO DE LA ESTRUCTURA ECOLÓGICA PRINCIPAL | D137: 28530411 | E137: 303049781 | F137: 303049781 | H137: 303049781 | I137: 46101870 | J137: 277219781 | K137: 0.9147664786 | L137: 5920629 | M137: 6116391 | N137: 0.020182793 | AC137: =F137-T137 -> 303049781 | AD137: =D137-AC137 -> -274519370 | AE137: =J137-X137 -> 277219781 | AF137: =AE137-I137 -> 231117911 | AG137: =M137-AA137 -> 6116391 | AH137: =AG137-L137 -> 195762
A138: 3411506387341000 | B138: ADEC.HIDRÁULICA RECUP.AMB.HUMED,QUEBRADAS,RÍOS CUENCAS ABAST | D138: 28530411 | E138: 303049781 | F138: 303049781 | H138: 303049781 | I138: 46101870 | J138: 277219781 | K138: 0.9147664786 | L138: 5920629 | M138: 6116391 | N138: 0.020182793 | AC138: 303049781 | AD138: -274519370 | AE138: 277219781 | AF138: 231117911 | AG138: 6116391 | AH138: 195762
A139: 00003411506387341177 | B139: CONSOLIDACIÓN DE LA ESTRUCTURA ECOLÓGICA PRINCIPAL | D139: 28530411 | E139: 303049781 | F139: 303049781 | H139: 303049781 | I139: 46101870 | J139: 277219781 | K139: 0.9147664786 | L139: 5920629 | M139: 6116391 | N139: 0.020182793 | AC139: 303049781 | AD139: -274519370 | AE139: 277219781 | AF139: 231117911 | AG139: 6116391 | AH139: 195762
A140: 3411506390000000 | B140: AMBIENTE SANO PARA LA EQUIDAD Y DISFRUTE DEL CIUDADANO | C140: 61193149000 | E140: -2993861333 | F140: 58199287667 | H140: 58199287667 | I140: 2027741101 | J140: 34855950462 | K140: 0.5989068227 | L140: 262872740 | M140: 875534223 | N140: 0.01504372748 | O140: 3411506390000000 | P140: AMBIENTE SANO PARA LA EQUIDAD Y DISFRUTE DEL CIUDADANO | Q140: 61193149000 | T140: 61193149000 | V140: 61193149000 | W140: 32827042961 | X140: 32827042961 | Y140: 0.5364496434 | AC140: -2993861333 | AD140: 2993861333 | AE140: 2028907501 | AF140: 1166400 | AG140: 875534223 | AH140: 612661483
A141: 3411506390082000 | B141: PLAN DE SANEAMIENTO Y MANEJO DE VERTIMIENTOS | C141: 61193149000 | E141: -2993861333 | F141: 58199287667 | H141: 58199287667 | I141: 2027741101 | J141: 34855950462 | K141: 0.5989068227 | L141: 262872740 | M141: 875534223 | N141: 0.01504372748 | O141: 3411506390082000 | P141: PLAN DE SANEAMIENTO Y MANEJO DE VERTIMIENTOS | Q141: 61193149000 | T141: 61193149000 | V141: 61193149000 | W141: 32827042961 | X141: 32827042961 | Y141: 0.5364496434 | AC141: -2993861333 | AD141: 2993861333 | AE141: 2028907501 | AF141: 1166400 | AG141: 875534223 | AH141: 612661483
A142: 00003411506390082179 | B142: AMBIENTE SANO | C142: 61193149000 | E142: -2993861333 | F142: 58199287667 | H142: 58199287667 | I142: 2027741101 | J142: 34855950462 | K142: 0.5989068227 | L142: 262872740 | M142: 875534223 | N142: 0.01504372748 | O142: 00003411506390082179 | P142: AMBIENTE SANO | Q142: 61193149000 | T142: 61193149000 | V142: 61193149000 | W142: 32827042961 | X142: 32827042961 | Y142: 0.5364496434 | AC142: -2993861333 | AD142: 2993861333 | AE142: 2028907501 | AF142: 1166400 | AG142: 875534223 | AH142: 612661483
A143: 3411507000000000 | B143: EJE TRANSVERSAL GOBIERNO LEGÍTIMO, FORT. LOCAL Y EFICIENTE | C143: 32591418000 | E143: 40440083 | F143: 32631858083 | H143: 32631858083 | I143: 707082682 | J143: 2324836022 | K143: 0.07124436543 | L143: 20686238 | M143: 20686238 | N143: 0.0006339276773 | O143: 3411507000000000 | P143: EJE TRANSVERSAL GOBIERNO LEGÍTIMO, FORT. LOCAL Y EFICIENTE | Q143: 32591418000 | T143: 32591418000 | V143: 32591418000 | W143: 1617753340 | X143: 1617753340 | Y143: 0.04963740271 | AC143: 40440083 | AD143: -40440083 | AE143: 707082682 | AF143: 0 | AG143: 20686238 | AH143: 0
A144: 3411507420000000 | B144: TRANSPARENCIA, GESTIÓN PÚBLICA Y SERVICIO A LA CIUDADANÍA | C144: 32591418000 | E144: 40440083 | F144: 32631858083 | H144: 32631858083 | I144: 707082682 | J144: 2324836022 | K144: 0.07124436543 | L144: 20686238 | M144: 20686238 | N144: 0.0006339276773 | O144: 3411507420000000 | P144: TRANSPARENCIA, GESTIÓN PÚBLICA Y SERVICIO A LA CIUDADANÍA | Q144: 32591418000 | T144: 32591418000 | V144: 32591418000 | W144: 1617753340 | X144: 1617753340 | Y144: 0.04963740271 | AC144: 40440083 | AD144: -40440083 | AE144: 707082682 | AF144: 0 | AG144: 20686238 | AH144: 0
A145: 3411507420055000 | B145: FORTALECIMIENTO ADMINISTRATIVO Y OPERATIVO EMPRESARIAL | C145: 32591418000 | E145: 40440083 | F145: 32631858083 | H145: 32631858083 | I145: 707082682 | J145: 2324836022 | K145: 0.07124436543 | L145: 20686238 | M145: 20686238 | N145: 0.0006339276773 | O145: 3411507420055000 | P145: FORTALECIMIENTO ADMINISTRATIVO Y OPERATIVO EMPRESARIAL | Q145: 32591418000 | T145: 32591418000 | V145: 32591418000 | W145: 1617753340 | X145: 1617753340 | Y145: 0.04963740271 | AC145: 40440083 | AD145: -40440083 | AE145: 707082682 | AF145: 0 | AG145: 20686238 | AH145: 0
A146: 00003411507420055185 | B146: FORTALECIMIENTO ADMINISTRATIVO Y OPERATIVO EMPRESARIAL | C146: 32591418000 | E146: 40440083 | F146: 32631858083 | H146: 32631858083 | I146: 707082682 | J146: 2324836022 | K146: 0.07124436543 | L146: 20686238 | M146: 20686238 | N146: 0.0006339276773 | O146: 00003411507420055185 | P146: FORTALECIMIENTO ADMINISTRATIVO Y OPERATIVO EMPRESARIAL | Q146: 32591418000 | T146: 32591418000 | V146: 32591418000 | W146: 1617753340 | X146: 1617753340 | Y146: 0.04963740271 | AC146: 40440083 | AD146: -40440083 | AE146: 707082682 | AF146: 0 | AG146: 20686238 | AH146: 0
A147: 342000000000000 | B147: TRANSFERENCIAS PARA INVERSION | C147: 406848694000 | D147: 58806420748 | E147: 113732434113 | F147: 520581128113 | H147: 520581128113 | I147: 124538266 | J147: 5379578950 | K147: 0.01033379556 | L147: 124538266 | M147: 5379578950 | N147: 0.01033379556 | O147: 342000000000000 | P147: TRANSFERENCIAS PARA INVERSION | Q147: 406848694000 | T147: 406848694000 | V147: 406848694000 | AC147: 113732434113 | AD147: -54926013365 | AE147: 5379578950 | AF147: 5255040684 | AG147: 5379578950 | AH147: 5255040684
A148: 00000342030000000000 | B148: PATRIMONIO AUTONOMO PENSIONAL | C148: 73800000000 | D148: 14560885000 | E148: 14560885000 | F148: 88360885000 | H148: 88360885000 | J148: 5000000000 | K148: 0.05658612405 | M148: 5000000000 | N148: 0.05658612405 | O148: 00000342030000000000 | P148: PATRIMONIO AUTONOMO PENSIONAL | Q148: 73800000000 | T148: 73800000000 | V148: 73800000000 | AC148: 14560885000 | AD148: 0 | AE148: 5000000000 | AF148: 5000000000 | AG148: 5000000000 | AH148: 5000000000
A149: 00000342040000000000 | B149: FONDO PLAN DE EXPANSION | C149: 318975936000 | D149: 44245535748 | E149: 99173172113 | F149: 418149108113 | H149: 418149108113 | O149: 00000342040000000000 | P149: FONDO PLAN DE EXPANSION | Q149: 318975936000 | T149: 318975936000 | V149: 318975936000 | AC149: 99173172113 | AD149: -54927636365 | AE149: 0 | AF149: 0 | AG149: 0 | AH149: 0
A150: 00000342060000000000 | B150: FONDO CUENTAS POR PAGAR LIBERADAS | C150: 4000000000 | E150: -1623000 | F150: 3998377000 | H150: 3998377000 | O150: 00000342060000000000 | P150: FONDO CUENTAS POR PAGAR LIBERADAS | Q150: 4000000000 | T150: 4000000000 | V150: 4000000000 | AC150: -1623000 | AD150: 1623000 | AE150: 0 | AF150: 0 | AG150: 0 | AH150: 0
A151: 00000342090000000000 | B151: TRANFERENCIAS ADMINISTRACION CENTRAL - RIO BOGOTA | C151: 2795000000 | F151: 2795000000 | H151: 2795000000 | O151: 00000342090000000000 | P151: TRANFERENCIAS ADMINISTRACION CENTRAL - RIO BOGOTA | Q151: 2795000000 | T151: 2795000000 | V151: 2795000000 | AC151: 0 | AD151: 0 | AE151: 0 | AF151: 0 | AG151: 0 | AH151: 0
A152: 00000342100000000000 | B152: FONDO EQUIPOS SINIESTRADOS | C152: 2000000000 | F152: 2000000000 | H152: 2000000000 | O152: 00000342100000000000 | P152: FONDO EQUIPOS SINIESTRADOS | Q152: 2000000000 | T152: 2000000000 | V152: 2000000000 | AC152: 0 | AD152: 0 | AE152: 0 | AF152: 0 | AG152: 0 | AH152: 0
A153: 00000342120000000000 | B153: FONDO REPOSICION EQUIPOS ASEO | C153: 3782557000 | F153: 3782557000 | H153: 3782557000 | I153: 124538266 | J153: 379578950 | K153: 0.1003498295 | L153: 124538266 | M153: 379578950 | N153: 0.1003498295 | O153: 00000342120000000000 | P153: FONDO REPOSICION EQUIPOS ASEO | Q153: 3782557000 | T153: 3782557000 | V153: 3782557000 | AC153: 0 | AD153: 0 | AE153: 379578950 | AF153: 255040684 | AG153: 379578950 | AH153: 255040684
A154: 00000342160000000000 | B154: FONDO OBLIGACIONES CONTINGENTES | C154: 1495201000 | F154: 1495201000 | H154: 1495201000 | O154: 00000342160000000000 | P154: FONDO OBLIGACIONES CONTINGENTES | Q154: 1495201000 | T154: 1495201000 | V154: 1495201000 | AC154: 0 | AD154: 0 | AE154: 0 | AF154: 0 | AG154: 0 | AH154: 0
A155: 343000000000000 | B155: CUENTAS POR PAGAR | C155: 565023385000 | D155: -588828935 | E155: 13150913567 | F155: 578174298567 | H155: 578174298567 | I155: -2023119950 | J155: 482219168368 | K155: 0.8340377107 | L155: 39503993508 | M155: 135258490481 | N155: 0.2339406833 | O155: 343000000000000 | P155: CUENTAS POR PAGAR | Q155: 565023385000 | R155: 14064202605 | S155: 14064202605 | T155: 579087587605 | V155: 579087587605 | W155: 485060673038 | X155: 485060673038 | Y155: 0.8376292005 | Z155: 5003273871 | AA155: 5003273871 | AB155: 0.008639925942 | AC155: -913289038 | AD155: 324460103 | AE155: -2841504670 | AF155: -818384720 | AG155: 130255216610 | AH155: 90751223102
A156: 00000343000000000000 | B156: CUENTAS POR PAGAR | C156: 565023385000 | D156: -588828935 | E156: 13150913567 | F156: 578174298567 | H156: 578174298567 | I156: -2023119950 | J156: 482219168368 | K156: 0.8340377107 | L156: 39503993508 | M156: 135258490481 | N156: 0.2339406833 | O156: 00000343000000000000 | P156: CUENTAS POR PAGAR | Q156: 565023385000 | R156: 14064202605 | S156: 14064202605 | T156: 579087587605 | V156: 579087587605 | W156: 485060673038 | X156: 485060673038 | Y156: 0.8376292005 | Z156: 5003273871 | AA156: 5003273871 | AB156: 0.008639925942 | AC156: -913289038 | AD156: 324460103 | AE156: -2841504670 | AF156: -818384720 | AG156: 130255216610 | AH156: 90751223102
A157: 400000000000000 | B157: DISPONIBILIDAD FINAL | C157: 111809729000 | F157: 111809729000 | H157: 111809729000 | O157: 400000000000000 | P157: DISPONIBILIDAD FINAL | Q157: 111809729000 | T157: 111809729000 | V157: 111809729000 | AC157: 0 | AD157: 0 | AE157: 0 | AF157: 0 | AG157: 0 | AH157: 0
A158: 00000400000000000000 | B158: DISPONIBILIDAD FINAL | C158: 111809729000 | F158: 111809729000 | H158: 111809729000 | O158: 00000400000000000000 | P158: DISPONIBILIDAD FINAL | Q158: 111809729000 | T158: 111809729000 | V158: 111809729000 | AC158: 0 | AD158: 0 | AE158: 0 | AF158: 0 | AG158: 0 | AH158: 0
B163: JULIANA CASTRO BUITRAGO | F163: ALEXIS JAVIER BLANCO RIVEIRA
B164: Directora Presupuesto | F164: Gerente Corporativo Financiero

Sheet Graph (hidden)
G1: FEP8Qry3
F2: Dir. SIE - BI Rev 2014.01
F5: Information
F6: Autor | G6: RAGARCIA | I6: Últ.actual.pantalla | J6: 02/07/2014 09:16:31
F7: Usuario actual | G7: AOCAMPOR | I7: Fe.clave | J7: 02/07/2014
F8: Modificado por | G8: RAGARCIA | I8: Hora de modificación | J8: 12/06/2014 15:20:31
F9: InfoSitio | G9: 0PU_C02 | I9: Actualidad de datos | J9: 02/07/2014 00:39:33
F10: Nombre técnico query | G10: ZPU_C02_Q4001 | I10: Actualidad de datos (fecha) | J10: 02/07/2014
F11: Descripción query | G11: EJECUCION PRESUPUESTAL DE GASTOS - SECRETARIA DE HACIENDA | I11: Actualidad de los datos (hora) | J11: 00:39:33
C14: Filter
C15: Cta Entidades PSM | D15: GASTOS, DISPONIBILIDAD FINAL
C16: Ratios

Sheet V_Futuras_2019-2021
A2: EMPRESA DE ACUEDUCTO ALCANTARILLADO Y ASEO DE BOGOTA | M2: EMPRESA DE ACUEDUCTO ALCANTARILLADO Y ASEO DE BOGOTA | Y2: EMPRESA DE ACUEDUCTO ALCANTARILLADO Y ASEO DE BOGOTA | AK2: EMPRESA DE ACUEDUCTO ALCANTARILLADO Y ASEO DE BOGOTA
A3: EJECUCION PRESUPUESTAL DE VIGENCIAS FUTURAS | M3: EJECUCION PRESUPUESTAL DE VIGENCIAS FUTURAS | Y3: EJECUCION PRESUPUESTAL DE VIGENCIAS FUTURAS | AK3: EJECUCION PRESUPUESTAL DE VIGENCIAS FUTURAS
A4: A 30 DE ABRIL DE 2018 | M4: A 30 DE ABRIL DE 2018 | Y4: A 30 DE ABRIL DE 2018 | AK4: A 30 DE ABRIL DE 2018
A6: 2019 | M6: 2020 | Q6: 2020 | Y6: 2021 | AK6: 2019-2021
A7: CODIGO SECRETARIA DE HACIENDA | B7: CONCEPTO | C7: PRESUPUESTO INICIAL | D7: MODIFICACIONES MES | E7: MODIFICACIONES ACUMULADAS | F7: PRESUPUESTO DEFINITIVO | G7: COMPROMISOS MES | H7: COMPROMISOS ACUMULADOS | I7: % EJEC PPTAL | J7: DISPONIBILIDADES MES | K7: DISPONIBILIDADES ACUMULADAS | L7: SALDO DISPONIBLE | M7: CODIGO SECRETARIA DE HACIENDA | N7: CONCEPTO | O7: PRESUPUESTO INICIAL | P7: MODIFICACIONES MES | Q7: MODIFICACIONES ACUMULADAS | R7: PRESUPUESTO DEFINITIVO | S7: COMPROMISOS MES | T7: COMPROMISOS ACUMULADOS | U7: % EJEC PPTAL | V7: DISPONIBILIDADES MES | W7: DISPONIBILIDADES ACUMULADAS | X7: SALDO DISPONIBLE | Y7: CODIGO SECRETARIA DE HACIENDA | Z7: CONCEPTO | AA7: PRESUPUESTO INICIAL | AB7: MODIFICACIONES MES | AC7: MODIFICACIONES ACUMULADAS | AD7: PRESUPUESTO DEFINITIVO | AE7: COMPROMISOS MES | AF7: COMPROMISOS ACUMULADOS | AG7: % EJEC PPTAL | AH7: DISPONIBILIDADES MES | AI7: DISPONIBILIDADES ACUMULADAS | AJ7: SALDO DISPONIBLE | AK7: CODIGO SECRETARIA DE HACIENDA | AL7: CONCEPTO | AM7: Presupuesto Inicial VF Total | AN7: Modificaciones mes VF Total | AO7: Modificaciones Acumuladas VF Total | AP7: Presupuesto Definitivo VF Total | AQ7: Compromisos mes Total | AR7: Compromisos Acumulados Total | AS7: % Ejecución Presupuestal Total | AT7: Disponibilidades mes Total | AU7: Disponibilidades Acumuladas Total | AV7: Saldo Disponible Total
A8: 300000000000000 | B8: GASTOS | C8: 405102089837 | D8: 89104836067 | E8: 446109936648 | F8: 851212026485 | G8: -533949530 | H8: 404568140307 | I8: 0.475284803 | J8: 647466259 | K8: 40298034369 | L8: 406345851809 | M8: 300000000000000 | N8: GASTOS | P8: 196145671417 | Q8: 196145671417 | R8: 196145671417 | X8: 196145671417 | Y8: 300000000000000 | Z8: GASTOS | AB8: 65840376580 | AC8: 65840376580 | AD8: 65840376580 | AJ8: 65840376580 | AK8: 300000000000000 | AL8: GASTOS | AM8: 405102089837 | AN8: 351090884064 | AO8: 708095984645 | AP8: 1113198074482 | AQ8: -533949530 | AR8: 404568140307 | AS8: 0.3634287101 | AT8: 647466259 | AU8: 40298034369 | AV8: 668331899806
A9: 310000000000000 | B9: GASTOS DE FUNCIONAMIENTO | C9: 101637204526 | E9: 39095593069 | F9: 140732797595 | G9: -533949530 | H9: 101103254996 | I9: 0.7184057784 | K9: 33928964672 | L9: 5700577927 | M9: 340000000000000 | N9: GASTOS DE INVERSION | P9: 196145671417 | Q9: 196145671417 | R9: 196145671417 | X9: 196145671417 | Y9: 340000000000000 | Z9: GASTOS DE INVERSION | AB9: 65840376580 | AC9: 65840376580 | AD9: 65840376580 | AJ9: 65840376580 | AK9: 310000000000000 | AL9: GASTOS DE FUNCIONAMIENTO | AM9: 101637204526 | AO9: 39095593069 | AP9: 140732797595 | AQ9: -533949530 | AR9: 101103254996 | AS9: 0.7184057784 | AU9: 33928964672 | AV9: 5700577927
A10: 311000000000000 | B10: SERVICIOS PERSONALES | E10: 2923500000 | F10: 2923500000 | L10: 2923500000 | M10: 341000000000000 | N10: DIRECTA | P10: 196145671417 | Q10: 196145671417 | R10: 196145671417 | X10: 196145671417 | Y10: 341000000000000 | Z10: DIRECTA | AB10: 65840376580 | AC10: 65840376580 | AD10: 65840376580 | AJ10: 65840376580 | AK10: 311000000000000 | AL10: SERVICIOS PERSONALES | AO10: 2923500000 | AP10: 2923500000 | AV10: 2923500000
A11: 311020000000000 | B11: SERVICIOS PERSONALES INDIRECTOS | E11: 2923500000 | F11: 2923500000 | L11: 2923500000 | M11: 3411500000000000 | N11: BOGOTA MEJOR PARA TODOS | P11: 196145671417 | Q11: 196145671417 | R11: 196145671417 | X11: 196145671417 | Y11: 3411500000000000 | Z11: BOGOTA MEJOR PARA TODOS | AB11: 65840376580 | AC11: 65840376580 | AD11: 65840376580 | AJ11: 65840376580 | AK11: 311020000000000 | AL11: SERVICIOS PERSONALES INDIRECTOS | AO11: 2923500000 | AP11: 2923500000 | AV11: 2923500000
A12: 00000311020300000000 | B12: HONORARIOS | E12: 2923500000 | F12: 2923500000 | L12: 2923500000 | M12: 3411502000000000 | N12: DEMOCRACIA URBANA | P12: 196145671417 | Q12: 196145671417 | R12: 196145671417 | X12: 196145671417 | Y12: 3411502000000000 | Z12: DEMOCRACIA URBANA | AB12: 65840376580 | AC12: 65840376580 | AD12: 65840376580 | AJ12: 65840376580 | AK12: 00000311020300000000 | AL12: HONORARIOS | AO12: 2923500000 | AP12: 2923500000 | AV12: 2923500000
A13: 312000000000000 | B13: GASTOS GENERALES | C13: 38736265442 | E13: 36172093069 | F13: 74908358511 | H13: 38736265442 | I13: 0.5171153956 | K13: 33928964672 | L13: 2243128397 | M13: 3411502130000000 | N13: INFRAESTRUCTURA PARA EL DESARROLLO DEL HÁBITAT | P13: 196145671417 | Q13: 196145671417 | R13: 196145671417 | X13: 196145671417 | Y13: 3411502130000000 | Z13: INFRAESTRUCTURA PARA EL DESARROLLO DEL HÁBITAT | AB13: 65840376580 | AC13: 65840376580 | AD13: 65840376580 | AJ13: 65840376580 | AK13: 312000000000000 | AL13: GASTOS GENERALES | AM13: 38736265442 | AO13: 36172093069 | AP13: 74908358511 | AR13: 38736265442 | AS13: 0.5171153956 | AU13: 33928964672 | AV13: 2243128397
A14: 312010000000000 | B14: ADQUISICION DE BIENES Y SERVICIOS | C14: 38736265442 | E14: 36172093069 | F14: 74908358511 | H14: 38736265442 | I14: 0.5171153956 | K14: 33928964672 | L14: 2243128397 | M14: 3411502130053000 | N14: RENOV,REHAB.O REPOS.SIST.TRONCAL, SEC. Y LOCAL ALC. COMBIN | P14: 2893431652 | Q14: 2893431652 | R14: 2893431652 | X14: 2893431652 | Y14: 3411502130054000 | Z14: ACCIONES PARA EL SANEAMIENTO DEL RÍO BOGOTÁ | AB14: 65840376580 | AC14: 65840376580 | AD14: 65840376580 | AJ14: 65840376580 | AK14: 312010000000000 | AL14: ADQUISICION DE BIENES Y SERVICIOS | AM14: 38736265442 | AO14: 36172093069 | AP14: 74908358511 | AR14: 38736265442 | AS14: 0.5171153956 | AU14: 33928964672 | AV14: 2243128397
A15: 00000312010200000000 | B15: MATERIALES Y SUMINISTROS | C15: 3091427891 | F15: 3091427891 | H15: 3091427891 | I15: 1 | M15: 00003411502130053133 | N15: INFRAESTRUCTURA PARA EL DESARROLLO DEL HÁBITAT | P15: 2893431652 | Q15: 2893431652 | R15: 2893431652 | X15: 2893431652 | Y15: 00003411502130054133 | Z15: INFRAESTRUCTURA PARA EL DESARROLLO DEL HÁBITAT | AB15: 65840376580 | AC15: 65840376580 | AD15: 65840376580 | AJ15: 65840376580 | AK15: 00000312010200000000 | AL15: MATERIALES Y SUMINISTROS | AM15: 3091427891 | AP15: 3091427891 | AR15: 3091427891 | AS15: 1
A16: 00000312010300000000 | B16: ARRENDAMIENTOS | C16: 8778852792 | F16: 8778852792 | H16: 8778852792 | I16: 1 | M16: 3411502130054000 | N16: ACCIONES PARA EL SANEAMIENTO DEL RÍO BOGOTÁ | P16: 192418830544 | Q16: 192418830544 | R16: 192418830544 | X16: 192418830544 | AK16: 00000312010300000000 | AL16: ARRENDAMIENTOS | AM16: 8778852792 | AP16: 8778852792 | AR16: 8778852792 | AS16: 1
A17: 00000312010400000000 | B17: GASTOS DE COMPUTADOR | C17: 643062675 | E17: 1204097997 | F17: 1847160672 | H17: 643062675 | I17: 0.3481357549 | L17: 1204097997 | M17: 00003411502130054133 | N17: INFRAESTRUCTURA PARA EL DESARROLLO DEL HÁBITAT | P17: 192418830544 | Q17: 192418830544 | R17: 192418830544 | X17: 192418830544 | AK17: 00000312010400000000 | AL17: GASTOS DE COMPUTADOR | AM17: 643062675 | AO17: 1204097997 | AP17: 1847160672 | AR17: 643062675 | AS17: 0.3481357549 | AV17: 1204097997
A18: 00000312010600000000 | B18: GASTOS DE TRANSPORTE Y COMUNICACIÓN | E18: 4446000000 | F18: 4446000000 | K18: 4445969600 | L18: 30400 | M18: 3411502137338000 | N18: CONSTRUCCIÓN DE REDES LOCALES PARA EL SERVICIO DE ACUEDUCTO | P18: 833409221 | Q18: 833409221 | R18: 833409221 | X18: 833409221 | AK18: 00000312010600000000 | AL18: GASTOS DE TRANSPORTE Y COMUNICACIÓN | AO18: 4446000000 | AP18: 4446000000 | AU18: 4445969600 | AV18: 30400
A19: 00000312010900000000 | B19: MANTENIMIENTO Y REPARACIONES | C19: 2978784680 | E19: 30521995072 | F19: 33500779752 | H19: 2978784680 | I19: 0.08891687603 | K19: 29482995072 | L19: 1039000000 | M19: 00003411502137338133 | N19: INFRAESTRUCTURA PARA EL DESARROLLO DEL HÁBITAT | P19: 833409221 | Q19: 833409221 | R19: 833409221 | X19: 833409221 | AK19: 00000312010900000000 | AL19: MANTENIMIENTO Y REPARACIONES | AM19: 2978784680 | AO19: 30521995072 | AP19: 33500779752 | AR19: 2978784680 | AS19: 0.08891687603 | AU19: 29482995072 | AV19: 1039000000
A20: 00000312011100000000 | B20: SEGUROS | C20: 19735867974 | F20: 19735867974 | H20: 19735867974 | I20: 1 | AK20: 00000312011100000000 | AL20: SEGUROS | AM20: 19735867974 | AP20: 19735867974 | AR20: 19735867974 | AS20: 1
A21: 00000312011300000000 | B21: SERVICIOS PUBLICOS | C21: 1227760013 | F21: 1227760013 | H21: 1227760013 | I21: 1 | AK21: 00000312011300000000 | AL21: SERVICIOS PUBLICOS | AM21: 1227760013 | AP21: 1227760013 | AR21: 1227760013 | AS21: 1
A22: 00000312011800000000 | B22: INTERESES Y COMISIONES | C22: 2280509417 | F22: 2280509417 | H22: 2280509417 | I22: 1 | AK22: 00000312011800000000 | AL22: INTERESES Y COMISIONES | AM22: 2280509417 | AP22: 2280509417 | AR22: 2280509417 | AS22: 1
A23: 313000000000000 | B23: TRANSFERENCIAS CORRIENTES | C23: 62900939084 | F23: 62900939084 | G23: -533949530 | H23: 62366989554 | I23: 0.991511263 | L23: 533949530 | AK23: 313000000000000 | AL23: TRANSFERENCIAS CORRIENTES | AM23: 62900939084 | AP23: 62900939084 | AQ23: -533949530 | AR23: 62366989554 | AS23: 0.991511263 | AV23: 533949530
A24: 313030000000000 | B24: TRANSFERENCIAS DE PREVISION Y SEGURIDAD | C24: 62900939084 | F24: 62900939084 | G24: -533949530 | H24: 62366989554 | I24: 0.991511263 | L24: 533949530 | AK24: 313030000000000 | AL24: TRANSFERENCIAS DE PREVISION Y SEGURIDAD | AM24: 62900939084 | AP24: 62900939084 | AQ24: -533949530 | AR24: 62366989554 | AS24: 0.991511263 | AV24: 533949530
A25: 00000313030300000000 | B25: OTRAS TRANSFERENCIAS DE PREVISION Y SEGURIDAD SOCIAL | C25: 62900939084 | F25: 62900939084 | G25: -533949530 | H25: 62366989554 | I25: 0.991511263 | L25: 533949530 | AK25: 00000313030300000000 | AL25: OTRAS TRANSFERENCIAS DE PREVISION Y SEGURIDAD SOCIAL | AM25: 62900939084 | AP25: 62900939084 | AQ25: -533949530 | AR25: 62366989554 | AS25: 0.991511263 | AV25: 533949530
A26: 320000000000000 | B26: GASTOS DE OPERACIÓN | C26: 79647892709 | F26: 79647892709 | H26: 79647892709 | I26: 1 | AK26: 320000000000000 | AL26: GASTOS DE OPERACIÓN | AM26: 79647892709 | AP26: 79647892709 | AR26: 79647892709 | AS26: 1
A27: 321000000000000 | B27: GASTOS DE COMERCIALIZACION | C27: 11125136277 | F27: 11125136277 | H27: 11125136277 | I27: 1 | AK27: 321000000000000 | AL27: GASTOS DE COMERCIALIZACION | AM27: 11125136277 | AP27: 11125136277 | AR27: 11125136277 | AS27: 1
A28: 321010000000000 | B28: COMPRA DE BIENES PARA LA VENTA | C28: 3999999580 | F28: 3999999580 | H28: 3999999580 | I28: 1 | AK28: 321010000000000 | AL28: COMPRA DE BIENES PARA LA VENTA | AM28: 3999999580 | AP28: 3999999580 | AR28: 3999999580 | AS28: 1
A29: 00000321010100000000 | B29: MEDIDORES | C29: 3999999580 | F29: 3999999580 | H29: 3999999580 | I29: 1 | AK29: 00000321010100000000 | AL29: MEDIDORES | AM29: 3999999580 | AP29: 3999999580 | AR29: 3999999580 | AS29: 1
A30: 321030000000000 | B30: OTROS GASTOS DE COMERCIALIZACION | C30: 7125136697 | F30: 7125136697 | H30: 7125136697 | I30: 1 | AK30: 321030000000000 | AL30: OTROS GASTOS DE COMERCIALIZACION | AM30: 7125136697 | AP30: 7125136697 | AR30: 7125136697 | AS30: 1
A31: 00000321030100000000 | B31: MANTENIMIENTO Y MATERIALES OPERACION INF AC Y AL | C31: 7125136697 | F31: 7125136697 | H31: 7125136697 | I31: 1 | AK31: 00000321030100000000 | AL31: MANTENIMIENTO Y MATERIALES OPERACION INF AC Y AL | AM31: 7125136697 | AP31: 7125136697 | AR31: 7125136697 | AS31: 1
A32: 322000000000000 | B32: GASTOS DE PRODUCCION | C32: 68522756432 | F32: 68522756432 | H32: 68522756432 | I32: 1 | AK32: 322000000000000 | AL32: GASTOS DE PRODUCCION | AM32: 68522756432 | AP32: 68522756432 | AR32: 68522756432 | AS32: 1
A33: 322010000000000 | B33: INDUSTRIAL | C33: 68522756432 | F33: 68522756432 | H33: 68522756432 | I33: 1 | AK33: 322010000000000 | AL33: INDUSTRIAL | AM33: 68522756432 | AP33: 68522756432 | AR33: 68522756432 | AS33: 1
A34: 00000322010200000000 | B34: PRODUCTOS QUIMICOS | C34: 11315352596 | F34: 11315352596 | H34: 11315352596 | I34: 1 | AK34: 00000322010200000000 | AL34: PRODUCTOS QUIMICOS | AM34: 11315352596 | AP34: 11315352596 | AR34: 11315352596 | AS34: 1
A35: 00000322010300000000 | B35: ENERGIA PARA BOMBEO | C35: 57207403836 | F35: 57207403836 | H35: 57207403836 | I35: 1 | AK35: 00000322010300000000 | AL35: ENERGIA PARA BOMBEO | AM35: 57207403836 | AP35: 57207403836 | AR35: 57207403836 | AS35: 1
A36: 340000000000000 | B36: GASTOS DE INVERSION | C36: 223816992602 | D36: 89104836067 | E36: 407014343579 | F36: 630831336181 | H36: 223816992602 | I36: 0.3547968843 | J36: 647466259 | K36: 6369069697 | L36: 400645273882 | AK36: 340000000000000 | AL36: GASTOS DE INVERSION | AM36: 223816992602 | AN36: 351090884064 | AO36: 669000391576 | AP36: 892817384178 | AR36: 223816992602 | AS36: 0.2506861947 | AT36: 647466259 | AU36: 6369069697 | AV36: 662631321879
A37: 341000000000000 | B37: DIRECTA | C37: 223816992602 | D37: 89104836067 | E37: 407014343579 | F37: 630831336181 | H37: 223816992602 | I37: 0.3547968843 | J37: 647466259 | K37: 6369069697 | L37: 400645273882 | AK37: 341000000000000 | AL37: DIRECTA | AM37: 223816992602 | AN37: 351090884064 | AO37: 669000391576 | AP37: 892817384178 | AR37: 223816992602 | AS37: 0.2506861947 | AT37: 647466259 | AU37: 6369069697 | AV37: 662631321879
A38: 3411500000000000 | B38: BOGOTA MEJOR PARA TODOS | C38: 223816992602 | D38: 89104836067 | E38: 407014343579 | F38: 630831336181 | H38: 223816992602 | I38: 0.3547968843 | J38: 647466259 | K38: 6369069697 | L38: 400645273882 | AK38: 3411500000000000 | AL38: BOGOTA MEJOR PARA TODOS | AM38: 223816992602 | AN38: 351090884064 | AO38: 669000391576 | AP38: 892817384178 | AR38: 223816992602 | AS38: 0.2506861947 | AT38: 647466259 | AU38: 6369069697 | AV38: 662631321879
A39: 3411502000000000 | B39: DEMOCRACIA URBANA | C39: 216805514771 | D39: 89104836067 | E39: 380457174962 | F39: 597262689733 | H39: 216805514771 | I39: 0.3629985909 | J39: 647466259 | K39: 6369069697 | L39: 374088105265 | AK39: 3411502000000000 | AL39: DEMOCRACIA URBANA | AM39: 216805514771 | AN39: 351090884064 | AO39: 642443222959 | AP39: 859248737730 | AR39: 216805514771 | AS39: 0.2523198525 | AT39: 647466259 | AU39: 6369069697 | AV39: 636074153262
A40: 3411502130000000 | B40: INFRAESTRUCTURA PARA EL DESARROLLO DEL HÁBITAT | C40: 216805514771 | D40: 89104836067 | E40: 380457174962 | F40: 597262689733 | H40: 216805514771 | I40: 0.3629985909 | J40: 647466259 | K40: 6369069697 | L40: 374088105265 | AK40: 3411502130000000 | AL40: INFRAESTRUCTURA PARA EL DESARROLLO DEL HÁBITAT | AM40: 216805514771 | AN40: 351090884064 | AO40: 642443222959 | AP40: 859248737730 | AR40: 216805514771 | AS40: 0.2523198525 | AT40: 647466259 | AU40: 6369069697 | AV40: 636074153262
A41: 3411502130019000 | B41: CONST.REDES LOCALES PARA EL SERVICIO ALCANTARILLADO PLUVIAL | C41: 2409642109 | E41: 17224556565 | F41: 19634198674 | H41: 2409642109 | I41: 0.1227267865 | L41: 17224556565 | AK41: 3411502130019000 | AL41: CONST.REDES LOCALES PARA EL SERVICIO ALCANTARILLADO PLUVIAL | AM41: 2409642109 | AO41: 17224556565 | AP41: 19634198674 | AR41: 2409642109 | AS41: 0.1227267865 | AV41: 17224556565
A42: 00003411502130019133 | B42: INFRAESTRUCTURA PARA EL DESARROLLO DEL HÁBITAT | C42: 2409642109 | E42: 17224556565 | F42: 19634198674 | H42: 2409642109 | I42: 0.1227267865 | L42: 17224556565 | AK42: 00003411502130019133 | AL42: INFRAESTRUCTURA PARA EL DESARROLLO DEL HÁBITAT | AM42: 2409642109 | AO42: 17224556565 | AP42: 19634198674 | AR42: 2409642109 | AS42: 0.1227267865 | AV42: 17224556565
A43: 3411502130020000 | B43: CONST.REDES LOCALES SERVICIO DE ALCANTARILLADO SANITARIO | C43: 2330123523 | E43: 18327735845 | F43: 20657859368 | H43: 2330123523 | I43: 0.1127959815 | L43: 18327735845 | AK43: 3411502130020000 | AL43: CONST.REDES LOCALES SERVICIO DE ALCANTARILLADO SANITARIO | AM43: 2330123523 | AO43: 18327735845 | AP43: 20657859368 | AR43: 2330123523 | AS43: 0.1127959815 | AV43: 18327735845
A44: 00003411502130020133 | B44: INFRAESTRUCTURA PARA EL DESARROLLO DEL HÁBITAT | C44: 2330123523 | E44: 18327735845 | F44: 20657859368 | H44: 2330123523 | I44: 0.1127959815 | L44: 18327735845 | AK44: 00003411502130020133 | AL44: INFRAESTRUCTURA PARA EL DESARROLLO DEL HÁBITAT | AM44: 2330123523 | AO44: 18327735845 | AP44: 20657859368 | AR44: 2330123523 | AS44: 0.1127959815 | AV44: 18327735845
A45: 3411502130021000 | B45: CONST.SISTEMA TRONCAL Y SECUNDARIO ALCANTARILLADO SANITARIO | C45: 2735291930 | E45: 21266395 | F45: 2756558325 | H45: 2735291930 | I45: 0.9922851641 | K45: 21266395 | AK45: 3411502130021000 | AL45: CONST.SISTEMA TRONCAL Y SECUNDARIO ALCANTARILLADO SANITARIO | AM45: 2735291930 | AO45: 21266395 | AP45: 2756558325 | AR45: 2735291930 | AS45: 0.9922851641 | AU45: 21266395
A46: 00003411502130021133 | B46: INFRAESTRUCTURA PARA EL DESARROLLO DEL HÁBITAT | C46: 2735291930 | E46: 21266395 | F46: 2756558325 | H46: 2735291930 | I46: 0.9922851641 | K46: 21266395 | AK46: 00003411502130021133 | AL46: INFRAESTRUCTURA PARA EL DESARROLLO DEL HÁBITAT | AM46: 2735291930 | AO46: 21266395 | AP46: 2756558325 | AR46: 2735291930 | AS46: 0.9922851641 | AU46: 21266395
A47: 3411502130022000 | B47: CONST.SISTEMA TRONCAL Y SECUNDARIO DE ALCANTARILLADO PLUVIAL | C47: 13577018782 | F47: 13577018782 | H47: 13577018782 | I47: 1 | AK47: 3411502130022000 | AL47: CONST.SISTEMA TRONCAL Y SECUNDARIO DE ALCANTARILLADO PLUVIAL | AM47: 13577018782 | AP47: 13577018782 | AR47: 13577018782 | AS47: 1
A48: 00003411502130022133 | B48: INFRAESTRUCTURA PARA EL DESARROLLO DEL HÁBITAT | C48: 13577018782 | F48: 13577018782 | H48: 13577018782 | I48: 1 | AK48: 00003411502130022133 | AL48: INFRAESTRUCTURA PARA EL DESARROLLO DEL HÁBITAT | AM48: 13577018782 | AP48: 13577018782 | AR48: 13577018782 | AS48: 1
A49: 3411502130050000 | B49: RENOV,REHAB.O REPOS. SIST.ABAST. Y DISTRIB. MATRIZ ACUEDUCTO | C49: 5221146125 | E49: 13959952031 | F49: 19181098156 | H49: 5221146125 | I49: 0.2722026697 | L49: 13959952031 | AK49: 3411502130050000 | AL49: RENOV,REHAB.O REPOS. SIST.ABAST. Y DISTRIB. MATRIZ ACUEDUCTO | AM49: 5221146125 | AO49: 13959952031 | AP49: 19181098156 | AR49: 5221146125 | AS49: 0.2722026697 | AV49: 13959952031
A50: 00003411502130050133 | B50: INFRAESTRUCTURA PARA EL DESARROLLO DEL HÁBITAT | C50: 5221146125 | E50: 13959952031 | F50: 19181098156 | H50: 5221146125 | I50: 0.2722026697 | L50: 13959952031 | AK50: 00003411502130050133 | AL50: INFRAESTRUCTURA PARA EL DESARROLLO DEL HÁBITAT | AM50: 5221146125 | AO50: 13959952031 | AP50: 19181098156 | AR50: 5221146125 | AS50: 0.2722026697 | AV50: 13959952031
A51: 3411502130051000 | B51: RENOV,REHAB.O REPOS.SIST.TRONCAL,SEC. Y LOCAL ALC.SANITARIO | C51: 49369100622 | E51: 16184926171 | F51: 65554026793 | H51: 49369100622 | I51: 0.7531055381 | J51: 647466259 | K51: 5496500157 | L51: 10688426014 | AK51: 3411502130051000 | AL51: RENOV,REHAB.O REPOS.SIST.TRONCAL,SEC. Y LOCAL ALC.SANITARIO | AM51: 49369100622 | AO51: 16184926171 | AP51: 65554026793 | AR51: 49369100622 | AS51: 0.7531055381 | AT51: 647466259 | AU51: 5496500157 | AV51: 10688426014
A52: 00003411502130051133 | B52: INFRAESTRUCTURA PARA EL DESARROLLO DEL HÁBITAT | C52: 49369100622 | E52: 16184926171 | F52: 65554026793 | H52: 49369100622 | I52: 0.7531055381 | J52: 647466259 | K52: 5496500157 | L52: 10688426014 | AK52: 00003411502130051133 | AL52: INFRAESTRUCTURA PARA EL DESARROLLO DEL HÁBITAT | AM52: 49369100622 | AO52: 16184926171 | AP52: 65554026793 | AR52: 49369100622 | AS52: 0.7531055381 | AT52: 647466259 | AU52: 5496500157 | AV52: 10688426014
A53: 3411502130052000 | B53: RENOV,REHAB.O REPOS.SIST.TRONCAL, SEC. Y LOCAL ALC. PLUVIAL | C53: 48194799785 | E53: 11525504019 | F53: 59720303804 | H53: 48194799785 | I53: 0.8070086171 | L53: 11525504019 | AK53: 3411502130052000 | AL53: RENOV,REHAB.O REPOS.SIST.TRONCAL, SEC. Y LOCAL ALC. PLUVIAL | AM53: 48194799785 | AO53: 11525504019 | AP53: 59720303804 | AR53: 48194799785 | AS53: 0.8070086171 | AV53: 11525504019
A54: 00003411502130052133 | B54: INFRAESTRUCTURA PARA EL DESARROLLO DEL HÁBITAT | C54: 48194799785 | E54: 11525504019 | F54: 59720303804 | H54: 48194799785 | I54: 0.8070086171 | L54: 11525504019 | AK54: 00003411502130052133 | AL54: INFRAESTRUCTURA PARA EL DESARROLLO DEL HÁBITAT | AM54: 48194799785 | AO54: 11525504019 | AP54: 59720303804 | AR54: 48194799785 | AS54: 0.8070086171 | AV54: 11525504019
A55: 3411502130053000 | B55: RENOV,REHAB.O REPOS.SIST.TRONCAL, SEC. Y LOCAL ALC. COMBIN | D55: 11392887130 | E55: 18806575911 | F55: 18806575911 | L55: 18806575911 | AK55: 3411502130053000 | AL55: RENOV,REHAB.O REPOS.SIST.TRONCAL, SEC. Y LOCAL ALC. COMBIN | AN55: 14286318782 | AO55: 21700007563 | AP55: 21700007563 | AV55: 21700007563
A56: 00003411502130053133 | B56: INFRAESTRUCTURA PARA EL DESARROLLO DEL HÁBITAT | D56: 11392887130 | E56: 18806575911 | F56: 18806575911 | L56: 18806575911 | AK56: 00003411502130053133 | AL56: INFRAESTRUCTURA PARA EL DESARROLLO DEL HÁBITAT | AN56: 14286318782 | AO56: 21700007563 | AP56: 21700007563 | AV56: 21700007563
A57: 3411502130054000 | B57: ACCIONES PARA EL SANEAMIENTO DEL RÍO BOGOTÁ | C57: 10258608154 | D57: 74430400130 | E57: 75281703275 | F57: 85540311429 | H57: 10258608154 | I57: 0.119927178 | K57: 851303145 | L57: 74430400130 | AK57: 3411502130054000 | AL57: ACCIONES PARA EL SANEAMIENTO DEL RÍO BOGOTÁ | AM57: 10258608154 | AN57: 332689607254 | AO57: 333540910399 | AP57: 343799518553 | AR57: 10258608154 | AS57: 0.02983892531 | AU57: 851303145 | AV57: 332689607254
A58: 00003411502130054133 | B58: INFRAESTRUCTURA PARA EL DESARROLLO DEL HÁBITAT | C58: 10258608154 | D58: 74430400130 | E58: 75281703275 | F58: 85540311429 | H58: 10258608154 | I58: 0.119927178 | K58: 851303145 | L58: 74430400130 | AK58: 00003411502130054133 | AL58: INFRAESTRUCTURA PARA EL DESARROLLO DEL HÁBITAT | AM58: 10258608154 | AN58: 332689607254 | AO58: 333540910399 | AP58: 343799518553 | AR58: 10258608154 | AS58: 0.02983892531 | AU58: 851303145 | AV58: 332689607254
A59: 3411502130081000 | B59: CORREDORES AMBIENTALES | E59: 145820570644 | F59: 145820570644 | L59: 145820570644 | AK59: 3411502130081000 | AL59: CORREDORES AMBIENTALES | AO59: 145820570644 | AP59: 145820570644 | AV59: 145820570644
A60: 00003411502130081133 | B60: INFRAESTRUCTURA PARA EL DESARROLLO DEL HÁBITAT | E60: 145820570644 | F60: 145820570644 | L60: 145820570644 | AK60: 00003411502130081133 | AL60: INFRAESTRUCTURA PARA EL DESARROLLO DEL HÁBITAT | AO60: 145820570644 | AP60: 145820570644 | AV60: 145820570644
A61: 3411502137334000 | B61: CONST.Y EXPANSIÓN SISTEMA ABASTECIMIENTO Y MATRIZ ACUEDUCTO | C61: 81135173091 | E61: 53004750605 | F61: 134139923696 | H61: 81135173091 | I61: 0.604854773 | L61: 53004750605 | AK61: 3411502137334000 | AL61: CONST.Y EXPANSIÓN SISTEMA ABASTECIMIENTO Y MATRIZ ACUEDUCTO | AM61: 81135173091 | AO61: 53004750605 | AP61: 134139923696 | AR61: 81135173091 | AS61: 0.604854773 | AV61: 53004750605
A62: 00003411502137334133 | B62: INFRAESTRUCTURA PARA EL DESARROLLO DEL HÁBITAT | C62: 81135173091 | E62: 53004750605 | F62: 134139923696 | H62: 81135173091 | I62: 0.604854773 | L62: 53004750605 | AK62: 00003411502137334133 | AL62: INFRAESTRUCTURA PARA EL DESARROLLO DEL HÁBITAT | AM62: 81135173091 | AO62: 53004750605 | AP62: 134139923696 | AR62: 81135173091 | AS62: 0.604854773 | AV62: 53004750605
A63: 3411502137338000 | B63: CONSTRUCCIÓN DE REDES LOCALES PARA EL SERVICIO DE ACUEDUCTO | C63: 1574610650 | D63: 3281548807 | E63: 10299633501 | F63: 11874244151 | H63: 1574610650 | I63: 0.1326072321 | L63: 10299633501 | AK63: 3411502137338000 | AL63: CONSTRUCCIÓN DE REDES LOCALES PARA EL SERVICIO DE ACUEDUCTO | AM63: 1574610650 | AN63: 4114958028 | AO63: 11133042722 | AP63: 12707653372 | AR63: 1574610650 | AS63: 0.1239104187 | AV63: 11133042722
A64: 00003411502137338133 | B64: INFRAESTRUCTURA PARA EL DESARROLLO DEL HÁBITAT | C64: 1574610650 | D64: 3281548807 | E64: 10299633501 | F64: 11874244151 | H64: 1574610650 | I64: 0.1326072321 | L64: 10299633501 | AK64: 00003411502137338133 | AL64: INFRAESTRUCTURA PARA EL DESARROLLO DEL HÁBITAT | AM64: 1574610650 | AN64: 4114958028 | AO64: 11133042722 | AP64: 12707653372 | AR64: 1574610650 | AS64: 0.1239104187 | AV64: 11133042722
A65: 3411506000000000 | B65: EJE TRANSV. SOST. AMBIENTAL BASADA EFICIENCIA ENERGÉTICA | C65: 7011477831 | E65: 22516368617 | F65: 29527846448 | H65: 7011477831 | I65: 0.2374530714 | L65: 22516368617 | AK65: 3411506000000000 | AL65: EJE TRANSV. SOST. AMBIENTAL BASADA EFICIENCIA ENERGÉTICA | AM65: 7011477831 | AO65: 22516368617 | AP65: 29527846448 | AR65: 7011477831 | AS65: 0.2374530714 | AV65: 22516368617
A66: 3411506390000000 | B66: AMBIENTE SANO PARA LA EQUIDAD Y DISFRUTE DEL CIUDADANO | C66: 7011477831 | E66: 22516368617 | F66: 29527846448 | H66: 7011477831 | I66: 0.2374530714 | L66: 22516368617 | AK66: 3411506390000000 | AL66: AMBIENTE SANO PARA LA EQUIDAD Y DISFRUTE DEL CIUDADANO | AM66: 7011477831 | AO66: 22516368617 | AP66: 29527846448 | AR66: 7011477831 | AS66: 0.2374530714 | AV66: 22516368617
A67: 3411506390082000 | B67: PLAN DE SANEAMIENTO Y MANEJO DE VERTIMIENTOS | C67: 7011477831 | E67: 22516368617 | F67: 29527846448 | H67: 7011477831 | I67: 0.2374530714 | L67: 22516368617 | AK67: 3411506390082000 | AL67: PLAN DE SANEAMIENTO Y MANEJO DE VERTIMIENTOS | AM67: 7011477831 | AO67: 22516368617 | AP67: 29527846448 | AR67: 7011477831 | AS67: 0.2374530714 | AV67: 22516368617
A68: 00003411506390082179 | B68: AMBIENTE SANO | C68: 7011477831 | E68: 22516368617 | F68: 29527846448 | H68: 7011477831 | I68: 0.2374530714 | L68: 22516368617 | AK68: 00003411506390082179 | AL68: AMBIENTE SANO | AM68: 7011477831 | AO68: 22516368617 | AP68: 29527846448 | AR68: 7011477831 | AS68: 0.2374530714 | AV68: 22516368617
A69: 3411507000000000 | B69: EJE TRANSVERSAL GOBIERNO LEGÍTIMO, FORT. LOCAL Y EFICIENTE | E69: 4040800000 | F69: 4040800000 | L69: 4040800000 | AK69: 3411507000000000 | AL69: EJE TRANSVERSAL GOBIERNO LEGÍTIMO, FORT. LOCAL Y EFICIENTE | AO69: 4040800000 | AP69: 4040800000 | AV69: 4040800000
A70: 3411507420000000 | B70: TRANSPARENCIA, GESTIÓN PÚBLICA Y SERVICIO A LA CIUDADANÍA | E70: 4040800000 | F70: 4040800000 | L70: 4040800000 | AK70: 3411507420000000 | AL70: TRANSPARENCIA, GESTIÓN PÚBLICA Y SERVICIO A LA CIUDADANÍA | AO70: 4040800000 | AP70: 4040800000 | AV70: 4040800000
A71: 3411507420055000 | B71: FORTALECIMIENTO ADMINISTRATIVO Y OPERATIVO EMPRESARIAL | E71: 4040800000 | F71: 4040800000 | L71: 4040800000 | AK71: 3411507420055000 | AL71: FORTALECIMIENTO ADMINISTRATIVO Y OPERATIVO EMPRESARIAL | AO71: 4040800000 | AP71: 4040800000 | AV71: 4040800000
A72: 00003411507420055185 | B72: FORTALECIMIENTO ADMINISTRATIVO Y OPERATIVO EMPRESARIAL | E72: 4040800000 | F72: 4040800000 | L72: 4040800000 | AK72: 00003411507420055185 | AL72: FORTALECIMIENTO ADMINISTRATIVO Y OPERATIVO EMPRESARIAL | AO72: 4040800000 | AP72: 4040800000 | AV72: 4040800000

Sheet Gastos P
A2: EMPRESA DE ACUEDUCTO ALCANTARILLADO Y ASEO DE BOGOTA
A3: EJECUCION PRESUPUESTAL DE GASTOS PERSONERIA
A4: A 30 DE ABRIL DE 2018
C5: 1 | D5: 2 | E5: 3 | F5: 4=(1+3) | G5: 5 | H5: 6=(4-5) | I5: 7 | J5: 8 | K5: 9=(8/6) | L5: 10 | M5: 11 | N5: 12 | O5: 13=(12/6) | P5: 14=(12/10)
A6: CODIGO SECRETARIA DE HACIENDA | B6: RUBRO | C6: PRESUPUESTO INICIAL | D6: MODIFICACIONES MES | E6: MODIFICACIONES ACUMULADAS | F6: PRESUPUESTO DEFINITIVO | G6: SUSPENSION | H6: APROPIACION DISPONIBLE | I6: COMPROMISOS MES | J6: COMPROMISOS ACUMULADOS | K6: % EJEC PPTAL | L6: PAC ACUMULADO | M6: AUTORIZACIONES DE GIRO | O6: % EJEC AUT. GIRO | P6: % EJEC GIROS PAC | Q6: CODIGO SECRETARIA DE HACIENDA | R6: RUBRO | S6: PRESUPUESTO INICIAL | T6: MODIFICACIONES MES | U6: MODIFICACIONES ACUMULADAS | V6: PRESUPUESTO DEFINITIVO | W6: SUSPENSION | X6: APROPIACION DISPONIBLE | Y6: COMPROMISOS MES | Z6: COMPROMISOS ACUMULADOS | AA6: % EJEC PPTAL | AB6: PAC ACUMULADO | AC6: AUTORIZACIONES DE GIRO | AE6: % EJEC AUT. GIRO | AF6: % EJEC GIROS PAC
M7: MES | N7: ACUMULADO | AC7: MES | AD7: ACUMULADO
A8: TOTAL GASTOS + DISPONIBILIDAD FINAL | C8: 3850633264000 | D8: 0 | E8: 103123947963 | F8: 3953757211963 | H8: 3953757211963 | I8: 65884762030 | J8: 1854015010847 | K8: 0.4689248508 | L8: 803117875264 | M8: 163849831580 | N8: 568128458594 | O8: 0.1436933095 | P8: 0.7074035781 | Q8: TOTAL GASTOS + DISPONIBILIDAD FINAL | S8: 3850633264000 | T8: 0 | U8: 0 | V8: 3850633264000 | X8: 3850633264000 | Y8: 1669716571939 | Z8: 1669716571939 | AA8: 0.4336212923 | AB8: 319089843356 | AC8: 91962455314 | AD8: 91962455314 | AE8: 0.02388242375 | AF8: 0.2882023895 | AG8: =F8-V8 -> 103123947963 | AH8: =AG8-D8 -> 103123947963 | AI8: =J8-Z8 -> 184298438908 | AJ8: =AI8-I8 -> 118413676878 | AK8: =N8-AD8 -> 476166003280 | AL8: =AK8-M8 -> 312316171700
A9: 300000000000000 | B9: GASTOS | C9: 3738823535000 | D9: 0 | E9: 103123947963 | F9: 3841947482963 | H9: 3841947482963 | I9: 65884762030 | J9: 1854015010847 | K9: 0.4825716695 | L9: 803117875264 | M9: 163849831580 | N9: 568128458594 | O9: 0.1478751235 | P9: 0.7074035781 | Q9: 300000000000000 | R9: GASTOS | S9: 3738823535000 | T9: 0 | U9: 0 | V9: 3738823535000 | X9: 3738823535000 | Y9: 1669716571939 | Z9: 1669716571939 | AA9: 0.4465887615 | AB9: 319089843356 | AC9: 91962455314 | AD9: 91962455314 | AE9: 0.02459662898 | AF9: 0.2882023895 | AG9: =F9-V9 -> 103123947963 | AH9: =AG9-D9 -> 103123947963 | AI9: =J9-Z9 -> 184298438908 | AJ9: =AI9-I9 -> 118413676878 | AK9: =N9-AD9 -> 476166003280 | AL9: =AK9-M9 -> 312316171700
A10: 310000000000000 | B10: GASTOS DE FUNCIONAMIENTO | C10: 1236617326000 | D10: 0 | E10: 5106678498 | F10: 1241724004498 | H10: 1241724004498 | I10: 59069916237 | J10: 543444973214 | K10: 0.4376535939 | L10: 442218462539 | M10: 88368939507 | N10: 293050703837 | O10: 0.2360030915 | P10: 0.662683105 | Q10: 310000000000000 | R10: GASTOS DE FUNCIONAMIENTO | S10: 1236617326000 | T10: 0 | U10: 0 | V10: 1236617326000 | X10: 1236617326000 | Y10: 377880174162 | Z10: 377880174162 | AA10: 0.305575675 | AB10: 132299632374 | AC10: 69460692751 | AD10: 69460692751 | AE10: 0.05616991715 | AF10: 0.5250255916 | AG10: 5106678498 | AH10: 5106678498 | AI10: 165564799052 | AJ10: 106494882815 | AK10: 223590011086 | AL10: 135221071579
A11: 311000000000000 | B11: SERVICIOS PERSONALES | C11: 322700565000 | D11: 6075157730 | E11: 10615091032 | F11: 333315656032 | H11: 333315656032 | I11: 25982675071 | J11: 123415295564 | K11: 0.3702655226 | L11: 119013351488 | M11: 27947260924 | N11: 91237198625 | O11: 0.2737261121 | P11: 0.7666131361 | Q11: 311000000000000 | R11: SERVICIOS PERSONALES | S11: 322700565000 | T11: 3615038405 | U11: 3615038405 | V11: 326315603405 | X11: 326315603405 | Y11: 60083800098 | Z11: 60083800098 | AA11: 0.1841278795 | AB11: 35391744628 | AC11: 23255279004 | AD11: 23255279004 | AE11: 0.07126621823 | AF11: 0.6570820187 | AG11: 7000052627 | AH11: 924894897 | AI11: 63331495466 | AJ11: 37348820395 | AK11: 67981919621 | AL11: 40034658697
A12: 311010000000000 | B12: SERVICIOS PERSONALES ASOCIADOS A LA NOMINA | C12: 207592274000 | D12: -328464960 | E12: -1624175714 | F12: 205968098286 | H12: 205968098286 | I12: 13574335694 | J12: 56590254590 | K12: 0.2747525227 | L12: 74559049570 | M12: 13385116383 | N12: 56286994831 | O12: 0.2732801599 | P12: 0.7549317642 | Q12: 311010000000000 | R12: SERVICIOS PERSONALES ASOCIADOS A LA NOMINA | S12: 207592274000 | T12: -1536198850 | U12: -1536198850 | V12: 206056075150 | X12: 206056075150 | Y12: 15276500628 | Z12: 15276500628 | AA12: 0.07413758909 | AB12: 20644731915 | AC12: 15276500628 | AD12: 15276500628 | AE12: 0.07413758909 | AF12: 0.739970889 | AG12: -87976864 | AH12: 240488096 | AI12: 41313753962 | AJ12: 27739418268 | AK12: 41010494203 | AL12: 27625377820
A13: 00000311010100000000 | B13: SUELDOS PERSONAL DE NOMINA | C13: 119153276000 | D13: -542018928 | E13: -1410519691 | F13: 117742756309 | H13: 117742756309 | I13: 9535945233 | J13: 37124196105 | K13: 0.3152991935 | L13: 39464682607 | M13: 9533422897 | N13: 37121410619 | O13: 0.3152755361 | P13: 0.9406235694 | Q13: 00000311010100000000 | R13: SUELDOS PERSONAL DE NOMINA | S13: 119153276000 | T13: -1000073963 | U13: -1000073963 | V13: 118153202037 | X13: 118153202037 | Y13: 8742016379 | Z13: 8742016379 | AA13: 0.07398882323 | AB13: 9849981357 | AC13: 8742016379 | AD13: 8742016379 | AE13: 0.07398882323 | AF13: 0.887516033 | AG13: -410445728 | AH13: 131573200 | AI13: 28382179726 | AJ13: 18846234493 | AK13: 28379394240 | AL13: 18845971343
A14: 00000311010200000000 | B14: GASTOS DE REPRESENTACION | C14: 71675000 | F14: 71675000 | H14: 71675000 | I14: 6634277 | J14: 22687041 | K14: 0.3165265574 | L14: 23891600 | M14: 6634277 | N14: 22687041 | O14: 0.3165265574 | P14: 0.9495823218 | Q14: 00000311010200000000 | R14: GASTOS DE REPRESENTACION | S14: 71675000 | V14: 71675000 | X14: 71675000 | Y14: 5535436 | Z14: 5535436 | AA14: 0.07722966167 | AB14: 5972900 | AC14: 5535436 | AD14: 5535436 | AE14: 0.07722966167 | AF14: 0.926758526 | AG14: 0 | AH14: 0 | AI14: 17151605 | AJ14: 10517328 | AK14: 17151605 | AL14: 10517328
A15: 00000311010300000000 | B15: HORAS EXTRAS, DOMINICALES, FESTIVOS, RECARGO NOCTURNO Y TRA | C15: 11374267000 | D15: 3921480 | E15: -11429135 | F15: 11362837865 | H15: 11362837865 | I15: 1450701938 | J15: 5857129748 | K15: 0.5154636384 | L15: 5891215487 | M15: 1449456717 | N15: 5855884527 | O15: 0.5153540512 | P15: 0.9940027724 | Q15: 00000311010300000000 | R15: HORAS EXTRAS, DOMINICALES, FESTIVOS, RECARGO NOCTURNO Y TRA | S15: 11374267000 | T15: -17350615 | U15: -17350615 | V15: 11356916385 | X15: 11356916385 | Y15: 1702924950 | Z15: 1702924950 | AA15: 0.1499460674 | AB15: 1753411108 | AC15: 1702924950 | AD15: 1702924950 | AE15: 0.1499460674 | AF15: 0.9712068905 | AG15: 5921480 | AH15: 2000000 | AI15: 4154204798 | AJ15: 2703502860 | AK15: 4152959577 | AL15: 2703502860
A16: 00000311010400000000 | B16: SUBSIDIO DE TRANSPORTE | C16: 1518813000 | D16: 0 | E16: -213803 | F16: 1518599197 | H16: 1518599197 | I16: 100830217 | J16: 425362347 | K16: 0.2801017858 | L16: 512766250 | M16: 100796566 | N16: 425297889 | O16: 0.2800593401 | P16: 0.8294186464 | Q16: 00000311010400000000 | R16: SUBSIDIO DE TRANSPORTE | S16: 1518813000 | T16: -213803 | U16: -213803 | V16: 1518599197 | X16: 1518599197 | Y16: 130683384 | Z16: 130683384 | AA16: 0.08605521737 | AB16: 133379062 | AC16: 130683384 | AD16: 130683384 | AE16: 0.08605521737 | AF16: 0.9797893465 | AG16: 0 | AH16: 0 | AI16: 294678963 | AJ16: 193848746 | AK16: 294614505 | AL16: 193817939
A17: 00000311010500000000 | B17: SUBSIDIO DE ALIMENTACION | C17: 8862554000 | D17: 0 | E17: 2332021 | F17: 8864886021 | H17: 8864886021 | I17: 752900262 | J17: 3239720850 | K17: 0.3654554432 | L17: 3259028511 | M17: 752685392 | N17: 3239395325 | O17: 0.3654187225 | P17: 0.9939757551 | Q17: 00000311010500000000 | R17: SUBSIDIO DE ALIMENTACION | S17: 8862554000 | T17: 2332021 | U17: 2332021 | V17: 8864886021 | X17: 8864886021 | Y17: 1015555830 | Z17: 1015555830 | AA17: 0.1145593782 | AB17: 1144332128 | AC17: 1015555830 | AD17: 1015555830 | AE17: 0.1145593782 | AF17: 0.887465977 | AG17: 0 | AH17: 0 | AI17: 2224165020 | AJ17: 1471264758 | AK17: 2223839495 | AL17: 1471154103
A18: 00000311010600000000 | B18: BONIFICACION POR SERVICIOS PRESTADOS | C18: 428970000 | D18: 6840400 | E18: 5201331 | F18: 434171331 | H18: 434171331 | I18: 6663523 | J18: 62663145 | K18: 0.14432815 | L18: 143024863 | M18: 6663523 | N18: 62663145 | O18: 0.14432815 | P18: 0.4381276352 | Q18: 00000311010600000000 | R18: BONIFICACION POR SERVICIOS PRESTADOS | S18: 428970000 | T18: -5127753 | U18: -5127753 | V18: 423842247 | X18: 423842247 | Y18: 25910782 | Z18: 25910782 | AA18: 0.06113308002 | AB18: 35320131 | AC18: 25910782 | AD18: 25910782 | AE18: 0.06113308002 | AF18: 0.7335981285 | AG18: 10329084 | AH18: 3488684 | AI18: 36752363 | AJ18: 30088840 | AK18: 36752363 | AL18: 30088840
A19: 00000311010700000000 | B19: PRIMA SEMESTRAL | C19: 13981393000 | D19: 14943032 | E19: 22564148 | F19: 14003957148 | H19: 14003957148 | I19: 13122933 | J19: 25957399 | K19: 0.001853576009 | L19: 4664274560 | M19: 11444156 | N19: 24278622 | O19: 0.00173369725 | P19: 0.005205230028 | Q19: 00000311010700000000 | R19: PRIMA SEMESTRAL | S19: 13981393000 | V19: 13981393000 | X19: 13981393000 | Y19: 8349833 | Z19: 8349833 | AA19: 0.0005972103781 | AB19: 1165116000 | AC19: 8349833 | AD19: 8349833 | AE19: 0.0005972103781 | AF19: 0.00716652505 | AG19: 22564148 | AH19: 7621116 | AI19: 17607566 | AJ19: 4484633 | AK19: 15928789 | AL19: 4484633
A20: 00000311010900000000 | B20: PRIMA DE NAVIDAD | C20: 14466954000 | D20: 33725592 | E20: -110423280 | F20: 14356530720 | H20: 14356530720 | I20: 8709604 | J20: 11363857 | K20: 0.0007915461765 | L20: 4777135116 | M20: 7870717 | N20: 10524969 | O20: 0.0007331136752 | P20: 0.002203196842 | Q20: 00000311010900000000 | R20: PRIMA DE NAVIDAD | S20: 14466954000 | T20: -161349296 | U20: -161349296 | V20: 14305604704 | X20: 14305604704 | Y20: 1003388 | Z20: 1003388 | AA20: 7.013950272e-05 | AB20: 1192133726 | AC20: 1003388 | AD20: 1003388 | AE20: 7.013950272e-05 | AF20: 0.0008416740321 | AG20: 50926016 | AH20: 17200424 | AI20: 10360469 | AJ20: 1650865 | AK20: 9521581 | AL20: 1650864
A21: 00000311011000000000 | B21: PRIMA DE VACACIONES | C21: 15513705000 | D21: 31131320 | E21: -79703481 | F21: 15434001519 | H21: 15434001519 | I21: 608197788 | J21: 3326807836 | K21: 0.2155505707 | L21: 5135035949 | M21: 601876694 | N21: 3319449744 | O21: 0.2150738251 | P21: 0.6464316466 | Q21: 00000311011000000000 | R21: PRIMA DE VACACIONES | S21: 15513705000 | T21: -126712121 | U21: -126712121 | V21: 15386992879 | X21: 15386992879 | Y21: 1034226019 | Z21: 1034226019 | AA21: 0.06721430413 | AB21: 1279636822 | AC21: 1034226019 | AD21: 1034226019 | AE21: 0.06721430413 | AF21: 0.8082183954 | AG21: 47008640 | AH21: 15877320 | AI21: 2292581817 | AJ21: 1684384029 | AK21: 2285223725 | AL21: 1683347031
A22: 00000311011100000000 | B22: PRIMA TECNICA | C22: 4202843000 | D22: 117264128 | E22: 45594918 | F22: 4248437918 | H22: 4248437918 | I22: 392145441 | J22: 1318254704 | K22: 0.3102916247 | L22: 1387025518 | M22: 392145441 | N22: 1318254704 | O22: 0.3102916247 | P22: 0.950418494 | Q22: 00000311011100000000 | R22: PRIMA TECNICA | S22: 4202843000 | T22: -131475210 | U22: -131475210 | V22: 4071367790 | X22: 4071367790 | Y22: 306310647 | Z22: 306310647 | AA22: 0.07523531717 | AB22: 339280629 | AC22: 306310647 | AD22: 306310647 | AE22: 0.07523531717 | AF22: 0.9028238597 | AG22: 177070128 | AH22: 59806000 | AI22: 1011944057 | AJ22: 619798616 | AK22: 1011944057 | AL22: 619798616
A23: 00000311011200000000 | B23: OTRAS PRIMAS Y BONIFICACIONES | C23: 11618579000 | D23: 5728016 | E23: -87578742 | F23: 11531000258 | H23: 11531000258 | I23: 493414940 | J23: 3125901641 | K23: 0.2710867723 | L23: 5526742809 | M23: 331697042 | N23: 2851584906 | O23: 0.2472972719 | P23: 0.5159612098 | Q23: 00000311011200000000 | R23: OTRAS PRIMAS Y BONIFICACIONES | S23: 11618579000 | T23: -96228110 | U23: -96228110 | V23: 11522350890 | X23: 11522350890 | Y23: 2047018976 | Z23: 2047018976 | AA23: 0.1776563651 | AB23: 2650498312 | AC23: 2047018976 | AD23: 2047018976 | AE23: 0.1776563651 | AF23: 0.7723147631 | AG23: 8649368 | AH23: 2921352 | AI23: 1078882665 | AJ23: 585467725 | AK23: 804565930 | AL23: 472868888
A24: 00000311011400000000 | B24: QUINQUENIO | C24: 4341645000 | F24: 4341645000 | H24: 4341645000 | I24: 205069538 | J24: 2031094457 | K24: 0.4678167969 | L24: 2532626300 | M24: 190422961 | N24: 2016447880 | O24: 0.4644432882 | P24: 0.7961884783 | Q24: 00000311011400000000 | R24: QUINQUENIO | S24: 4341645000 | V24: 4341645000 | X24: 4341645000 | Y24: 237849544 | Z24: 237849544 | AA24: 0.05478327777 | AB24: 661803740 | AC24: 237849544 | AD24: 237849544 | AE24: 0.05478327777 | AF24: 0.3593958898 | AG24: 0 | AH24: 0 | AI24: 1793244913 | AJ24: 1588175375 | AK24: 1778598336 | AL24: 1588175375
A25: 00000311011500000000 | B25: INDEMNIZACIONES LABORALES | C25: 1512000000 | F25: 1512000000 | H25: 1512000000 | J25: 19115460 | K25: 0.0126425 | L25: 696000000 | N25: 19115460 | O25: 0.0126425 | P25: 0.02746474138 | Q25: 00000311011500000000 | R25: INDEMNIZACIONES LABORALES | S25: 1512000000 | V25: 1512000000 | X25: 1512000000 | Y25: 19115460 | Z25: 19115460 | AA25: 0.0126425 | AB25: 252000000 | AC25: 19115460 | AD25: 19115460 | AE25: 0.0126425 | AF25: 0.075855 | AG25: 0 | AH25: 0 | AI25: 0 | AJ25: 0 | AK25: 0 | AL25: 0
A26: 00000311011600000000 | B26: CONVENCIONES COLECTIVAS O CONVENIOS | C26: 545600000 | F26: 545600000 | H26: 545600000 | L26: 545600000 | Q26: 00000311011600000000 | R26: CONVENCIONES COLECTIVAS O CONVENIOS | S26: 545600000 | V26: 545600000 | X26: 545600000 | AB26: 181866000 | AG26: 0 | AH26: 0 | AI26: 0 | AJ26: 0 | AK26: 0 | AL26: 0
A27: 311020000000000 | B27: SERVICIOS PERSONALES INDIRECTOS | C27: 52943116000 | D27: 6215588602 | E27: 11516114068 | F27: 64459230068 | H27: 64459230068 | I27: 7780677159 | J27: 42361289517 | K27: 0.6571795765 | L27: 17783363828 | M27: 10518605612 | N27: 14997395280 | O27: 0.2326648218 | P27: 0.8433384946 | Q27: 311020000000000 | R27: SERVICIOS PERSONALES INDIRECTOS | S27: 52943116000 | T27: 4712018129 | U27: 4712018129 | V27: 57655134129 | X27: 57655134129 | Y27: 33193043172 | Z27: 33193043172 | AA27: 0.5757170402 | AB27: 2049659847 | AC27: 279496097 | AD27: 279496097 | AE27: 0.004847722605 | AF27: 0.1363621859 | AG27: 6804095939 | AH27: 588507337 | AI27: 9168246345 | AJ27: 1387569186 | AK27: 14717899183 | AL27: 4199293571
A28: 00000311020300000000 | B28: HONORARIOS | C28: 43143000000 | D28: 153493470 | E28: 5441561452 | F28: 48584561452 | H28: 48584561452 | I28: 258922182 | J28: 33171977385 | K28: 0.6827678669 | L28: 8922305583 | M28: 2979055635 | N28: 6557703371 | O28: 0.1349750451 | P28: 0.7349785669 | Q28: 00000311020300000000 | R28: HONORARIOS | S28: 43143000000 | T28: 4759366645 | U28: 4759366645 | V28: 47902366645 | X28: 47902366645 | Y28: 32158918764 | Z28: 32158918764 | AA28: 0.6713430049 | AB28: 1481152357 | AC28: 15321412 | AD28: 15321412 | AE28: 0.0003198466605 | AF28: 0.01034425117 | AG28: 682194807 | AH28: 528701337 | AI28: 1013058621 | AJ28: 754136439 | AK28: 6542381959 | AL28: 3563326324
A29: 00000311020400000000 | B29: REMUNERACION SERVICIOS TECNICOS | C29: 4240000000 | D29: 29831004 | E29: 29831004 | F29: 4269831004 | H29: 4269831004 | I29: 29829000 | J29: 856516223 | K29: 0.2005972185 | L29: 146600717 | M29: 47624000 | N29: 106896000 | O29: 0.02503518287 | P29: 0.7291642373 | Q29: 00000311020400000000 | R29: REMUNERACION SERVICIOS TECNICOS | S29: 4240000000 | T29: 0 | U29: 0 | V29: 4240000000 | X29: 4240000000 | Y29: 769949723 | Z29: 769949723 | AA29: 0.1815919158 | AB29: 0 | AG29: 29831004 | AH29: 0 | AI29: 86566500 | AJ29: 56737500 | AK29: 106896000 | AL29: 59272000
A30: 00000311029900000000 | B30: OTROS GASTOS DE PERSONAL | C30: 5560116000 | D30: 6032264128 | E30: 6044721612 | F30: 11604837612 | H30: 11604837612 | I30: 7491925977 | J30: 8332795909 | K30: 0.7180450246 | L30: 8714457528 | M30: 7491925977 | N30: 8332795909 | O30: 0.7180450246 | P30: 0.9562036285 | Q30: 00000311029900000000 | R30: OTROS GASTOS DE PERSONAL | S30: 5560116000 | T30: -47348516 | U30: -47348516 | V30: 5512767484 | X30: 5512767484 | Y30: 264174685 | Z30: 264174685 | AA30: 0.0479205201 | AB30: 568507490 | AC30: 264174685 | AD30: 264174685 | AE30: 0.0479205201 | AF30: 0.4646810986 | AG30: 6092070128 | AH30: 59806000 | AI30: 8068621224 | AJ30: 576695247 | AK30: 8068621224 | AL30: 576695247
A31: 311030000000000 | B31: APORTES PATRONALES AL SECTOR PUBLICO Y PRIVADO | C31: 62165175000 | D31: 188034088 | E31: 723152678 | F31: 62888327678 | H31: 62888327678 | I31: 4627662218 | J31: 24463751457 | K31: 0.3890030529 | L31: 26670938090 | M31: 4043538929 | N31: 19952808514 | O31: 0.3172736381 | P31: 0.7481104882 | Q31: 311030000000000 | R31: APORTES PATRONALES AL SECTOR PUBLICO Y PRIVADO | S31: 62165175000 | T31: 439219126 | U31: 439219126 | V31: 62604394126 | X31: 62604394126 | Y31: 11614256298 | Z31: 11614256298 | AA31: 0.1855182286 | AB31: 12697352866 | AC31: 7699282279 | AD31: 7699282279 | AE31: 0.1229830971 | AF31: 0.6063690881 | AG31: 283933552 | AH31: 95899464 | AI31: 12849495159 | AJ31: 8221832941 | AK31: 12253526235 | AL31: 8209987306
A32: 00000311030100000000 | B32: CAJA DE COMPENSACION | C32: 7583715000 | D32: 20107384 | E32: -27358158 | F32: 7556356842 | H32: 7556356842 | I32: 769016936 | J32: 2229963741 | K32: 0.2951109625 | L32: 2513792250 | M32: 487003200 | N32: 1418195100 | O32: 0.1876823884 | P32: 0.5641655948 | Q32: 00000311030100000000 | R32: CAJA DE COMPENSACION | S32: 7583715000 | T32: -57720530 | U32: -57720530 | V32: 7525994470 | X32: 7525994470 | Y32: 494391488 | Z32: 494391488 | AA32: 0.06569118406 | AB32: 627266189 | AC32: 4381000 | AD32: 4381000 | AE32: 0.0005821157612 | AF32: 0.006984275698 | AG32: 30362372 | AH32: 10254988 | AI32: 1735572253 | AJ32: 966555317 | AK32: 1413814100 | AL32: 926810900
A33: 00000311030200000000 | B33: CESANTIAS | C33: 7200812000 | D33: 41575464 | E33: 918571312 | F33: 8119383312 | H33: 8119383312 | J33: 7397909592 | K33: 0.9111418082 | L33: 8055994465 | N33: 7397889441 | O33: 0.9111393263 | P33: 0.9183086549 | Q33: 00000311030200000000 | R33: CESANTIAS | S33: 7200812000 | T33: 855791900 | U33: 855791900 | V33: 8056603900 | X33: 8056603900 | Y33: 7397915322 | Z33: 7397915322 | AA33: 0.9182424026 | AB33: 8056603900 | AC33: 7397376458 | AD33: 7397376458 | AE33: 0.9181755179 | AF33: 0.9181755179 | AG33: 62779412 | AH33: 21203948 | AI33: -5730 | AJ33: -5730 | AK33: 512983 | AL33: 512983
A34: 00000311030300000000 | B34: PENSIONES | C34: 17533115000 | D34: 64037808 | E34: -75857243 | F34: 17457257757 | H34: 17457257757 | I34: 1545909344 | J34: 6136464563 | K34: 0.3515136597 | L34: 6198183227 | M34: 1488765277 | N34: 4687160808 | O34: 0.2684935328 | P34: 0.7562152709 | Q34: 00000311030300000000 | R34: PENSIONES | S34: 17533115000 | T34: -172555039 | U34: -172555039 | V34: 17360559961 | X34: 17360559961 | Y34: 1537215794 | Z34: 1537215794 | AA34: 0.08854644075 | AB34: 1541713308 | AC34: 96154989 | AD34: 96154989 | AE34: 0.005538703199 | AF34: 0.06236891678 | AG34: 96697796 | AH34: 32659988 | AI34: 4599248769 | AJ34: 3053339425 | AK34: 4591005819 | AL34: 3102240542
A35: 00000311030400000000 | B35: SALUD | C35: 23992277000 | D35: 32477280 | E35: -90862198 | F35: 23901414802 | H35: 23901414802 | I35: 1953090120 | J35: 7589445213 | K35: 0.3175312121 | L35: 7959072932 | M35: 1823317452 | N35: 5725444565 | O35: 0.2395441698 | P35: 0.7193607363 | Q35: 00000311030400000000 | R35: SALUD | S35: 23992277000 | T35: -139903246 | U35: -139903246 | V35: 23852373754 | X35: 23852373754 | Y35: 1930205591 | Z35: 1930205591 | AA35: 0.08092299789 | AB35: 1987697762 | AC35: 195723632 | AD35: 195723632 | AE35: 0.0082056249 | AF35: 0.09846750132 | AG35: 49041048 | AH35: 16563768 | AI35: 5659239622 | AJ35: 3706149502 | AK35: 5529720933 | AL35: 3706403481
A36: 00000311030500000000 | B36: RIESGOS PROFESIONALES | C36: 1334593000 | D36: 4585024 | E36: -6268389 | F36: 1328324611 | H36: 1328324611 | I36: 111639500 | J36: 430796103 | K36: 0.3243153815 | L36: 441635945 | M36: 109057800 | N36: 318366400 | O36: 0.2396751497 | P36: 0.7208797282 | Q36: 00000311030500000000 | R36: RIESGOS PROFESIONALES | S36: 1334593000 | T36: -13191829 | U36: -13191829 | V36: 1321401171 | X36: 1321401171 | Y36: 102973814 | Z36: 102973814 | AA36: 0.07792774538 | AB36: 110116684 | AC36: 169900 | AD36: 169900 | AE36: 0.0001285756391 | AF36: 0.001542908793 | AG36: 6923440 | AH36: 2338416 | AI36: 327822289 | AJ36: 216182789 | AK36: 318196500 | AL36: 209138700
A37: 00000311030600000000 | B37: ICBF | C37: 2730824000 | D37: 14963632 | E37: 2540271 | F37: 2733364271 | H37: 2733364271 | I37: 148798631 | J37: 407526006 | K37: 0.1490931927 | L37: 907405477 | M37: 81234500 | N37: 243458900 | O37: 0.08906932112 | P37: 0.2683022157 | Q37: 00000311030600000000 | R37: ICBF | S37: 2730824000 | T37: -20054977 | U37: -20054977 | V37: 2710769023 | X37: 2710769023 | Y37: 90952575 | Z37: 90952575 | AA37: 0.03355231458 | AB37: 225897417 | AC37: 3285900 | AD37: 3285900 | AE37: 0.001212165246 | AF37: 0.01454598306 | AG37: 22595248 | AH37: 7631616 | AI37: 316573431 | AJ37: 167774800 | AK37: 240173000 | AL37: 158938500
A38: 00000311030700000000 | B38: SENA | C38: 1789839000 | D38: 10287496 | E38: 2387083 | F38: 1792226083 | H38: 1792226083 | I38: 99207687 | J38: 271646239 | K38: 0.1515691807 | L38: 594853794 | M38: 54160700 | N38: 162293300 | O38: 0.09055403308 | P38: 0.2728288894 | Q38: 00000311030700000000 | R38: SENA | S38: 1789839000 | T38: -13147153 | U38: -13147153 | V38: 1776691847 | X38: 1776691847 | Y38: 60601714 | Z38: 60601714 | AA38: 0.03410929932 | AB38: 148057606 | AC38: 2190400 | AD38: 2190400 | AE38: 0.001232853071 | AF38: 0.01479424164 | AG38: 15534236 | AH38: 5246740 | AI38: 211044525 | AJ38: 111836838 | AK38: 160102900 | AL38: 105942200
A39: 312000000000000 | B39: GASTOS GENERALES | C39: 508410399000 | D39: -4960657326 | E39: -29975763770 | F39: 478434635230 | H39: 478434635230 | I39: 28316869244 | J39: 164600461026 | K39: 0.344039601 | L39: 156616477344 | M39: 29862730704 | N39: 72562613414 | O39: 0.1516667232 | P39: 0.4633140436 | Q39: 312000000000000 | R39: GASTOS GENERALES | S39: 508410399000 | T39: -29195617809 | U39: -29195617809 | V39: 479214781191 | X39: 479214781191 | Y39: 100527903841 | Z39: 100527903841 | AA39: 0.2097763003 | AB39: 28893217986 | AC39: 14076634216 | AD39: 14076634216 | AE39: 0.02937437401 | AF39: 0.4871950997 | AG39: -780145961 | AH39: 4180511365 | AI39: 64072557185 | AJ39: 35755687941 | AK39: 58485979198 | AL39: 28623248494
A40: 312010000000000 | B40: ADQUISICION DE BIENES Y SERVICIOS | C40: 508410399000 | D40: -4960657326 | E40: -29975763770 | F40: 478434635230 | H40: 478434635230 | I40: 28316869244 | J40: 164600461026 | K40: 0.344039601 | L40: 156616477344 | M40: 29862730704 | N40: 72562613414 | O40: 0.1516667232 | P40: 0.4633140436 | Q40: 312010000000000 | R40: ADQUISICION DE BIENES Y SERVICIOS | S40: 508410399000 | T40: -29195617809 | U40: -29195617809 | V40: 479214781191 | X40: 479214781191 | Y40: 100527903841 | Z40: 100527903841 | AA40: 0.2097763003 | AB40: 28893217986 | AC40: 14076634216 | AD40: 14076634216 | AE40: 0.02937437401 | AF40: 0.4871950997 | AG40: -780145961 | AH40: 4180511365 | AI40: 64072557185 | AJ40: 35755687941 | AK40: 58485979198 | AL40: 28623248494
A41: 00000312010100000000 | B41: DOTACION | C41: 3462394000 | D41: 0 | E41: 102026758 | F41: 3564420758 | H41: 3564420758 | I41: 0 | J41: 211494238 | K41: 0.05933481268 | L41: 102533173 | N41: 22508070 | O41: 0.006314650129 | P41: 0.2195198816 | Q41: 00000312010100000000 | R41: DOTACION | S41: 3462394000 | T41: 0 | U41: 0 | V41: 3462394000 | X41: 3462394000 | Y41: 500000 | Z41: 500000 | AA41: 0.000144408753 | AB41: 168805 | AG41: 102026758 | AH41: 102026758 | AI41: 210994238 | AJ41: 210994238 | AK41: 22508070 | AL41: 22508070
A42: 00000312010200000000 | B42: MATERIALES Y SUMINISTROS | C42: 14360601000 | D42: 0 | E42: -118000000 | F42: 14242601000 | H42: 14242601000 | I42: 0 | J42: 8035515494 | K42: 0.5641887668 | L42: 1284915508 | M42: 61345900 | N42: 94882736 | O42: 0.006661896658 | P42: 0.07384356046 | Q42: 00000312010200000000 | R42: MATERIALES Y SUMINISTROS | S42: 14360601000 | T42: -106000000 | U42: -106000000 | V42: 14254601000 | X42: 14254601000 | Y42: 7179498234 | Z42: 7179498234 | AA42: 0.5036618166 | AB42: 834155886 | AG42: -12000000 | AH42: -12000000 | AI42: 856017260 | AJ42: 856017260 | AK42: 94882736 | AL42: 33536836
A43: 00000312010300000000 | B43: ARRENDAMIENTOS | C43: 13288258000 | D43: 11137261 | E43: -115619303 | F43: 13172638697 | H43: 13172638697 | I43: 154588280 | J43: 8638681396 | K43: 0.6558049298 | L43: 759173172 | M43: 137133462 | N43: 512188733 | O43: 0.03888277397 | P43: 0.6746665344 | Q43: 00000312010300000000 | R43: ARRENDAMIENTOS | S43: 13288258000 | T43: -126756564 | U43: -126756564 | V43: 13161501436 | X43: 13161501436 | Y43: 8484093116 | Z43: 8484093116 | AA43: 0.6446143821 | AB43: 213803689 | AG43: 11137261 | AH43: 0 | AI43: 154588280 | AJ43: 0 | AK43: 512188733 | AL43: 375055271
A44: 00000312010400000000 | B44: GASTOS DE COMPUTADOR | C44: 33237587000 | D44: -103351463 | E44: -85852550 | F44: 33151734450 | H44: 33151734450 | I44: 858983354 | J44: 28986784381 | K44: 0.8743670538 | L44: 6659901408 | M44: 5059901407 | N44: 5059901407 | O44: 0.1526285575 | P44: 0.7597562031 | Q44: 00000312010400000000 | R44: GASTOS DE COMPUTADOR | S44: 33237587000 | T44: -85852550 | U44: -85852550 | V44: 33151734450 | X44: 33151734450 | Y44: 26234946567 | Z44: 26234946567 | AA44: 0.7913596981 | AB44: 410384853 | AG44: 0 | AH44: 103351463 | AI44: 2751837814 | AJ44: 1892854460 | AK44: 5059901407 | AL44: 0
A45: 00000312010500000000 | B45: VIATICOS Y GASTOS DE VIAJE | C45: 994851000 | F45: 994851000 | H45: 994851000 | I45: 27837645 | J45: 93029984 | K45: 0.09351147458 | L45: 331616460 | M45: 22861132 | N45: 87557382 | O45: 0.08801054831 | P45: 0.2640320749 | Q45: 00000312010500000000 | R45: VIATICOS Y GASTOS DE VIAJE | S45: 994851000 | V45: 994851000 | X45: 994851000 | Y45: 21094056 | Z45: 21094056 | AA45: 0.02120323144 | AB45: 82904115 | AC45: 21094056 | AD45: 21094056 | AE45: 0.02120323144 | AF45: 0.2544391916 | AG45: 0 | AH45: 0 | AI45: 71935928 | AJ45: 44098283 | AK45: 66463326 | AL45: 43602194
A46: 00000312010600000000 | B46: GASTOS DE TRANSPORTE Y COMUNICACIÓN | C46: 13130922000 | D46: -58575000 | E46: -254980000 | F46: 12875942000 | H46: 12875942000 | I46: 510011459 | J46: 3245336707 | K46: 0.252046546 | L46: 2077772494 | M46: 291833820 | N46: 1650177723 | O46: 0.1281597667 | P46: 0.7942052019 | Q46: 00000312010600000000 | R46: GASTOS DE TRANSPORTE Y COMUNICACIÓN | S46: 13130922000 | T46: -200325000 | U46: -200325000 | V46: 12930597000 | X46: 12930597000 | Y46: 779155352 | Z46: 779155352 | AA46: 0.06025671916 | AB46: 292740271 | AC46: 263447703 | AD46: 263447703 | AE46: 0.02037397832 | AF46: 0.8999366643 | AG46: -54655000 | AH46: 3920000 | AI46: 2466181355 | AJ46: 1956169896 | AK46: 1386730020 | AL46: 1094896200
A47: 00000312010700000000 | B47: IMPRESOS Y PUBLICACIONES | C47: 527293000 | D47: -3642000 | E47: -3642000 | F47: 523651000 | H47: 523651000 | I47: 8008471 | J47: 69488928 | K47: 0.1327008408 | L47: 63904262 | M47: 9281971 | N47: 49580678 | O47: 0.09468267606 | P47: 0.7758587056 | Q47: 00000312010700000000 | R47: IMPRESOS Y PUBLICACIONES | S47: 527293000 | V47: 527293000 | X47: 527293000 | Y47: 21665060 | Z47: 21665060 | AA47: 0.04108732716 | AB47: 7154283 | AC47: 4862260 | AD47: 4862260 | AE47: 0.009221173048 | AF47: 0.6796292515 | AG47: -3642000 | AH47: 0 | AI47: 47823868 | AJ47: 39815397 | AK47: 44718418 | AL47: 35436447
A48: 00000312010800000000 | B48: SENTENCIAS JUDICIALES | C48: 750000000 | F48: 750000000 | H48: 750000000 | I48: 167983326 | J48: 167983326 | K48: 0.223977768 | L48: 168000000 | M48: 167983326 | N48: 167983326 | O48: 0.223977768 | P48: 0.99990075 | Q48: 00000312010800000000 | R48: SENTENCIAS JUDICIALES | S48: 750000000 | V48: 750000000 | X48: 750000000 | AB48: 62500000 | AG48: 0 | AH48: 0 | AI48: 167983326 | AJ48: 0 | AK48: 167983326 | AL48: 0
A49: 00000312010900000000 | B49: MANTENIMIENTO Y REPARACIONES | C49: 70962890000 | D49: 15000000 | E49: -471561346 | F49: 70491328654 | H49: 70491328654 | I49: 4321273394 | J49: 23889929330 | K49: 0.3389059305 | L49: 11538040143 | M49: 2423315286 | N49: 2823486606 | O49: 0.04005438201 | P49: 0.2447111096 | Q49: 00000312010900000000 | R49: MANTENIMIENTO Y REPARACIONES | S49: 70962890000 | T49: -237790220 | U49: -237790220 | V49: 70725099780 | X49: 70725099780 | Y49: 14423791024 | Z49: 14423791024 | AA49: 0.2039416143 | AB49: 754679907 | AC49: 10617764 | AD49: 10617764 | AE49: 0.0001501272396 | AF49: 0.01406922843 | AG49: -233771126 | AH49: -248771126 | AI49: 9466138306 | AJ49: 5144864912 | AK49: 2812868842 | AL49: 389553556
A50: 00000312011000000000 | B50: COMBUSTIBLES, LUBRICANTES Y LLANTAS | C50: 5152897000 | D50: -1500000000 | E50: -1500000000 | F50: 3652897000 | H50: 3652897000 | I50: 40000000 | J50: 73998040 | K50: 0.02025735738 | L50: 10098450 | Q50: 00000312011000000000 | R50: COMBUSTIBLES, LUBRICANTES Y LLANTAS | S50: 5152897000 | T50: 0 | U50: 0 | V50: 5152897000 | X50: 5152897000 | Y50: 33998040 | Z50: 33998040 | AA50: 0.006597849714 | AB50: 3025150 | AG50: -1500000000 | AH50: 0 | AI50: 40000000 | AJ50: 0 | AK50: 0 | AL50: 0
A51: 00000312011100000000 | B51: SEGUROS | C51: 23885466000 | D51: 0 | E51: 263999976 | F51: 24149465976 | H51: 24149465976 | I51: 2670975 | J51: 21910145816 | K51: 0.9072724771 | L51: 22076026104 | M51: 27968514 | N51: 15635265353 | O51: 0.6474373126 | P51: 0.70824637 | Q51: 00000312011100000000 | R51: SEGUROS | S51: 23885466000 | T51: 0 | U51: 0 | V51: 23885466000 | X51: 23885466000 | Y51: 20994817460 | Z51: 20994817460 | AA51: 0.8789787673 | AB51: 21673500346 | AC51: 11040406218 | AD51: 11040406218 | AE51: 0.4622227684 | AF51: 0.5093965461 | AG51: 263999976 | AH51: 263999976 | AI51: 915328356 | AJ51: 912657381 | AK51: 4594859135 | AL51: 4566890621
A52: 00000312011200000000 | B52: SUMINISTRO DE ALIMENTOS | C52: 3945800000 | D52: 0 | E52: 358399035 | F52: 4304199035 | H52: 4304199035 | I52: 990000000 | J52: 1201230635 | K52: 0.2790834311 | L52: 194399035 | N52: 31196215 | O52: 0.007247856046 | P52: 0.1604751536 | Q52: 00000312011200000000 | R52: SUMINISTRO DE ALIMENTOS | S52: 3945800000 | T52: 310000000 | U52: 310000000 | V52: 4255800000 | X52: 4255800000 | AG52: 48399035 | AH52: 48399035 | AI52: 1201230635 | AJ52: 211230635 | AK52: 31196215 | AL52: 31196215
A53: 00000312011300000000 | B53: SERVICIOS PUBLICOS | C53: 5773285000 | D53: 0 | E53: 0 | F53: 5773285000 | H53: 5773285000 | I53: 99566778 | J53: 4762432967 | K53: 0.8249086901 | L53: 1216888427 | M53: 426202452 | N53: 1017163122 | O53: 0.1761844638 | P53: 0.8358721305 | Q53: 00000312011300000000 | R53: SERVICIOS PUBLICOS | S53: 5773285000 | T53: 0 | U53: 0 | V53: 5773285000 | X53: 5773285000 | Y53: 1292055095 | Z53: 1292055095 | AA53: 0.2237989455 | AB53: 510706922 | AC53: 129494595 | AD53: 129494595 | AE53: 0.02242996751 | AF53: 0.2535595063 | AG53: 0 | AH53: 0 | AI53: 3470377872 | AJ53: 3370811094 | AK53: 887668527 | AL53: 461466075
A54: 00000312011400000000 | B54: CAPACITACION | C54: 885200000 | D54: -3124968 | E54: -3862685 | F54: 881337315 | H54: 881337315 | I54: 0 | J54: 151410050 | K54: 0.171795801 | L54: 54597315 | M54: 11768522 | N54: 11768522 | O54: 0.01335302818 | P54: 0.2155512959 | Q54: 00000312011400000000 | R54: CAPACITACION | S54: 885200000 | V54: 885200000 | X54: 885200000 | Y54: 151410050 | Z54: 151410050 | AA54: 0.1710461478 | AG54: -3862685 | AH54: -737717 | AI54: 0 | AJ54: 0 | AK54: 11768522 | AL54: 0
A55: 00000312011500000000 | B55: BIENESTAR E INCENTIVOS | C55: 4594000000 | F55: 4594000000 | H55: 4594000000 | L55: 0 | Q55: 00000312011500000000 | R55: BIENESTAR E INCENTIVOS | S55: 4594000000 | V55: 4594000000 | X55: 4594000000 | AG55: 0 | AH55: 0 | AI55: 0 | AJ55: 0 | AK55: 0 | AL55: 0
A56: 00000312011600000000 | B56: PROMOCION INSTITUCIONAL | C56: 3115000000 | F56: 3115000000 | H56: 3115000000 | I56: 1916000 | J56: 1108717700 | K56: 0.3559286356 | L56: 143749512 | M56: 44139381 | N56: 44589381 | O56: 0.01431440803 | P56: 0.3101880513 | Q56: 00000312011600000000 | R56: PROMOCION INSTITUCIONAL | S56: 3115000000 | V56: 3115000000 | X56: 3115000000 | Y56: 1094219148 | Z56: 1094219148 | AA56: 0.3512742048 | AG56: 0 | AH56: 0 | AI56: 14498552 | AJ56: 12582552 | AK56: 44589381 | AL56: 450000
A57: 00000312011700000000 | B57: IMPUESTOS, TASAS, CONTRIBUCIONES, DERECHOS Y MULTAS | C57: 299348017000 | D57: -3229258132 | E57: -28776350415 | F57: 270571666585 | H57: 270571666585 | I57: 21133207562 | J57: 57803037908 | K57: 0.2136330039 | L57: 108617158498 | M57: 20839036520 | N57: 44598801018 | O57: 0.1648317489 | P57: 0.4106054848 | Q57: 00000312011700000000 | R57: IMPUESTOS, TASAS, CONTRIBUCIONES, DERECHOS Y MULTAS | S57: 299348017000 | T57: -28162403139 | U57: -28162403139 | V57: 271185613861 | X57: 271185613861 | Y57: 15612460731 | Z57: 15612460731 | AA57: 0.05757112447 | AB57: 3813797198 | AC57: 2606366802 | AD57: 2606366802 | AE57: 0.009611006885 | AF57: 0.6834046664 | AG57: -613947276 | AH57: 2615310856 | AI57: 42190577177 | AJ57: 21057369615 | AK57: 41992434216 | AL57: 21153397696
A58: 00000312011800000000 | B58: INTERESES Y COMISIONES | C58: 1843664000 | D58: 0 | E58: 65180000 | F58: 1908844000 | H58: 1908844000 | I58: 0 | J58: 1483664000 | K58: 0.7772578587 | L58: 127800000 | M58: 247091 | N58: 1113962 | O58: 0.000583579381 | P58: 0.008716447574 | Q58: 00000312011800000000 | R58: INTERESES Y COMISIONES | S58: 1843664000 | T58: 0 | U58: 0 | V58: 1843664000 | X58: 1843664000 | Y58: 1483664000 | Z58: 1483664000 | AA58: 0.8047366548 | AB58: 700000 | AC58: 344818 | AD58: 344818 | AE58: 0.000187028656 | AF58: 0.4925971429 | AG58: 65180000 | AH58: 65180000 | AI58: 0 | AJ58: 0 | AK58: 769144 | AL58: 522053
A59: 00000312011900000000 | B59: SALUD OCUPACIONAL | C59: 764775000 | F59: 764775000 | H59: 764775000 | J59: 51505611 | K59: 0.06734740414 | L59: 9338889 | Q59: 00000312011900000000 | R59: SALUD OCUPACIONAL | S59: 764775000 | V59: 764775000 | X59: 764775000 | AG59: 0 | AH59: 0 | AI59: 51505611 | AJ59: 51505611 | AK59: 0 | AL59: 0
A60: 00000312012000000000 | B60: PROGRAMAS Y CONVENIOS INSTITUCIONALES | C60: 142000000 | F60: 142000000 | H60: 142000000 | J60: 64157000 | K60: 0.4518098592 | L60: 64157000 | N60: 64157000 | O60: 0.4518098592 | P60: 1 | Q60: 00000312012000000000 | R60: PROGRAMAS Y CONVENIOS INSTITUCIONALES | S60: 142000000 | V60: 142000000 | X60: 142000000 | Y60: 64157000 | Z60: 64157000 | AA60: 0.4518098592 | AB60: 64157000 | AG60: 0 | AH60: 0 | AI60: 0 | AJ60: 0 | AK60: 64157000 | AL60: 64157000
A61: 00000312019900000000 | B61: OTROS GASTOS GENERALES | C61: 8245499000 | D61: -88843024 | E61: 564498760 | F61: 8809997760 | H61: 8809997760 | I61: 822000 | J61: 2651917515 | K61: 0.3010122803 | L61: 1116407494 | M61: 339711920 | N61: 690292180 | O61: 0.07835327531 | P61: 0.6183156094 | Q61: 00000312019900000000 | R61: OTROS GASTOS GENERALES | S61: 8245499000 | T61: -586490336 | U61: -586490336 | V61: 7659008664 | X61: 7659008664 | Y61: 2656378908 | Z61: 2656378908 | AA61: 0.3468306441 | AB61: 168839561 | AG61: 1150989096 | AH61: 1239832120 | AI61: -4461393 | AJ61: -5283393 | AK61: 690292180 | AL61: 350580260
A62: 313000000000000 | B62: TRANSFERENCIAS CORRIENTES | C62: 288946579000 | D62: 23166744 | E62: -1035966434 | F62: 287910612566 | H62: 287910612566 | I62: 13524080030 | J62: 121811058058 | K62: 0.4230863773 | L62: 80700873845 | M62: 20212408215 | N62: 63252984048 | O62: 0.2196966047 | P62: 0.7837955283 | Q62: 313000000000000 | R62: TRANSFERENCIAS CORRIENTES | S62: 288946579000 | T62: -1060405414 | U62: -1060405414 | V62: 287886173586 | X62: 287886173586 | Y62: 74307406938 | Z62: 74307406938 | AA62: 0.2581138441 | AB62: 23042818595 | AC62: 14305393268 | AD62: 14305393268 | AE62: 0.04969114386 | AF62: 0.6208178574 | AG62: 24438980 | AH62: 1272236 | AI62: 47503651120 | AJ62: 33979571090 | AK62: 48947590780 | AL62: 28735182565
A63: 313030000000000 | B63: TRANSFERENCIAS DE PREVISION Y SEGURIDAD | C63: 266335378000 | D63: 23166744 | E63: -1035966434 | F63: 265299411566 | H63: 265299411566 | I63: 13515480030 | J63: 115538210984 | K63: 0.4355011958 | L63: 80462140509 | M63: 20203808215 | N63: 63149755858 | O63: 0.2380320238 | P63: 0.7848381296 | Q63: 313030000000000 | R63: TRANSFERENCIAS DE PREVISION Y SEGURIDAD | S63: 266335378000 | T63: -1060405414 | U63: -1060405414 | V63: 265274972586 | X63: 265274972586 | Y63: 74231221448 | Z63: 74231221448 | AA63: 0.2798274587 | AB63: 22956885261 | AC63: 14229207778 | AD63: 14229207778 | AE63: 0.05363946564 | AF63: 0.6198230995 | AG63: 24438980 | AH63: 1272236 | AI63: 41306989536 | AJ63: 27791509506 | AK63: 48920548080 | AL63: 28716739865
A64: 00000313030100000000 | B64: PENSIONES Y JUBILACIONES | C64: 190660263000 | D64: 0 | E64: -536848830 | F64: 190123414170 | H64: 190123414170 | I64: 13299740881 | J64: 52343557379 | K64: 0.2753135778 | L64: 63553420732 | M64: 13203740881 | N64: 52247557379 | O64: 0.2748086426 | P64: 0.8221045662 | Q64: 00000313030100000000 | R64: PENSIONES Y JUBILACIONES | S64: 190660263000 | T64: -536848830 | U64: -536848830 | V64: 190123414170 | X64: 190123414170 | Y64: 12921652929 | Z64: 12921652929 | AA64: 0.06796455337 | AB64: 15888355183 | AC64: 12921652929 | AD64: 12921652929 | AE64: 0.06796455337 | AF64: 0.8132782016 | AG64: 0 | AH64: 0 | AI64: 39421904450 | AJ64: 26122163569 | AK64: 39325904450 | AL64: 26122163569
A65: 00000313030200000000 | B65: CESANTIAS | C65: 14141377000 | D65: 23166744 | E65: -499117604 | F65: 13642259396 | H65: 13642259396 | I65: 630290861 | J65: 3367278747 | K65: 0.2468270577 | L65: 5403054961 | M65: 568143696 | N65: 3305131582 | O65: 0.2422715685 | P65: 0.6117153362 | Q65: 00000313030200000000 | R65: CESANTIAS | S65: 14141377000 | T65: -523556584 | U65: -523556584 | V65: 13617820416 | X65: 13617820416 | Y65: 1307554849 | Z65: 1307554849 | AA65: 0.09601792424 | AB65: 1971225360 | AC65: 1307554849 | AD65: 1307554849 | AE65: 0.09601792424 | AF65: 0.6633208336 | AG65: 24438980 | AH65: 1272236 | AI65: 2059723898 | AJ65: 1429433037 | AK65: 1997576733 | AL65: 1429433037
A66: 00000313030300000000 | B66: OTRAS TRANSFERENCIAS DE PREVISION Y SEGURIDAD SOCIAL | C66: 61533738000 | D66: 0 | E66: 0 | F66: 61533738000 | H66: 61533738000 | I66: -414551712 | J66: 59827374858 | K66: 0.9722694704 | L66: 11505664816 | M66: 6431923638 | N66: 7597066897 | O66: 0.1234618137 | P66: 0.6602892591 | Q66: 00000313030300000000 | R66: OTRAS TRANSFERENCIAS DE PREVISION Y SEGURIDAD SOCIAL | S66: 61533738000 | T66: 0 | U66: 0 | V66: 61533738000 | X66: 61533738000 | Y66: 60002013670 | Z66: 60002013670 | AA66: 0.975107569 | AB66: 5097304718 | AG66: 0 | AH66: 0 | AI66: -174638812 | AJ66: 239912900 | AK66: 7597066897 | AL66: 1165143259
A67: 313040000000000 | B67: OTRAS TRANSFERENCIAS | C67: 22611201000 | F67: 22611201000 | H67: 22611201000 | I67: 8600000 | J67: 6272847074 | K67: 0.2774221092 | L67: 238733336 | M67: 8600000 | N67: 103228190 | O67: 0.004565356347 | P67: 0.4323995623 | Q67: 313040000000000 | R67: OTRAS TRANSFERENCIAS | S67: 22611201000 | V67: 22611201000 | X67: 22611201000 | Y67: 76185490 | Z67: 76185490 | AA67: 0.003369369455 | AB67: 85933334 | AC67: 76185490 | AD67: 76185490 | AE67: 0.003369369455 | AF67: 0.8865650435 | AG67: 0 | AH67: 0 | AI67: 6196661584 | AJ67: 6188061584 | AK67: 27042700 | AL67: 18442700
A68: 00000313040200000000 | B68: PRESTAMOS DE BIENESTAR | C68: 611201000 | F68: 611201000 | H68: 611201000 | I68: 8600000 | J68: 103228190 | K68: 0.1688940136 | L68: 238733336 | M68: 8600000 | N68: 103228190 | O68: 0.1688940136 | P68: 0.4323995623 | Q68: 00000313040200000000 | R68: PRESTAMOS DE BIENESTAR | S68: 611201000 | V68: 611201000 | X68: 611201000 | Y68: 76185490 | Z68: 76185490 | AA68: 0.1246488307 | AB68: 85933334 | AC68: 76185490 | AD68: 76185490 | AE68: 0.1246488307 | AF68: 0.8865650435 | AG68: 0 | AH68: 0 | AI68: 27042700 | AJ68: 18442700 | AK68: 27042700 | AL68: 18442700
A69: 00000313040300000000 | B69: PRESTAMOS FONDO DE VIVIENDA | C69: 22000000000 | F69: 22000000000 | H69: 22000000000 | J69: 6169618884 | K69: 0.280437222 | Q69: 00000313040300000000 | R69: PRESTAMOS FONDO DE VIVIENDA | S69: 22000000000 | V69: 22000000000 | X69: 22000000000 | AG69: 0 | AH69: 0 | AI69: 6169618884 | AJ69: 6169618884 | AK69: 0 | AL69: 0
A70: 314000000000000 | B70: CUENTAS POR PAGAR | C70: 116559783000 | D70: -1137667148 | E70: 25503317670 | F70: 142063100670 | H70: 142063100670 | I70: -8753708108 | J70: 133618158566 | K70: 0.9405549924 | L70: 85887759862 | M70: 10346539664 | N70: 65997907750 | O70: 0.4645675579 | P70: 0.7684204112 | Q70: 314000000000000 | R70: CUENTAS POR PAGAR | S70: 116559783000 | T70: 26640984818 | U70: 26640984818 | V70: 143200767818 | X70: 143200767818 | Y70: 142961063285 | Z70: 142961063285 | AA70: 0.9983260946 | AB70: 44971851165 | AC70: 17823386263 | AD70: 17823386263 | AE70: 0.1244643205 | AF70: 0.3963231622 | AG70: -1137667148 | AH70: 0 | AI70: -9342904719 | AJ70: -589196611 | AK70: 48174521487 | AL70: 37827981823
A71: 00000314000000000000 | B71: CUENTAS POR PAGAR | C71: 116559783000 | D71: -1137667148 | E71: 25503317670 | F71: 142063100670 | H71: 142063100670 | I71: -8753708108 | J71: 133618158566 | K71: 0.9405549924 | L71: 85887759862 | M71: 10346539664 | N71: 65997907750 | O71: 0.4645675579 | P71: 0.7684204112 | Q71: 00000314000000000000 | R71: CUENTAS POR PAGAR | S71: 116559783000 | T71: 26640984818 | U71: 26640984818 | V71: 143200767818 | X71: 143200767818 | Y71: 142961063285 | Z71: 142961063285 | AA71: 0.9983260946 | AB71: 44971851165 | AC71: 17823386263 | AD71: 17823386263 | AE71: 0.1244643205 | AF71: 0.3963231622 | AG71: -1137667148 | AH71: 0 | AI71: -9342904719 | AJ71: -589196611 | AK71: 48174521487 | AL71: 37827981823
A72: 320000000000000 | B72: GASTOS DE OPERACIÓN | C72: 320996098000 | D72: 0 | E72: 23210171796 | F72: 344206269796 | H72: 344206269796 | I72: 5611084909 | J72: 252536165047 | K72: 0.7336768305 | L72: 111235598558 | M72: 27005950256 | N72: 91674917697 | O72: 0.2663371523 | P72: 0.8241508913 | Q72: 320000000000000 | R72: GASTOS DE OPERACIÓN | S72: 320996098000 | T72: 0 | U72: 0 | V72: 320996098000 | X72: 320996098000 | Y72: 240834217349 | Z72: 240834217349 | AA72: 0.7502714795 | AB72: 33037249612 | AC72: 17487795633 | AD72: 17487795633 | AE72: 0.05447977636 | AF72: 0.5293356995 | AG72: 23210171796 | AH72: 23210171796 | AI72: 11701947698 | AJ72: 6090862789 | AK72: 74187122064 | AL72: 47181171808
A73: 321000000000000 | B73: GASTOS DE COMERCIALIZACION | C73: 121536854000 | D73: 4000000 | E73: 28468959480 | F73: 150005813480 | H73: 150005813480 | I73: 1156839 | J73: 77518282403 | K73: 0.5167685212 | L73: 26709182571 | M73: 4241066053 | N73: 20041829482 | O73: 0.1336070184 | P73: 0.7503722523 | Q73: 321000000000000 | R73: GASTOS DE COMERCIALIZACION | S73: 121536854000 | T73: 15254787684 | U73: 15254787684 | V73: 136791641684 | X73: 136791641684 | Y73: 76242247276 | Z73: 76242247276 | AA73: 0.557360423 | AB73: 504475092 | AG73: =F73-V73 -> 13214171796 | AH73: =AG73-D73 -> 13210171796 | AI73: =J73-Z73 -> 1276035127 | AJ73: =AI73-I73 -> 1274878288 | AK73: =N73-AD73 -> 20041829482 | AL73: =AK73-M73 -> 15800763429
A74: 321010000000000 | B74: COMPRA DE BIENES PARA LA VENTA | C74: 14000000000 | D74: 0 | E74: 0 | F74: 14000000000 | H74: 14000000000 | J74: 13999992223 | K74: 0.9999994445 | L74: 0 | Q74: 321010000000000 | R74: COMPRA DE BIENES PARA LA VENTA | S74: 14000000000 | T74: 0 | U74: 0 | V74: 14000000000 | X74: 14000000000 | Y74: 13999992223 | Z74: 13999992223 | AA74: 0.9999994445 | AB74: 0 | AG74: 0 | AH74: 0 | AI74: 0 | AJ74: 0 | AK74: 0 | AL74: 0
A75: 00000321010100000000 | B75: MEDIDORES | C75: 14000000000 | D75: 0 | E75: 0 | F75: 14000000000 | H75: 14000000000 | J75: 13999992223 | K75: 0.9999994445 | L75: 0 | Q75: 00000321010100000000 | R75: MEDIDORES | S75: 14000000000 | T75: 0 | U75: 0 | V75: 14000000000 | X75: 14000000000 | Y75: 13999992223 | Z75: 13999992223 | AA75: 0.9999994445 | AB75: 0 | AG75: 0 | AH75: 0 | AI75: 0 | AJ75: 0 | AK75: 0 | AL75: 0
A76: 321020000000000 | B76: COMPRA DE SERVICIOS PARA LA VENTA | C76: 12817034000 | D76: 0 | E76: 20254171796 | F76: 33071205796 | H76: 33071205796 | I76: 0 | J76: 28124373051 | K76: 0.8504187366 | L76: 19937530742 | M76: 2814561376 | N76: 16780588242 | O76: 0.5074078141 | P76: 0.8416583006 | Q76: 321020000000000 | R76: COMPRA DE SERVICIOS PARA LA VENTA | S76: 12817034000 | T76: 17301135099 | U76: 17301135099 | V76: 30118169099 | X76: 30118169099 | Y76: 26850301362 | Z76: 26850301362 | AA76: 0.8914984597 | AB76: 0 | AG76: 2953036697 | AH76: 2953036697 | AI76: 1274071689 | AJ76: 1274071689 | AK76: 16780588242 | AL76: 13966026866
A77: 00000321020100000000 | B77: GESTION COMERCIAL | C77: 12817034000 | D77: 0 | E77: 450000000 | F77: 13267034000 | H77: 13267034000 | I77: 0 | J77: 9862267757 | K77: 0.7433664342 | L77: 133358946 | M77: 49841529 | N77: 49841529 | O77: 0.003756795151 | P77: 0.373739674 | Q77: 00000321020100000000 | R77: GESTION COMERCIAL | S77: 12817034000 | T77: 0 | U77: 0 | V77: 12817034000 | X77: 12817034000 | Y77: 9671731782 | Z77: 9671731782 | AA77: 0.7545998382 | AB77: 0 | AG77: 450000000 | AH77: 450000000 | AI77: 190535975 | AJ77: 190535975 | AK77: 49841529 | AL77: 0
A78: 00000321020400000000 | B78: PROCESO ASEO | D78: 0 | E78: 19804171796 | F78: 19804171796 | H78: 19804171796 | I78: 0 | J78: 18262105294 | K78: 0.9221342595 | L78: 19804171796 | M78: 2764719847 | N78: 16730746713 | O78: 0.8448092092 | P78: 0.8448092092 | Q78: 00000321020400000000 | R78: PROCESO ASEO | T78: 17301135099 | U78: 17301135099 | V78: 17301135099 | X78: 17301135099 | Y78: 17178569580 | Z78: 17178569580 | AA78: 0.9929157527 | AG78: 2503036697 | AH78: 2503036697 | AI78: 1083535714 | AJ78: 1083535714 | AK78: 16730746713 | AL78: 13966026866
A79: 321030000000000 | B79: OTROS GASTOS DE COMERCIALIZACION | C79: 94719820000 | D79: 4000000 | E79: 8214787684 | F79: 102934607684 | H79: 102934607684 | I79: 1156839 | J79: 35393917129 | K79: 0.3438485649 | L79: 6771651829 | M79: 1426504677 | N79: 3261241240 | O79: 0.03168265089 | P79: 0.481602026 | Q79: 321030000000000 | R79: OTROS GASTOS DE COMERCIALIZACION | S79: 94719820000 | T79: -2046347415 | U79: -2046347415 | V79: 92673472585 | X79: 92673472585 | Y79: 35391953691 | Z79: 35391953691 | AA79: 0.3818995091 | AB79: 504475092 | AG79: 10261135099 | AH79: 10257135099 | AI79: 1963438 | AJ79: 806599 | AK79: 3261241240 | AL79: 1834736563
A80: 00000321030100000000 | B80: MANTENIMIENTO Y MATERIALES OPERACION INF AC Y AL | C80: 88789820000 | D80: 4000000 | E80: 2960000000 | F80: 91749820000 | H80: 91749820000 | I80: 1156839 | J80: 35393917129 | K80: 0.3857655212 | L80: 6734151829 | M80: 1426504677 | N80: 3261241240 | O80: 0.03554493339 | P80: 0.4842838895 | Q80: 00000321030100000000 | R80: MANTENIMIENTO Y MATERIALES OPERACION INF AC Y AL | S80: 88789820000 | T80: -7301135099 | U80: -7301135099 | V80: 81488684901 | X80: 81488684901 | Y80: 35391953691 | Z80: 35391953691 | AA80: 0.4343173992 | AB80: 491975092 | AG80: 10261135099 | AH80: 10257135099 | AI80: 1963438 | AJ80: 806599 | AK80: 3261241240 | AL80: 1834736563
A81: 00000321030200000000 | B81: COMERCIALIZACION DE ENERGIA - CHSA | C81: 150000000 | F81: 150000000 | H81: 150000000 | L81: 37500000 | Q81: 00000321030200000000 | R81: COMERCIALIZACION DE ENERGIA - CHSA | S81: 150000000 | V81: 150000000 | X81: 150000000 | AB81: 12500000 | AG81: 0 | AH81: 0 | AI81: 0 | AJ81: 0 | AK81: 0 | AL81: 0
A82: 00000321030400000000 | B82: FONDO ATENCION DE EMERGENCIAS | C82: 4280000000 | D82: 0 | E82: -97707731 | F82: 4182292269 | H82: 4182292269 | Q82: 00000321030400000000 | R82: FONDO ATENCION DE EMERGENCIAS | S82: 4280000000 | T82: -97707731 | U82: -97707731 | V82: 4182292269 | X82: 4182292269 | AG82: 0 | AH82: 0 | AI82: 0 | AJ82: 0 | AK82: 0 | AL82: 0
A83: 00000321030600000000 | B83: FONDO OBLIGACIONES CONTINGENTES | C83: 1500000000 | D83: 0 | E83: 5352495415 | F83: 6852495415 | H83: 6852495415 | Q83: 00000321030600000000 | R83: FONDO OBLIGACIONES CONTINGENTES | S83: 1500000000 | T83: 5352495415 | U83: 5352495415 | V83: 6852495415 | X83: 6852495415 | AG83: 0 | AH83: 0 | AI83: 0 | AJ83: 0 | AK83: 0 | AL83: 0
A84: 322000000000000 | B84: GASTOS DE PRODUCCION | C84: 99780483000 | D84: 0 | E84: -5352495415 | F84: 94427987585 | H84: 94427987585 | I84: 5620692748 | J84: 76265157680 | K84: 0.8076541673 | L84: 14017574175 | M84: 4292847709 | N84: 12711531170 | O84: 0.1346161397 | P84: 0.9068281724 | Q84: 322000000000000 | R84: GASTOS DE PRODUCCION | S84: 99780483000 | T84: -15352495415 | U84: -15352495415 | V84: 84427987585 | X84: 84427987585 | Y84: 65815501342 | Z84: 65815501342 | AA84: 0.7795460158 | AB84: 5312849691 | AG84: 10000000000 | AH84: 10000000000 | AI84: 10449656338 | AJ84: 4828963590 | AK84: 12711531170 | AL84: 8418683461
A85: 322010000000000 | B85: INDUSTRIAL | C85: 99780483000 | D85: 0 | E85: -5352495415 | F85: 94427987585 | H85: 94427987585 | I85: 5620692748 | J85: 76265157680 | K85: 0.8076541673 | L85: 14017574175 | M85: 4292847709 | N85: 12711531170 | O85: 0.1346161397 | P85: 0.9068281724 | Q85: 322010000000000 | R85: INDUSTRIAL | S85: 99780483000 | T85: -15352495415 | U85: -15352495415 | V85: 84427987585 | X85: 84427987585 | Y85: 65815501342 | Z85: 65815501342 | AA85: 0.7795460158 | AB85: 5312849691 | AG85: 10000000000 | AH85: 10000000000 | AI85: 10449656338 | AJ85: 4828963590 | AK85: 12711531170 | AL85: 8418683461
A86: 00000322010200000000 | B86: PRODUCTOS QUIMICOS | C86: 18831920000 | D86: 0 | E86: 5791793667 | F86: 24623713667 | H86: 24623713667 | I86: 5620692748 | J86: 21763772834 | K86: 0.8838542036 | L86: 2620522463 | M86: 370157524 | N86: 1353695897 | O86: 0.05497529395 | P86: 0.5165748114 | Q86: 00000322010200000000 | R86: PRODUCTOS QUIMICOS | S86: 18831920000 | T86: 5791793667 | U86: 5791793667 | V86: 24623713667 | X86: 24623713667 | Y86: 13449675736 | Z86: 13449675736 | AA86: 0.5462082575 | AB86: 800992243 | AG86: 0 | AH86: 0 | AI86: 8314097098 | AJ86: 2693404350 | AK86: 1353695897 | AL86: 983538373
A87: 00000322010300000000 | B87: ENERGIA PARA BOMBEO | C87: 54142290000 | D87: 0 | E87: 0 | F87: 54142290000 | H87: 54142290000 | I87: 0 | J87: 54142290000 | K87: 1 | L87: 11023714896 | M87: 3922690185 | N87: 10998740427 | O87: 0.203145091 | P87: 0.997734478 | Q87: 00000322010300000000 | R87: ENERGIA PARA BOMBEO | S87: 54142290000 | T87: 0 | U87: 0 | V87: 54142290000 | X87: 54142290000 | Y87: 52006730760 | Z87: 52006730760 | AA87: 0.9605565402 | AB87: 4511857448 | AG87: 0 | AH87: 0 | AI87: 2135559240 | AJ87: 2135559240 | AK87: 10998740427 | AL87: 7076050242
A88: 00000322010400000000 | B88: TASA POR USO DE AGUA | C88: 4306273000 | F88: 4306273000 | H88: 4306273000 | J88: 359094846 | K88: 0.08338877865 | L88: 373336816 | N88: 359094846 | O88: 0.08338877865 | P88: 0.9618522219 | Q88: 00000322010400000000 | R88: TASA POR USO DE AGUA | S88: 4306273000 | V88: 4306273000 | X88: 4306273000 | Y88: 359094846 | Z88: 359094846 | AA88: 0.08338877865 | AG88: 0 | AH88: 0 | AI88: 0 | AJ88: 0 | AK88: 359094846 | AL88: 359094846
A89: 00000322011000000000 | B89: ASISTENCIA OPERACIÓN | C89: 22500000000 | D89: 0 | E89: -11144289082 | F89: 11355710918 | H89: 11355710918 | L89: 0 | Q89: 00000322011000000000 | R89: ASISTENCIA OPERACIÓN | S89: 22500000000 | T89: -21144289082 | U89: -21144289082 | V89: 1355710918 | X89: 1355710918 | AB89: 0 | AG89: 10000000000 | AH89: 10000000000 | AI89: 0 | AJ89: 0 | AK89: 0 | AL89: 0
A90: 324000000000000 | B90: CUENTAS POR PAGAR | C90: 99678761000 | D90: -4000000 | E90: 93707731 | F90: 99772468731 | H90: 99772468731 | I90: -10764678 | J90: 98752724964 | K90: 0.9897793071 | L90: 70508841812 | M90: 18472036494 | N90: 58921557045 | O90: 0.5905592775 | P90: 0.8356619614 | Q90: 324000000000000 | R90: CUENTAS POR PAGAR | S90: 99678761000 | T90: 97707731 | U90: 97707731 | V90: 99776468731 | X90: 99776468731 | Y90: 98776468731 | Z90: 98776468731 | AA90: 0.9899775968 | AB90: 27219924829 | AC90: 17487795633 | AD90: 17487795633 | AE90: 0.175269739 | AF90: 0.6424630392 | AG90: -4000000 | AH90: 0 | AI90: -23743767 | AJ90: -12979089 | AK90: 41433761412 | AL90: 22961724918
A91: 00000324000000000000 | B91: CUENTAS POR PAGAR | C91: 99678761000 | D91: -4000000 | E91: 93707731 | F91: 99772468731 | H91: 99772468731 | I91: -10764678 | J91: 98752724964 | K91: 0.9897793071 | L91: 70508841812 | M91: 18472036494 | N91: 58921557045 | O91: 0.5905592775 | P91: 0.8356619614 | Q91: 00000324000000000000 | R91: CUENTAS POR PAGAR | S91: 99678761000 | T91: 97707731 | U91: 97707731 | V91: 99776468731 | X91: 99776468731 | Y91: 98776468731 | Z91: 98776468731 | AA91: 0.9899775968 | AB91: 27219924829 | AC91: 17487795633 | AD91: 17487795633 | AE91: 0.175269739 | AF91: 0.6424630392 | AG91: -4000000 | AH91: 0 | AI91: -23743767 | AJ91: -12979089 | AK91: 41433761412 | AL91: 22961724918
A92: 330000000000000 | B92: SERVICIO DE LA DEUDA | C92: 94315746000 | D92: 0 | E92: 0 | F92: 94315746000 | H92: 94315746000 | I92: 309026000 | J92: 57201187541 | K92: 0.606486085 | L92: 24515675236 | M92: 313919699 | N92: 23357646656 | O92: 0.2476537338 | P92: 0.9527637494 | Q92: 330000000000000 | R92: SERVICIO DE LA DEUDA | S92: 94315746000 | T92: 0 | U92: 0 | V92: 94315746000 | X92: 94315746000 | Y92: 56534716182 | Z92: 56534716182 | AA92: 0.5994197001 | AB92: 271822809 | AC92: 10693059 | AD92: 10693059 | AE92: 0.0001133751198 | AF92: 0.03933834338 | AG92: 0 | AH92: 0 | AI92: 666471359 | AJ92: 357445359 | AK92: 23346953597 | AL92: 23033033898
A93: 331000000000000 | B93: DEUDA INTERNA | C93: 78014332000 | F93: 78014332000 | H93: 78014332000 | J93: 56472715561 | K93: 0.7238761663 | L93: 23428384000 | N93: 22665801139 | O93: 0.2905338104 | P93: 0.9674504711 | Q93: 331000000000000 | R93: DEUDA INTERNA | S93: 78014332000 | V93: 78014332000 | X93: 78014332000 | Y93: 56472715561 | Z93: 56472715561 | AA93: 0.7238761663 | AB93: 0 | AG93: 0 | AH93: 0 | AI93: 0 | AJ93: 0 | AK93: 22665801139 | AL93: 22665801139
A94: 00000331010000000000 | B94: AMORTIZACION CAPITAL | C94: 31446890000 | F94: 31446890000 | H94: 31446890000 | J94: 31446888900 | K94: 0.999999965 | L94: 13701445000 | N94: 13701444444 | O94: 0.4357010962 | P94: 0.9999999594 | Q94: 00000331010000000000 | R94: AMORTIZACION CAPITAL | S94: 31446890000 | V94: 31446890000 | X94: 31446890000 | Y94: 31446888900 | Z94: 31446888900 | AA94: 0.999999965 | AG94: 0 | AH94: 0 | AI94: 0 | AJ94: 0 | AK94: 13701444444 | AL94: 13701444444
A95: 00000331020000000000 | B95: INTERESES | C95: 44449342000 | F95: 44449342000 | H95: 44449342000 | J95: 25025826661 | K95: 0.563019058 | L95: 9726939000 | N95: 8964356695 | O95: 0.201675802 | P95: 0.9216009985 | Q95: 00000331020000000000 | R95: INTERESES | S95: 44449342000 | V95: 44449342000 | X95: 44449342000 | Y95: 25025826661 | Z95: 25025826661 | AA95: 0.563019058 | AG95: 0 | AH95: 0 | AI95: 0 | AJ95: 0 | AK95: 8964356695 | AL95: 8964356695
A96: 00000331030000000000 | B96: COMISIONES Y OTROS | C96: 2118100000 | F96: 2118100000 | H96: 2118100000 | L96: 0 | Q96: 00000331030000000000 | R96: COMISIONES Y OTROS | S96: 2118100000 | V96: 2118100000 | X96: 2118100000 | AB96: 0 | AG96: 0 | AH96: 0 | AI96: 0 | AJ96: 0 | AK96: 0 | AL96: 0
A97: 332000000000000 | B97: DEUDA EXTERNA | C97: 200000000 | F97: 200000000 | H97: 200000000 | Q97: 332000000000000 | R97: DEUDA EXTERNA | S97: 200000000 | V97: 200000000 | X97: 200000000 | AG97: 0 | AH97: 0 | AI97: 0 | AJ97: 0 | AK97: 0 | AL97: 0
A98: 00000332030000000000 | B98: COMISIONES Y OTROS | C98: 200000000 | F98: 200000000 | H98: 200000000 | Q98: 00000332030000000000 | R98: COMISIONES Y OTROS | S98: 200000000 | V98: 200000000 | X98: 200000000 | AG98: 0 | AH98: 0 | AI98: 0 | AJ98: 0 | AK98: 0 | AL98: 0
A99: 333000000000000 | B99: BONOS PENSIONALES | C99: 3203150000 | F99: 3203150000 | H99: 3203150000 | I99: 309026000 | J99: 672543359 | K99: 0.2099631172 | L99: 1067716424 | M99: 309026000 | N99: 672543359 | O99: 0.2099631172 | P99: 0.6298894949 | Q99: 333000000000000 | R99: BONOS PENSIONALES | S99: 3203150000 | V99: 3203150000 | X99: 3203150000 | Y99: 6072000 | Z99: 6072000 | AA99: 0.001895633985 | AB99: 266929106 | AC99: 6072000 | AD99: 6072000 | AE99: 0.001895633985 | AF99: 0.02274761299 | AG99: 0 | AH99: 0 | AI99: 666471359 | AJ99: 357445359 | AK99: 666471359 | AL99: 357445359
A100: 00000333010000000000 | B100: BONOS PENSIONALES | C100: 3203150000 | F100: 3203150000 | H100: 3203150000 | I100: 309026000 | J100: 672543359 | K100: 0.2099631172 | L100: 1067716424 | M100: 309026000 | N100: 672543359 | O100: 0.2099631172 | P100: 0.6298894949 | Q100: 00000333010000000000 | R100: BONOS PENSIONALES | S100: 3203150000 | V100: 3203150000 | X100: 3203150000 | Y100: 6072000 | Z100: 6072000 | AA100: 0.001895633985 | AB100: 266929106 | AC100: 6072000 | AD100: 6072000 | AE100: 0.001895633985 | AF100: 0.02274761299 | AG100: 0 | AH100: 0 | AI100: 666471359 | AJ100: 357445359 | AK100: 666471359 | AL100: 357445359
A101: 334000000000000 | B101: CUENTAS POR PAGAR | C101: 55929000 | D101: 0 | E101: 0 | F101: 55929000 | H101: 55929000 | I101: 0 | J101: 55928621 | K101: 0.9999932236 | L101: 19574812 | M101: 4893699 | N101: 19302158 | O101: 0.3451189544 | P101: 0.9860711817 | Q101: 334000000000000 | R101: CUENTAS POR PAGAR | S101: 55929000 | T101: 0 | U101: 0 | V101: 55929000 | X101: 55929000 | Y101: 55928621 | Z101: 55928621 | AA101: 0.9999932236 | AB101: 4893703 | AC101: 4621059 | AD101: 4621059 | AE101: 0.08262366572 | AF101: 0.9442867702 | AG101: 0 | AH101: 0 | AI101: 0 | AJ101: 0 | AK101: 14681099 | AL101: 9787400
A102: 00000334000000000000 | B102: CUENTAS POR PAGAR | C102: 55929000 | D102: 0 | E102: 0 | F102: 55929000 | H102: 55929000 | I102: 0 | J102: 55928621 | K102: 0.9999932236 | L102: 19574812 | M102: 4893699 | N102: 19302158 | O102: 0.3451189544 | P102: 0.9860711817 | Q102: 00000334000000000000 | R102: CUENTAS POR PAGAR | S102: 55929000 | T102: 0 | U102: 0 | V102: 55929000 | X102: 55929000 | Y102: 55928621 | Z102: 55928621 | AA102: 0.9999932236 | AB102: 4893703 | AC102: 4621059 | AD102: 4621059 | AE102: 0.08262366572 | AF102: 0.9442867702 | AG102: 0 | AH102: 0 | AI102: 0 | AJ102: 0 | AK102: 14681099 | AL102: 9787400
A103: 338000000000000 | B103: FONDO OBLIGACIONES CONTINGENTES | C103: 12842335000 | F103: 12842335000 | H103: 12842335000 | Q103: 338000000000000 | R103: FONDO OBLIGACIONES CONTINGENTES | S103: 12842335000 | V103: 12842335000 | X103: 12842335000 | AG103: 0 | AH103: 0 | AI103: 0 | AJ103: 0 | AK103: 0 | AL103: 0
A104: 00000338000000000000 | B104: FONDO OBLIGACIONES CONTINGENTES | C104: 12842335000 | F104: 12842335000 | H104: 12842335000 | Q104: 00000338000000000000 | R104: FONDO OBLIGACIONES CONTINGENTES | S104: 12842335000 | V104: 12842335000 | X104: 12842335000 | AG104: 0 | AH104: 0 | AI104: 0 | AJ104: 0 | AK104: 0 | AL104: 0
A105: 340000000000000 | B105: GASTOS DE INVERSION | C105: 2086894365000 | D105: 0 | E105: 74807097669 | F105: 2161701462669 | H105: 2161701462669 | I105: 894734884 | J105: 1000832685045 | K105: 0.4629837664 | L105: 225148138931 | M105: 48161022118 | N105: 160045190404 | O105: 0.07403667582 | P105: 0.7108439411 | Q105: 340000000000000 | R105: GASTOS DE INVERSION | S105: 2086894365000 | T105: 0 | U105: 0 | V105: 2086894365000 | X105: 2086894365000 | Y105: 994467464246 | Z105: 994467464246 | AA105: 0.4765298526 | AB105: 153481138561 | AC105: 5003273871 | AD105: 5003273871 | AE105: 0.002397473468 | AF105: 0.03259862363 | AG105: 74807097669 | AH105: 74807097669 | AI105: 6365220799 | AJ105: 5470485915 | AK105: 155041916533 | AL105: 106880894415
A106: 341000000000000 | B106: DIRECTA | C106: 1115022286000 | D106: -58217591813 | E106: -52076250011 | F106: 1062946035989 | H106: 1062946035989 | I106: 2793316568 | J106: 513233937727 | K106: 0.4828410101 | L106: 32354447122 | M106: 8532490344 | N106: 19407120973 | O106: 0.018257861 | P106: 0.599828546 | Q106: 341000000000000 | R106: DIRECTA | S106: 1115022286000 | T106: -14064202605 | U106: -14064202605 | V106: 1100958083395 | X106: 1100958083395 | Y106: 509406791208 | Z106: 509406791208 | AA106: 0.4626940834 | AB106: 107841157096 | AG106: -38012047406 | AH106: 20205544407 | AI106: 3827146519 | AJ106: 1033829951 | AK106: 19407120973 | AL106: 10874630629
A107: 3411500000000000 | B107: BOGOTA MEJOR PARA TODOS | C107: 1115022286000 | D107: -58217591813 | E107: -52076250011 | F107: 1062946035989 | H107: 1062946035989 | I107: 2793316568 | J107: 513233937727 | K107: 0.4828410101 | L107: 32354447122 | M107: 8532490344 | N107: 19407120973 | O107: 0.018257861 | P107: 0.599828546 | Q107: 3411500000000000 | R107: BOGOTA MEJOR PARA TODOS | S107: 1115022286000 | T107: -14064202605 | U107: -14064202605 | V107: 1100958083395 | X107: 1100958083395 | Y107: 509406791208 | Z107: 509406791208 | AA107: 0.4626940834 | AB107: 107841157096 | AG107: -38012047406 | AH107: 20205544407 | AI107: 3827146519 | AJ107: 1033829951 | AK107: 19407120973 | AL107: 10874630629
A108: 3411502000000000 | B108: DEMOCRACIA URBANA | C108: 1021237719000 | D108: -58246122224 | E108: -49425878542 | F108: 971811840458 | H108: 971811840458 | I108: 12390915 | J108: 475775931462 | K108: 0.489576183 | L108: 28345943573 | M108: 8243010737 | N108: 18504784121 | O108: 0.0190415298 | P108: 0.6528194792 | Q108: 3411502000000000 | R108: DEMOCRACIA URBANA | S108: 1021237719000 | T108: -14064202605 | U108: -14064202605 | V108: 1007173516395 | X108: 1007173516395 | Y108: 474961994907 | Z108: 474961994907 | AA108: 0.4715791144 | AB108: 106429578540 | AG108: -35361675937 | AH108: 22884446287 | AI108: 813936555 | AJ108: 801545640 | AK108: 18504784121 | AL108: 10261773384
A109: 3411502130000000 | B109: INFRAESTRUCTURA PARA EL DESARROLLO DEL HÁBITAT | C109: 1021237719000 | D109: -58246122224 | E109: -49425878542 | F109: 971811840458 | H109: 971811840458 | I109: 12390915 | J109: 475775931462 | K109: 0.489576183 | L109: 28345943573 | M109: 8243010737 | N109: 18504784121 | O109: 0.0190415298 | P109: 0.6528194792 | Q109: 3411502130000000 | R109: INFRAESTRUCTURA PARA EL DESARROLLO DEL HÁBITAT | S109: 1021237719000 | T109: -14064202605 | U109: -14064202605 | V109: 1007173516395 | X109: 1007173516395 | Y109: 474961994907 | Z109: 474961994907 | AA109: 0.4715791144 | AB109: 106429578540 | AG109: -35361675937 | AH109: 22884446287 | AI109: 813936555 | AJ109: 801545640 | AK109: 18504784121 | AL109: 10261773384
A110: 3411502130019000 | B110: CONST.REDES LOCALES PARA EL SERVICIO ALCANTARILLADO PLUVIAL | C110: 39310965000 | D110: 0 | E110: -9472758929 | F110: 29838206071 | H110: 29838206071 | I110: 0 | J110: 16883409630 | K110: 0.5658319267 | L110: 3216520522 | M110: 1181929681 | N110: 1989800678 | O110: 0.06668633742 | P110: 0.6186189904 | Q110: 3411502130019000 | R110: CONST.REDES LOCALES PARA EL SERVICIO ALCANTARILLADO PLUVIAL | S110: 39310965000 | T110: 0 | U110: 0 | V110: 39310965000 | X110: 39310965000 | Y110: 16883409630 | Z110: 16883409630 | AA110: 0.4294834693 | AB110: 1620816806 | AG110: -9472758929 | AH110: -9472758929 | AI110: 0 | AJ110: 0 | AK110: 1989800678 | AL110: 807870997
A111: 00003411502130019133 | B111: INFRAESTRUCTURA PARA EL DESARROLLO DEL HÁBITAT | C111: 39310965000 | D111: 0 | E111: -9472758929 | F111: 29838206071 | H111: 29838206071 | I111: 0 | J111: 16883409630 | K111: 0.5658319267 | L111: 3216520522 | M111: 1181929681 | N111: 1989800678 | O111: 0.06668633742 | P111: 0.6186189904 | Q111: 00003411502130019133 | R111: INFRAESTRUCTURA PARA EL DESARROLLO DEL HÁBITAT | S111: 39310965000 | T111: 0 | U111: 0 | V111: 39310965000 | X111: 39310965000 | Y111: 16883409630 | Z111: 16883409630 | AA111: 0.4294834693 | AB111: 1620816806 | AG111: -9472758929 | AH111: -9472758929 | AI111: 0 | AJ111: 0 | AK111: 1989800678 | AL111: 807870997
A112: 3411502130020000 | B112: CONST.REDES LOCALES SERVICIO DE ALCANTARILLADO SANITARIO | C112: 27526040000 | D112: 0 | E112: -11209258364 | F112: 16316781636 | H112: 16316781636 | I112: 0 | J112: 6237906783 | K112: 0.3823000713 | L112: 481528903 | M112: 255832683 | N112: 386165157 | O112: 0.02366674787 | P112: 0.8019563407 | Q112: 3411502130020000 | R112: CONST.REDES LOCALES SERVICIO DE ALCANTARILLADO SANITARIO | S112: 27526040000 | T112: 0 | U112: 0 | V112: 27526040000 | X112: 27526040000 | Y112: 6237906783 | Z112: 6237906783 | AA112: 0.2266183869 | AB112: 529894182 | AG112: -11209258364 | AH112: -11209258364 | AI112: 0 | AJ112: 0 | AK112: 386165157 | AL112: 130332474
A113: 00003411502130020133 | B113: INFRAESTRUCTURA PARA EL DESARROLLO DEL HÁBITAT | C113: 27526040000 | D113: 0 | E113: -11209258364 | F113: 16316781636 | H113: 16316781636 | I113: 0 | J113: 6237906783 | K113: 0.3823000713 | L113: 481528903 | M113: 255832683 | N113: 386165157 | O113: 0.02366674787 | P113: 0.8019563407 | Q113: 00003411502130020133 | R113: INFRAESTRUCTURA PARA EL DESARROLLO DEL HÁBITAT | S113: 27526040000 | T113: 0 | U113: 0 | V113: 27526040000 | X113: 27526040000 | Y113: 6237906783 | Z113: 6237906783 | AA113: 0.2266183869 | AB113: 529894182 | AG113: -11209258364 | AH113: -11209258364 | AI113: 0 | AJ113: 0 | AK113: 386165157 | AL113: 130332474
A114: 3411502130021000 | B114: CONST.SISTEMA TRONCAL Y SECUNDARIO ALCANTARILLADO SANITARIO | C114: 14273960000 | D114: 72066415 | E114: 67227578 | F114: 14341187578 | H114: 14341187578 | J114: 13862888797 | K114: 0.9666485932 | L114: 661068091 | N114: 661068091 | O114: 0.04609577048 | P114: 1 | Q114: 3411502130021000 | R114: CONST.SISTEMA TRONCAL Y SECUNDARIO ALCANTARILLADO SANITARIO | S114: 14273960000 | T114: 0 | U114: 0 | V114: 14273960000 | X114: 14273960000 | Y114: 13862888797 | Z114: 13862888797 | AA114: 0.9712013202 | AB114: 0 | AG114: 67227578 | AH114: -4838837 | AI114: 0 | AJ114: 0 | AK114: 661068091 | AL114: 661068091
A115: 00003411502130021133 | B115: INFRAESTRUCTURA PARA EL DESARROLLO DEL HÁBITAT | C115: 14273960000 | D115: 72066415 | E115: 67227578 | F115: 14341187578 | H115: 14341187578 | J115: 13862888797 | K115: 0.9666485932 | L115: 661068091 | N115: 661068091 | O115: 0.04609577048 | P115: 1 | Q115: 00003411502130021133 | R115: INFRAESTRUCTURA PARA EL DESARROLLO DEL HÁBITAT | S115: 14273960000 | T115: 0 | U115: 0 | V115: 14273960000 | X115: 14273960000 | Y115: 13862888797 | Z115: 13862888797 | AA115: 0.9712013202 | AB115: 0 | AG115: 67227578 | AH115: -4838837 | AI115: 0 | AJ115: 0 | AK115: 661068091 | AL115: 661068091
A116: 3411502130022000 | B116: CONST.SISTEMA TRONCAL Y SECUNDARIO DE ALCANTARILLADO PLUVIAL | C116: 38391669000 | D116: -1739475556 | E116: -1702997662 | F116: 36688671338 | H116: 36688671338 | I116: 10345500 | J116: 32528136910 | K116: 0.8865989343 | L116: 795326173 | M116: 136682673 | N116: 136682673 | O116: 0.003725473505 | P116: 0.1718573808 | Q116: 3411502130022000 | R116: CONST.SISTEMA TRONCAL Y SECUNDARIO DE ALCANTARILLADO PLUVIAL | S116: 38391669000 | T116: 0 | U116: 0 | V116: 38391669000 | X116: 38391669000 | Y116: 32464335289 | Z116: 32464335289 | AA116: 0.8456088556 | AB116: 468030485 | AG116: -1702997662 | AH116: 36477894 | AI116: 63801621 | AJ116: 53456121 | AK116: 136682673 | AL116: 0
A117: 00003411502130022133 | B117: INFRAESTRUCTURA PARA EL DESARROLLO DEL HÁBITAT | C117: 38391669000 | D117: -1739475556 | E117: -1702997662 | F117: 36688671338 | H117: 36688671338 | I117: 10345500 | J117: 32528136910 | K117: 0.8865989343 | L117: 795326173 | M117: 136682673 | N117: 136682673 | O117: 0.003725473505 | P117: 0.1718573808 | Q117: 00003411502130022133 | R117: INFRAESTRUCTURA PARA EL DESARROLLO DEL HÁBITAT | S117: 38391669000 | T117: 0 | U117: 0 | V117: 38391669000 | X117: 38391669000 | Y117: 32464335289 | Z117: 32464335289 | AA117: 0.8456088556 | AB117: 468030485 | AG117: -1702997662 | AH117: 36477894 | AI117: 63801621 | AJ117: 53456121 | AK117: 136682673 | AL117: 0
A118: 3411502130050000 | B118: RENOV,REHAB.O REPOS. SIST.ABAST. Y DISTRIB. MATRIZ ACUEDUCTO | C118: 155544351000 | D118: 73477234 | E118: -11797754433 | F118: 143746596567 | H118: 143746596567 | I118: 0 | J118: 69217103573 | K118: 0.4815216863 | L118: 6998314017 | M118: 1984351359 | N118: 3906854113 | O118: 0.02717875905 | P118: 0.5582564748 | Q118: 3411502130050000 | R118: RENOV,REHAB.O REPOS. SIST.ABAST. Y DISTRIB. MATRIZ ACUEDUCTO | S118: 155544351000 | T118: 0 | U118: 0 | V118: 155544351000 | X118: 155544351000 | Y118: 69065924314 | Z118: 69065924314 | AA118: 0.4440272107 | AB118: 17144989758 | AG118: -11797754433 | AH118: -11871231667 | AI118: 151179259 | AJ118: 151179259 | AK118: 3906854113 | AL118: 1922502754
A119: 00003411502130050133 | B119: INFRAESTRUCTURA PARA EL DESARROLLO DEL HÁBITAT | C119: 155544351000 | D119: 73477234 | E119: -11797754433 | F119: 143746596567 | H119: 143746596567 | I119: 0 | J119: 69217103573 | K119: 0.4815216863 | L119: 6998314017 | M119: 1984351359 | N119: 3906854113 | O119: 0.02717875905 | P119: 0.5582564748 | Q119: 00003411502130050133 | R119: INFRAESTRUCTURA PARA EL DESARROLLO DEL HÁBITAT | S119: 155544351000 | T119: 0 | U119: 0 | V119: 155544351000 | X119: 155544351000 | Y119: 69065924314 | Z119: 69065924314 | AA119: 0.4440272107 | AB119: 17144989758 | AG119: -11797754433 | AH119: -11871231667 | AI119: 151179259 | AJ119: 151179259 | AK119: 3906854113 | AL119: 1922502754
A120: 3411502130051000 | B120: RENOV,REHAB.O REPOS.SIST.TRONCAL,SEC. Y LOCAL ALC.SANITARIO | C120: 147614727000 | D120: 2803086681 | E120: 1623832611 | F120: 149238559611 | H120: 149238559611 | I120: 0 | J120: 95996700974 | K120: 0.6432432826 | L120: 4999562025 | M120: 342312749 | N120: 4466200025 | O120: 0.02992658222 | P120: 0.8933182552 | Q120: 3411502130051000 | R120: RENOV,REHAB.O REPOS.SIST.TRONCAL,SEC. Y LOCAL ALC.SANITARIO | S120: 147614727000 | T120: 0 | U120: 0 | V120: 147614727000 | X120: 147614727000 | Y120: 95996700974 | Z120: 95996700974 | AA120: 0.6503192664 | AB120: 3682128331 | AG120: 1623832611 | AH120: -1179254070 | AI120: 0 | AJ120: 0 | AK120: 4466200025 | AL120: 4123887276
A121: 00003411502130051133 | B121: INFRAESTRUCTURA PARA EL DESARROLLO DEL HÁBITAT | C121: 147614727000 | D121: 2803086681 | E121: 1623832611 | F121: 149238559611 | H121: 149238559611 | I121: 0 | J121: 95996700974 | K121: 0.6432432826 | L121: 4999562025 | M121: 342312749 | N121: 4466200025 | O121: 0.02992658222 | P121: 0.8933182552 | Q121: 00003411502130051133 | R121: INFRAESTRUCTURA PARA EL DESARROLLO DEL HÁBITAT | S121: 147614727000 | T121: 0 | U121: 0 | V121: 147614727000 | X121: 147614727000 | Y121: 95996700974 | Z121: 95996700974 | AA121: 0.6503192664 | AB121: 3682128331 | AG121: 1623832611 | AH121: -1179254070 | AI121: 0 | AJ121: 0 | AK121: 4466200025 | AL121: 4123887276
A122: 3411502130052000 | B122: RENOV,REHAB.O REPOS.SIST.TRONCAL, SEC. Y LOCAL ALC. PLUVIAL | C122: 137242908000 | D122: 0 | E122: -18597139855 | F122: 118645768145 | H122: 118645768145 | I122: 0 | J122: 101231726352 | K122: 0.8532266084 | L122: 1630993963 | N122: 1196031452 | O122: 0.01008069205 | P122: 0.7333144568 | Q122: 3411502130052000 | R122: RENOV,REHAB.O REPOS.SIST.TRONCAL, SEC. Y LOCAL ALC. PLUVIAL | S122: 137242908000 | T122: -14064202605 | U122: -14064202605 | V122: 123178705395 | X122: 123178705395 | Y122: 101231726352 | Z122: 101231726352 | AA122: 0.8218281401 | AB122: 550272728 | AG122: -4532937250 | AH122: -4532937250 | AI122: 0 | AJ122: 0 | AK122: 1196031452 | AL122: 1196031452
A123: 00003411502130052133 | B123: INFRAESTRUCTURA PARA EL DESARROLLO DEL HÁBITAT | C123: 137242908000 | D123: 0 | E123: -18597139855 | F123: 118645768145 | H123: 118645768145 | I123: 0 | J123: 101231726352 | K123: 0.8532266084 | L123: 1630993963 | N123: 1196031452 | O123: 0.01008069205 | P123: 0.7333144568 | Q123: 00003411502130052133 | R123: INFRAESTRUCTURA PARA EL DESARROLLO DEL HÁBITAT | S123: 137242908000 | T123: -14064202605 | U123: -14064202605 | V123: 123178705395 | X123: 123178705395 | Y123: 101231726352 | Z123: 101231726352 | AA123: 0.8218281401 | AB123: 550272728 | AG123: -4532937250 | AH123: -4532937250 | AI123: 0 | AJ123: 0 | AK123: 1196031452 | AL123: 1196031452
A124: 3411502130053000 | B124: RENOV,REHAB.O REPOS.SIST.TRONCAL, SEC. Y LOCAL ALC. COMBIN | C124: 14605692000 | D124: 260052482 | E124: 334982531 | F124: 14940674531 | H124: 14940674531 | J124: 74930049 | K124: 0.005015171761 | L124: 0 | Q124: 3411502130053000 | R124: RENOV,REHAB.O REPOS.SIST.TRONCAL, SEC. Y LOCAL ALC. COMBIN | S124: 14605692000 | V124: 14605692000 | X124: 14605692000 | AG124: 334982531 | AH124: 74930049 | AI124: 74930049 | AJ124: 74930049 | AK124: 0 | AL124: 0
A125: 00003411502130053133 | B125: INFRAESTRUCTURA PARA EL DESARROLLO DEL HÁBITAT | C125: 14605692000 | D125: 260052482 | E125: 334982531 | F125: 14940674531 | H125: 14940674531 | J125: 74930049 | K125: 0.005015171761 | L125: 0 | Q125: 00003411502130053133 | R125: INFRAESTRUCTURA PARA EL DESARROLLO DEL HÁBITAT | S125: 14605692000 | V125: 14605692000 | X125: 14605692000 | AG125: 334982531 | AH125: 74930049 | AI125: 74930049 | AJ125: 74930049 | AK125: 0 | AL125: 0
A126: 3411502130054000 | B126: ACCIONES PARA EL SANEAMIENTO DEL RÍO BOGOTÁ | C126: 14225533000 | D126: 0 | E126: 74807097669 | F126: 89032630669 | H126: 89032630669 | J126: 12297000000 | K126: 0.1381179002 | L126: 0 | Q126: 3411502130054000 | R126: ACCIONES PARA EL SANEAMIENTO DEL RÍO BOGOTÁ | S126: 14225533000 | T126: 0 | U126: 0 | V126: 14225533000 | X126: 14225533000 | Y126: 12297000000 | Z126: 12297000000 | AA126: 0.8644315823 | AG126: 74807097669 | AH126: 74807097669 | AI126: 0 | AJ126: 0 | AK126: 0 | AL126: 0
A127: 00003411502130054133 | B127: INFRAESTRUCTURA PARA EL DESARROLLO DEL HÁBITAT | C127: 14225533000 | D127: 0 | E127: 74807097669 | F127: 89032630669 | H127: 89032630669 | J127: 12297000000 | K127: 0.1381179002 | L127: 0 | Q127: 00003411502130054133 | R127: INFRAESTRUCTURA PARA EL DESARROLLO DEL HÁBITAT | S127: 14225533000 | T127: 0 | U127: 0 | V127: 14225533000 | X127: 14225533000 | Y127: 12297000000 | Z127: 12297000000 | AA127: 0.8644315823 | AG127: 74807097669 | AH127: 74807097669 | AI127: 0 | AJ127: 0 | AK127: 0 | AL127: 0
A128: 3411502130068000 | B128: CONST,RENOV,REHAB.O REPOS.REDES ASOC.A INFRAESTRUCTURA VIAL | C128: 46457000000 | D128: -46386466521 | E128: -46386466521 | F128: 70533479 | H128: 70533479 | Q128: 3411502130068000 | R128: CONST,RENOV,REHAB.O REPOS.REDES ASOC.A INFRAESTRUCTURA VIAL | S128: 46457000000 | V128: 46457000000 | X128: 46457000000 | AG128: -46386466521 | AH128: 0 | AI128: 0 | AJ128: 0 | AK128: 0 | AL128: 0
A129: 00003411502130068133 | B129: INFRAESTRUCTURA PARA EL DESARROLLO DEL HÁBITAT | C129: 46457000000 | D129: -46386466521 | E129: -46386466521 | F129: 70533479 | H129: 70533479 | Q129: 00003411502130068133 | R129: INFRAESTRUCTURA PARA EL DESARROLLO DEL HÁBITAT | S129: 46457000000 | V129: 46457000000 | X129: 46457000000 | AG129: -46386466521 | AH129: 0 | AI129: 0 | AJ129: 0 | AK129: 0 | AL129: 0
A130: 3411502130081000 | B130: CORREDORES AMBIENTALES | C130: 121046203000 | D130: -13448492113 | E130: -13762295878 | F130: 107283907122 | H130: 107283907122 | J130: 2077396235 | K130: 0.01936354008 | L130: 0 | Q130: 3411502130081000 | R130: CORREDORES AMBIENTALES | S130: 121046203000 | T130: 0 | U130: 0 | V130: 121046203000 | X130: 121046203000 | Y130: 1751313132 | Z130: 1751313132 | AA130: 0.01446813769 | AB130: 2194298039 | AG130: -13762295878 | AH130: -313803765 | AI130: 326083103 | AJ130: 326083103 | AK130: 0 | AL130: 0
A131: 00003411502130081133 | B131: INFRAESTRUCTURA PARA EL DESARROLLO DEL HÁBITAT | C131: 121046203000 | D131: -13448492113 | E131: -13762295878 | F131: 107283907122 | H131: 107283907122 | J131: 2077396235 | K131: 0.01936354008 | L131: 0 | Q131: 00003411502130081133 | R131: INFRAESTRUCTURA PARA EL DESARROLLO DEL HÁBITAT | S131: 121046203000 | T131: 0 | U131: 0 | V131: 121046203000 | X131: 121046203000 | Y131: 1751313132 | Z131: 1751313132 | AA131: 0.01446813769 | AB131: 2194298039 | AG131: -13762295878 | AH131: -313803765 | AI131: 326083103 | AJ131: 326083103 | AK131: 0 | AL131: 0
A132: 3411502137334000 | B132: CONST.Y EXPANSIÓN SISTEMA ABASTECIMIENTO Y MATRIZ ACUEDUCTO | C132: 249776117000 | D132: 119629154 | E132: -9317858926 | F132: 240458258074 | H132: 240458258074 | I132: 2045415 | J132: 121667707314 | K132: 0.5059826528 | L132: 9344890913 | M132: 4341901592 | N132: 5618145966 | O132: 0.02336432947 | P132: 0.6011997377 | Q132: 3411502137334000 | R132: CONST.Y EXPANSIÓN SISTEMA ABASTECIMIENTO Y MATRIZ ACUEDUCTO | S132: 249776117000 | T132: 0 | U132: 0 | V132: 249776117000 | X132: 249776117000 | Y132: 121469764791 | Z132: 121469764791 | AA132: 0.4863145694 | AB132: 79966314952 | AG132: -9317858926 | AH132: -9437488080 | AI132: 197942523 | AJ132: 195897108 | AK132: 5618145966 | AL132: 1276244374
A133: 00003411502137334133 | B133: INFRAESTRUCTURA PARA EL DESARROLLO DEL HÁBITAT | C133: 249776117000 | D133: 119629154 | E133: -9317858926 | F133: 240458258074 | H133: 240458258074 | I133: 2045415 | J133: 121667707314 | K133: 0.5059826528 | L133: 9344890913 | M133: 4341901592 | N133: 5618145966 | O133: 0.02336432947 | P133: 0.6011997377 | Q133: 00003411502137334133 | R133: INFRAESTRUCTURA PARA EL DESARROLLO DEL HÁBITAT | S133: 249776117000 | T133: 0 | U133: 0 | V133: 249776117000 | X133: 249776117000 | Y133: 121469764791 | Z133: 121469764791 | AA133: 0.4863145694 | AB133: 79966314952 | AG133: -9317858926 | AH133: -9437488080 | AI133: 197942523 | AJ133: 195897108 | AK133: 5618145966 | AL133: 1276244374
A134: 3411502137338000 | B134: CONSTRUCCIÓN DE REDES LOCALES PARA EL SERVICIO DE ACUEDUCTO | C134: 15222554000 | D134: 0 | E134: -4012488363 | F134: 11210065637 | H134: 11210065637 | J134: 3701024845 | K134: 0.3301519335 | L134: 217738966 | N134: 143835966 | O134: 0.01283096555 | P134: 0.6605890009 | Q134: 3411502137338000 | R134: CONSTRUCCIÓN DE REDES LOCALES PARA EL SERVICIO DE ACUEDUCTO | S134: 15222554000 | T134: 0 | U134: 0 | V134: 15222554000 | X134: 15222554000 | Y134: 3701024845 | Z134: 3701024845 | AA134: 0.2431277199 | AB134: 272833259 | AG134: -4012488363 | AH134: -4012488363 | AI134: 0 | AJ134: 0 | AK134: 143835966 | AL134: 143835966
A135: 00003411502137338133 | B135: INFRAESTRUCTURA PARA EL DESARROLLO DEL HÁBITAT | C135: 15222554000 | D135: 0 | E135: -4012488363 | F135: 11210065637 | H135: 11210065637 | J135: 3701024845 | K135: 0.3301519335 | L135: 217738966 | N135: 143835966 | O135: 0.01283096555 | P135: 0.6605890009 | Q135: 00003411502137338133 | R135: INFRAESTRUCTURA PARA EL DESARROLLO DEL HÁBITAT | S135: 15222554000 | T135: 0 | U135: 0 | V135: 15222554000 | X135: 15222554000 | Y135: 3701024845 | Z135: 3701024845 | AA135: 0.2431277199 | AB135: 272833259 | AG135: -4012488363 | AH135: -4012488363 | AI135: 0 | AJ135: 0 | AK135: 143835966 | AL135: 143835966
A136: 3411506000000000 | B136: EJE TRANSV. SOST. AMBIENTAL BASADA EFICIENCIA ENERGÉTICA | C136: 61193149000 | D136: 28530411 | E136: -2690811552 | F136: 58502337448 | H136: 58502337448 | I136: 2073842971 | J136: 35133170243 | K136: 0.6005430172 | L136: 2410384730 | M136: 268793369 | N136: 881650614 | O136: 0.01507034851 | P136: 0.3657717389 | Q136: 3411506000000000 | R136: EJE TRANSV. SOST. AMBIENTAL BASADA EFICIENCIA ENERGÉTICA | S136: 61193149000 | T136: 0 | U136: 0 | V136: 61193149000 | X136: 61193149000 | Y136: 32827042961 | Z136: 32827042961 | AA136: 0.5364496434 | AB136: 1345278556 | AG136: -2690811552 | AH136: -2719341963 | AI136: 2306127282 | AJ136: 232284311 | AK136: 881650614 | AL136: 612857245
A137: 3411506380000000 | B137: RECUPERACIÓN Y MANEJO DE LA ESTRUCTURA ECOLÓGICA PRINCIPAL | D137: 28530411 | E137: 303049781 | F137: 303049781 | H137: 303049781 | I137: 46101870 | J137: 277219781 | K137: 0.9147664786 | L137: 277219781 | M137: 5920629 | N137: 6116391 | O137: 0.020182793 | P137: 0.02206332816 | AG137: =F137-V137 -> 303049781 | AH137: =AG137-D137 -> 274519370 | AI137: =J137-Z137 -> 277219781 | AJ137: =AI137-I137 -> 231117911 | AK137: =N137-AD137 -> 6116391 | AL137: =AK137-M137 -> 195762
A138: 3411506387341000 | B138: ADEC.HIDRÁULICA RECUP.AMB.HUMED,QUEBRADAS,RÍOS CUENCAS ABAST | D138: 28530411 | E138: 303049781 | F138: 303049781 | H138: 303049781 | I138: 46101870 | J138: 277219781 | K138: 0.9147664786 | L138: 277219781 | M138: 5920629 | N138: 6116391 | O138: 0.020182793 | P138: 0.02206332816 | AG138: 303049781 | AH138: 274519370 | AI138: 277219781 | AJ138: 231117911 | AK138: 6116391 | AL138: 195762
A139: 00003411506387341177 | B139: CONSOLIDACIÓN DE LA ESTRUCTURA ECOLÓGICA PRINCIPAL | D139: 28530411 | E139: 303049781 | F139: 303049781 | H139: 303049781 | I139: 46101870 | J139: 277219781 | K139: 0.9147664786 | L139: 277219781 | M139: 5920629 | N139: 6116391 | O139: 0.020182793 | P139: 0.02206332816 | AG139: 303049781 | AH139: 274519370 | AI139: 277219781 | AJ139: 231117911 | AK139: 6116391 | AL139: 195762
A140: 3411506390000000 | B140: AMBIENTE SANO PARA LA EQUIDAD Y DISFRUTE DEL CIUDADANO | C140: 61193149000 | D140: 0 | E140: -2993861333 | F140: 58199287667 | H140: 58199287667 | I140: 2027741101 | J140: 34855950462 | K140: 0.5989068227 | L140: 2133164949 | M140: 262872740 | N140: 875534223 | O140: 0.01504372748 | P140: 0.4104390631 | Q140: 3411506390000000 | R140: AMBIENTE SANO PARA LA EQUIDAD Y DISFRUTE DEL CIUDADANO | S140: 61193149000 | T140: 0 | U140: 0 | V140: 61193149000 | X140: 61193149000 | Y140: 32827042961 | Z140: 32827042961 | AA140: 0.5364496434 | AB140: 1345278556 | AG140: -2993861333 | AH140: -2993861333 | AI140: 2028907501 | AJ140: 1166400 | AK140: 875534223 | AL140: 612661483
A141: 3411506390082000 | B141: PLAN DE SANEAMIENTO Y MANEJO DE VERTIMIENTOS | C141: 61193149000 | D141: 0 | E141: -2993861333 | F141: 58199287667 | H141: 58199287667 | I141: 2027741101 | J141: 34855950462 | K141: 0.5989068227 | L141: 2133164949 | M141: 262872740 | N141: 875534223 | O141: 0.01504372748 | P141: 0.4104390631 | Q141: 3411506390082000 | R141: PLAN DE SANEAMIENTO Y MANEJO DE VERTIMIENTOS | S141: 61193149000 | T141: 0 | U141: 0 | V141: 61193149000 | X141: 61193149000 | Y141: 32827042961 | Z141: 32827042961 | AA141: 0.5364496434 | AB141: 1345278556 | AG141: -2993861333 | AH141: -2993861333 | AI141: 2028907501 | AJ141: 1166400 | AK141: 875534223 | AL141: 612661483
A142: 00003411506390082179 | B142: AMBIENTE SANO | C142: 61193149000 | D142: 0 | E142: -2993861333 | F142: 58199287667 | H142: 58199287667 | I142: 2027741101 | J142: 34855950462 | K142: 0.5989068227 | L142: 2133164949 | M142: 262872740 | N142: 875534223 | O142: 0.01504372748 | P142: 0.4104390631 | Q142: 00003411506390082179 | R142: AMBIENTE SANO | S142: 61193149000 | T142: 0 | U142: 0 | V142: 61193149000 | X142: 61193149000 | Y142: 32827042961 | Z142: 32827042961 | AA142: 0.5364496434 | AB142: 1345278556 | AG142: -2993861333 | AH142: -2993861333 | AI142: 2028907501 | AJ142: 1166400 | AK142: 875534223 | AL142: 612661483
A143: 3411507000000000 | B143: EJE TRANSVERSAL GOBIERNO LEGÍTIMO, FORT. LOCAL Y EFICIENTE | C143: 32591418000 | D143: 0 | E143: 40440083 | F143: 32631858083 | H143: 32631858083 | I143: 707082682 | J143: 2324836022 | K143: 0.07124436543 | L143: 1598118819 | M143: 20686238 | N143: 20686238 | O143: 0.0006339276773 | P143: 0.01294411764 | Q143: 3411507000000000 | R143: EJE TRANSVERSAL GOBIERNO LEGÍTIMO, FORT. LOCAL Y EFICIENTE | S143: 32591418000 | T143: 0 | U143: 0 | V143: 32591418000 | X143: 32591418000 | Y143: 1617753340 | Z143: 1617753340 | AA143: 0.04963740271 | AB143: 66300000 | AG143: 40440083 | AH143: 40440083 | AI143: 707082682 | AJ143: 0 | AK143: 20686238 | AL143: 0
A144: 3411507420000000 | B144: TRANSPARENCIA, GESTIÓN PÚBLICA Y SERVICIO A LA CIUDADANÍA | C144: 32591418000 | D144: 0 | E144: 40440083 | F144: 32631858083 | H144: 32631858083 | I144: 707082682 | J144: 2324836022 | K144: 0.07124436543 | L144: 1598118819 | M144: 20686238 | N144: 20686238 | O144: 0.0006339276773 | P144: 0.01294411764 | Q144: 3411507420000000 | R144: TRANSPARENCIA, GESTIÓN PÚBLICA Y SERVICIO A LA CIUDADANÍA | S144: 32591418000 | T144: 0 | U144: 0 | V144: 32591418000 | X144: 32591418000 | Y144: 1617753340 | Z144: 1617753340 | AA144: 0.04963740271 | AB144: 66300000 | AG144: 40440083 | AH144: 40440083 | AI144: 707082682 | AJ144: 0 | AK144: 20686238 | AL144: 0
A145: 3411507420055000 | B145: FORTALECIMIENTO ADMINISTRATIVO Y OPERATIVO EMPRESARIAL | C145: 32591418000 | D145: 0 | E145: 40440083 | F145: 32631858083 | H145: 32631858083 | I145: 707082682 | J145: 2324836022 | K145: 0.07124436543 | L145: 1598118819 | M145: 20686238 | N145: 20686238 | O145: 0.0006339276773 | P145: 0.01294411764 | Q145: 3411507420055000 | R145: FORTALECIMIENTO ADMINISTRATIVO Y OPERATIVO EMPRESARIAL | S145: 32591418000 | T145: 0 | U145: 0 | V145: 32591418000 | X145: 32591418000 | Y145: 1617753340 | Z145: 1617753340 | AA145: 0.04963740271 | AB145: 66300000 | AG145: 40440083 | AH145: 40440083 | AI145: 707082682 | AJ145: 0 | AK145: 20686238 | AL145: 0
A146: 00003411507420055185 | B146: FORTALECIMIENTO ADMINISTRATIVO Y OPERATIVO EMPRESARIAL | C146: 32591418000 | D146: 0 | E146: 40440083 | F146: 32631858083 | H146: 32631858083 | I146: 707082682 | J146: 2324836022 | K146: 0.07124436543 | L146: 1598118819 | M146: 20686238 | N146: 20686238 | O146: 0.0006339276773 | P146: 0.01294411764 | Q146: 00003411507420055185 | R146: FORTALECIMIENTO ADMINISTRATIVO Y OPERATIVO EMPRESARIAL | S146: 32591418000 | T146: 0 | U146: 0 | V146: 32591418000 | X146: 32591418000 | Y146: 1617753340 | Z146: 1617753340 | AA146: 0.04963740271 | AB146: 66300000 | AG146: 40440083 | AH146: 40440083 | AI146: 707082682 | AJ146: 0 | AK146: 20686238 | AL146: 0
A147: 342000000000000 | B147: TRANSFERENCIAS PARA INVERSION | C147: 406848694000 | D147: 58806420748 | E147: 113732434113 | F147: 520581128113 | H147: 520581128113 | I147: 124538266 | J147: 5379578950 | K147: 0.01033379556 | L147: 5427597503 | M147: 124538266 | N147: 5379578950 | O147: 0.01033379556 | P147: 0.9911528898 | Q147: 342000000000000 | R147: TRANSFERENCIAS PARA INVERSION | S147: 406848694000 | V147: 406848694000 | X147: 406848694000 | Y147: 0 | Z147: 0 | AA147: 0 | AG147: 113732434113 | AH147: 54926013365 | AI147: 5379578950 | AJ147: 5255040684 | AK147: 5379578950 | AL147: 5255040684
A148: 00000342030000000000 | B148: PATRIMONIO AUTONOMO PENSIONAL | C148: 73800000000 | D148: 14560885000 | E148: 14560885000 | F148: 88360885000 | H148: 88360885000 | J148: 5000000000 | K148: 0.05658612405 | L148: 5000000000 | N148: 5000000000 | O148: 0.05658612405 | P148: 1 | Q148: 00000342030000000000 | R148: PATRIMONIO AUTONOMO PENSIONAL | S148: 73800000000 | V148: 73800000000 | X148: 73800000000 | AG148: 14560885000 | AH148: 0 | AI148: 5000000000 | AJ148: 5000000000 | AK148: 5000000000 | AL148: 5000000000
A149: 00000342040000000000 | B149: FONDO PLAN DE EXPANSION | C149: 318975936000 | D149: 44245535748 | E149: 99173172113 | F149: 418149108113 | H149: 418149108113 | Q149: 00000342040000000000 | R149: FONDO PLAN DE EXPANSION | S149: 318975936000 | V149: 318975936000 | X149: 318975936000 | AG149: 99173172113 | AH149: 54927636365 | AI149: 0 | AJ149: 0 | AK149: 0 | AL149: 0
A150: 00000342060000000000 | B150: FONDO CUENTAS POR PAGAR LIBERADAS | C150: 4000000000 | D150: 0 | E150: -1623000 | F150: 3998377000 | H150: 3998377000 | Q150: 00000342060000000000 | R150: FONDO CUENTAS POR PAGAR LIBERADAS | S150: 4000000000 | V150: 4000000000 | X150: 4000000000 | AG150: -1623000 | AH150: -1623000 | AI150: 0 | AJ150: 0 | AK150: 0 | AL150: 0
A151: 00000342090000000000 | B151: TRANFERENCIAS ADMINISTRACION CENTRAL - RIO BOGOTA | C151: 2795000000 | F151: 2795000000 | H151: 2795000000 | Q151: 00000342090000000000 | R151: TRANFERENCIAS ADMINISTRACION CENTRAL - RIO BOGOTA | S151: 2795000000 | V151: 2795000000 | X151: 2795000000 | AG151: 0 | AH151: 0 | AI151: 0 | AJ151: 0 | AK151: 0 | AL151: 0
A152: 00000342100000000000 | B152: FONDO EQUIPOS SINIESTRADOS | C152: 2000000000 | F152: 2000000000 | H152: 2000000000 | Q152: 00000342100000000000 | R152: FONDO EQUIPOS SINIESTRADOS | S152: 2000000000 | V152: 2000000000 | X152: 2000000000 | AG152: 0 | AH152: 0 | AI152: 0 | AJ152: 0 | AK152: 0 | AL152: 0
A153: 00000342120000000000 | B153: FONDO REPOSICION EQUIPOS ASEO | C153: 3782557000 | F153: 3782557000 | H153: 3782557000 | I153: 124538266 | J153: 379578950 | K153: 0.1003498295 | L153: 427597503 | M153: 124538266 | N153: 379578950 | O153: 0.1003498295 | P153: 0.8877015121 | Q153: 00000342120000000000 | R153: FONDO REPOSICION EQUIPOS ASEO | S153: 3782557000 | V153: 3782557000 | X153: 3782557000 | AG153: 0 | AH153: 0 | AI153: 379578950 | AJ153: 255040684 | AK153: 379578950 | AL153: 255040684
A154: 00000342140000000000 | B154: TRANSFERENCIAS ENTIDADES DISTRITALES | J154: 0 | K154: 0 | Q154: 00000342140000000000 | R154: TRANSFERENCIAS ENTIDADES DISTRITALES | Y154: 0 | Z154: 0 | AA154: 0 | AG154: 0 | AH154: 0 | AI154: 0 | AJ154: 0 | AK154: 0 | AL154: 0
A155: 00000342160000000000 | B155: FONDO OBLIGACIONES CONTINGENTES | C155: 1495201000 | F155: 1495201000 | H155: 1495201000 | Q155: 00000342160000000000 | R155: FONDO OBLIGACIONES CONTINGENTES | S155: 1495201000 | V155: 1495201000 | X155: 1495201000 | AG155: 0 | AH155: 0 | AI155: 0 | AJ155: 0 | AK155: 0 | AL155: 0
A156: 343000000000000 | B156: CUENTAS POR PAGAR | C156: 565023385000 | D156: -588828935 | E156: 13150913567 | F156: 578174298567 | H156: 578174298567 | I156: -2023119950 | J156: 482219168368 | K156: 0.8340377107 | L156: 187366094306 | M156: 39503993508 | N156: 135258490481 | O156: 0.2339406833 | P156: 0.7218941665 | Q156: 343000000000000 | R156: CUENTAS POR PAGAR | S156: 565023385000 | T156: 14064202605 | U156: 14064202605 | V156: 579087587605 | X156: 579087587605 | Y156: 485060673038 | Z156: 485060673038 | AA156: 0.8376292005 | AB156: 45639981465 | AC156: 5003273871 | AD156: 5003273871 | AE156: 0.008639925942 | AF156: 0.1096248007 | AG156: -913289038 | AH156: -324460103 | AI156: -2841504670 | AJ156: -818384720 | AK156: 130255216610 | AL156: 90751223102
A157: 00000343000000000000 | B157: CUENTAS POR PAGAR | C157: 565023385000 | D157: -588828935 | E157: 13150913567 | F157: 578174298567 | H157: 578174298567 | I157: -2023119950 | J157: 482219168368 | K157: 0.8340377107 | L157: 187366094306 | M157: 39503993508 | N157: 135258490481 | O157: 0.2339406833 | P157: 0.7218941665 | Q157: 00000343000000000000 | R157: CUENTAS POR PAGAR | S157: 565023385000 | T157: 14064202605 | U157: 14064202605 | V157: 579087587605 | X157: 579087587605 | Y157: 485060673038 | Z157: 485060673038 | AA157: 0.8376292005 | AB157: 45639981465 | AC157: 5003273871 | AD157: 5003273871 | AE157: 0.008639925942 | AF157: 0.1096248007 | AG157: -913289038 | AH157: -324460103 | AI157: -2841504670 | AJ157: -818384720 | AK157: 130255216610 | AL157: 90751223102
A158: 400000000000000 | B158: DISPONIBILIDAD FINAL | C158: 111809729000 | D158: 0 | E158: 0 | F158: 111809729000 | H158: 111809729000 | Q158: 400000000000000 | R158: DISPONIBILIDAD FINAL | S158: 111809729000 | T158: 0 | U158: 0 | V158: 111809729000 | X158: 111809729000 | AG158: 0 | AH158: 0 | AI158: 0 | AJ158: 0 | AK158: 0 | AL158: 0
A159: 00000400000000000000 | B159: DISPONIBILIDAD FINAL | C159: 111809729000 | D159: 0 | E159: 0 | F159: 111809729000 | H159: 111809729000 | Q159: 00000400000000000000 | R159: DISPONIBILIDAD FINAL | S159: 111809729000 | T159: 0 | U159: 0 | V159: 111809729000 | X159: 111809729000 | AG159: 0 | AH159: 0 | AI159: 0 | AJ159: 0 | AK159: 0 | AL159: 0
